Workbook

Sheet Version_History
A8: Version History
A9: v2.1 Oct 2021

Sheet Key_Assumptions_&_Inputs
A1: Key Assumptions & Inputs: The purpose of this tab is for the user to enter inputs and assumptions related to the community solar project. Cells with blue font may be modified, and red cells represent drop downs that should be selected. Descriptions of inputs, value ranges and assumptions can been found for each input by hovering the cursor over default values. Summary Outputs are at the bottom of the page.
C7: Critical System Inputs
C10: Select from the following drop-down to determine panel price points | G10: Output Snapshot*
C11: Subscription Lifetime NPV for Non-subsidized Subscriber is Zero | G11: =IF(E16="Upfront Payment", "Subscription purchase price", "Lifetime Lease Total") -> Lifetime Lease Total | H11: =IF(E16="Share Leasing",E17*E26*12*E51,E17*SharePerSub) -> 19200 | N11: 8
G12: Total number of residential subscriptions | H12: =SystemSizeDC*(1-E52)/(E23/1000*SharePerSub)*(1-PercentPV_LI) -> 300 | N12: 16 | O12: Cliburn
G13: Upfront Subscription Price for Project: | H13: =IF('Key_Assumptions_&_Inputs'!E16="Share Leasing","N/A",'Key_Assumptions_&_Inputs'!E17) -> N/A | N13: 14
G14: Monthly Subscription Price: | H14: =IF('Key_Assumptions_&_Inputs'!E16="Upfront Payment","N/A",SharePrice*SharePerSub*12) -> 960 | N14: 4
C15: System Owner Financials | N15: =SUM(N11:N14) -> 42
C16: Business Model: | E16: Share Leasing | G16: Subscriber NPV: | H16: =Subscriber_NPV -> 1755.157293
C17: =IF(E16="Upfront Payment","Upfront Price per Share:",IF(E16="Share Leasing","Monthly Lease Price per Share:")) -> Monthly Lease Price per Share: | E17: 2 | G17: Subscriber net benefits (costs) yr 1: | H17: =Community_Solar_Business_Case!F107 -> 31.2
C19: Project Information | G19: Utility NPV: | H19: =Utility_NPV -> 623647.5607
C20: City: | E20: Albuquerque | G20: Utility B/C Ratio | H20: =F91 -> 1.785825611
C21: State: | E21: NM
C22: System Size - DC (Gross kW): | E22: 1200
C23: Share Size (W): | E23: 100
C24: Installation Type: | E24: Ground Mount Single Axis Tracking
C25: Ownership Entity: | E25: Tax-Exempt Entity
C26: Shares per Subscriber: | E26: 40
C27: Years to Full Subscription: | E27: 1
C28: Project Start Date | E28: 2022
C31: Photovoltaic System Technical Assumptions | G31: Photovoltaic System Cost Assumptions
C33: Community Shared Solar System | G33: Construction Costs | I33: Input Unit | J33: Input Value (Today USD) | K33: Total Cost ($) | L33: $/Watt
C34: Capacity Factor: | E34: =E37/8760 -> 0.2828767123 | G34: PV Modules: | I34: $/W | J34: 0.58 | K34: =J34*$E$22*1000 -> 696000 | L34: =J34 -> 0.58
C35: System Losses (%): | E35: 5 | G35: Inverters: | I35: $/W | J35: 0.08 | K35: 96000 | L35: 0.08
C36: Inverter Efficiency (%): | E36: 96 | G36: Racking: | I36: $/W | J36: 0.1 | K36: 120000 | L36: 0.1
C37: Annual Power Production (kWh per kW): | E37: 2478 | G37: Balance of System: | I37: $/W | J37: 0.1 | K37: 120000 | L37: 0.1
C38: Annual Derate (%): | E38: 0.005 | G38: Engineering and Design: | I38: $/W | J38: 0.06 | K38: 72000 | L38: 0.06
C39: Number of Shares: | E39: =E22*1000/E23 -> 12000 | G39: Permitting and Interconnection: | I39: $/W | J39: 0.17 | K39: 204000 | L39: 0.17
G40: Installation Labor: | I40: $/W | J40: 0.18 | K40: 216000 | L40: 0.18
C41: Utility Energy Costs | G41: Equipment Rental and Freight: | I41: $/W | J41: 0.03 | K41: 36000 | L41: 0.03
C42: Wholesale Energy Cost ($/kWh; input an average blended rate if needed to reflect wholesale demand charges): | E42: 0.045 | G42: Development Overhead: | I42: $/W | J42: 0.41 | K42: 492000 | L42: 0.41
C43: LMI Program Adder ($/kWh) to support LMI fund | E43: 0.01 | G43: Total Installed Cost of PV System (Ground Mount) | I43: $/W | J43: =SUM(J34:J42) -> 1.71 | K43: 2052000 | L43: 1.71
C44: Average Residential Retail Energy Rate ($/kWh): | E44: 0.11
C45: Subscriber Credit Rate ($/kWh) | E45: 0.1 | G45: Site Costs | I45: Input Unit | J45: Input Value (Today USD) | K45: Total Cost ($) | L45: $/Watt
G46: Purchase Cost of Site: | I46: $ | J46: 0 | K46: =J46 -> 0 | L46: =K46/($E$22*1000) -> 0
C47: Community Solar Program Assumptions | G47: Site/Land Preparation Costs: | I47: $/W | J47: 0.41 | K47: =J47*E22*1000 -> 492000 | L47: 0.41
G48: Annual Lease Payments for Site: | I48: $/year | J48: 0 | K48: =J48*E51 -> 0 | L48: 0
C49: Community Shared Solar Program | G49: Removal Cost: | I49: $ | J49: 0 | K49: =J49 -> 0 | L49: 0
C50: Project Life (years): | E50: 30
C51: Subscription Life (years): | E51: 20 | G51: O&M Costs | I51: Input Unit | J51: Input Value (Today USD) | K51: Total Cost ($) | L51: $/Watt
C52: % of System Subscribed by Anchor Subscriber: | E52: 0 | G52: Annual System Operations & Maintenance: | I52: $/kW/year | J52: 17.5 | K52: =J52*E22*E51 -> 420000 | L52: =K52/(E22*1000) -> 0.35
C53: Annual Subscriber Retirement/Acquisition Rate (%): | E53: 0.015
C54: Share Price/Lease Escalator (%): | E54: 0 | G54: Incentive Assumptions
C56: Solar Project Financial Metrics | G56: Incentive | I56: Input Unit | J56: Input Value
C57: Annual Wholesale Energy Cost Increase: | E57: 0.02 | G57: Capital Cost Subsidy | I57: $ | J57: 0
C58: Annual Retail Energy Cost Increase: | E58: 0.02 | G58: Federal Investment Tax Credit (ITC): | I58: % of qualified costs | J58: 0.3
C59: Annual Subscriber Credit Rate Increase: | E59: 0.02 | G59: State/Local Generation Incentives, if Applicable: | I59: $/kWh | J59: 0
C60: Subscriber NPV Disount Rate: | E60: 0.06 | G60: State/Local Capacity Subsidy, if Applicable: | I60: $/Watt | J60: 0
C61: Utility NPV Discount Rate: | E61: 0.0533 | G61: State/Local Lump Sum Incentive, if Applicable: | I61: $ | J61: 0
G62: Regular Subscriber Subsidy: | I62: =IF(E16="Share Leasing","$/panel/month","$/panel") -> $/panel/month | J62: 0
C63: Finanacing Assumptions | G63: SREC Value: | I63: $/SREC (MWh) | J63: 0 | K63: =Community_Solar_Business_Case!E53 -> 0 | L63: =K63/($E$22*1000) -> 0
G64: SREC Lifetime: | I64: years | J64: 15 | K64: =Community_Solar_Business_Case!F56:AD56 -> 0 | L64: 0
C65: Solar Project Financing Options | G65: SREC Payout Schedule: | I65: years | J65: 5 | K65: =J60*1000*E22 -> 0 | L65: 0
D66: Utility | E66: Subscriber | G66: Tax Rate for MACRs Depreciation: | I66: % | J66: 0.35 | K66: =J61 -> 0 | L66: 0
C67: Percent of Costs Financed: | D67: 1 | E67: 1 | G67: Salvage Value: | I67: % of system cost | J67: 0 | K67: =SUM(Community_Solar_Business_Case!F67:J67) -> 0 | L67: 0
C68: Interest Rate: | D68: 0.0533 | E68: 0.02 | K68: N/A | L68: N/A
C69: Financing Term (years): | D69: 13 | E69: 10 | G69: Administrative and Transactional Cost Assumptions | K69: N/A | L69: N/A
K70: =SUM(Community_Solar_Business_Case!E54:AD54) -> 0 | L70: =K70/($E$22*1000) -> 0
G71: Subscriber Acquisition Assumptions | I71: Input Unit | J71: Input Value | K71: =J43*J67*1000*E22 -> 0 | L71: 0
G72: Subscriber Acquisition Difficulty: | I72: N/A | J72: Easy
G73: Labor rate for Acquisition Activities: | I73: $ | J73: 25
G74: Labor Rate Escalator: | I74: % | J74: 0.03
G75: Upfront Billing Software Costs: | I75: $ | J75: 0
G76: Ongoing Billing Software Licensing Costs: | I76: $/year | J76: 0 | K76: Total Cost ($) | L76: $/Watt
K77: N/A | L77: N/A
K78: N/A | L78: N/A
C80: Summary Output
D82: Input/Output Summary
D83: Panel Purchase Price: | E83: =IF('Key_Assumptions_&_Inputs'!E16="Share Leasing","N/A",'Key_Assumptions_&_Inputs'!E17) -> N/A
D84: Monthly Panel Lease Price: | E84: =IF('Key_Assumptions_&_Inputs'!E16="Upfront Payment","N/A",'Key_Assumptions_&_Inputs'!E17) -> 2
D86: Key Performace Indicator | F86: Utility Owner (project life) | G86: Subscriber (subscription life)
D87: Costs: | E87: $ | F87: =Community_Solar_Business_Case!E79 -> -10092293.4 | G87: =Community_Solar_Business_Case!E115 -> -19200
D88: Revenues: | E88: $ | F88: =Community_Solar_Business_Case!E80 -> 18023076.02 | G88: =Community_Solar_Business_Case!E116 -> 22897.62389
D89: Net Benefits: | E89: $ | F89: =Community_Solar_Business_Case!E81 -> 7930782.625 | G89: =Community_Solar_Business_Case!E117 -> 3697.623891
D90: Net Present Value (NPV): | E90: $ | F90: =Utility_NPV -> 623647.5607 | G90: =Subscriber_NPV -> 1755.157293
D91: B/C Ratio | F91: =-F88/F87 -> 1.785825611 | G91: 1.192584578
D92: Return on Investment (ROI): | E92: % | F92: =Community_Solar_Business_Case!E86 -> 0.7858256108 | G92: =Community_Solar_Business_Case!E121 -> 0.1925845776
D93: Year 1 Net Benefits: | E93: $ | F93: N/A | G93: =Community_Solar_Business_Case!F107 -> 31.2

Sheet LI Fund Distribution
A1: Evalution Sheet for using the money generated by the CS array that is dedicated for low income (LI), to provide rebates to LI customers for the purchase of a heat pump water heater (HPWH)
A3: Values in Light Blue can be modified
A4: % of solar generation dedicated to LI | B4: =Capital_subsidy/(-Community_Solar_Business_Case!E36+Capital_subsidy) -> 0
A5: $ Produced for LI fund in Year 1 | B5: =B46 -> 29736
A6: % of LI Funding for low income fund | B6: 0
A7: % of LI funding remaining for HPWH rebates | B7: =1-B6 -> 1
A8: # of LI hh receiving subsidy/yr | B8: 18
A9: $ to LI HPWH Solar Water Rebate participant | B9: =B49 -> 1652
A11: HPWH Installed Cost with Rebates/Subsidies
A12: Heat Pump Water Heater cost | B12: 1500
A13: HPWH Installation | B13: 600
A14: Available HPWH Rebate
A15: LI HPWH Rebate | B15: =B49 -> 1652
A16: Total Installed Cost with Rebates | B16: =SUM(B12:B13)-B14-B49 -> 448
A18: On-Bill Financing
A19: On-Bill financing time (yrs) | B19: 3
A20: Interest Rate | B20: 0.02
A21: Monthly HPWH Finance Payment | B21: =PMT($B$20/12,12*$B$19,$B$16) -> -12.83187527
A23: Financial/Energy Savings (assumes participant uses electric water heater)
A24: Annual HPWH energy consumption (kWh) | B24: 1144
A25: Lifetime of HPWH (yrs) | B25: 10
A26: Ave Monthly HPWH Energy (kWh) | B26: =B24/12 -> 95.33333333
A27: Ave Monthly HPWH Energy cost | B27: =B26*RetailEnergyCost -> 10.48666667
A28: Annual electric water heater energy (kWh) | B28: 3500
A29: Ave monthly electricy water heater energy (kWh) | B29: =B28/12 -> 291.6666667
A30: Ave Monthly Energy cost for electric water heater | B30: =B29*RetailEnergyCost -> 32.08333333
A31: Ave Monthly Energy cost/savings w/ HPWH ($/mo) | B31: =B30-B27 -> 21.59666667
A32: Monthly HPWH Net Payment/Benefit | B32: =B31+B21 -> 8.764791395
A33: Annual gas water heater energy (MMBTU/yr) | B33: 18
A34: Annual gas water heater energy (kWh/yr) | B34: =B33/3.412*1000 -> 5275.498242
A35: Natural Gas Price ($/Mcf) | B35: 10
A36: Natural Gas Price ($/kWh) | B36: =B35/1.037*3.412/1000 -> 0.03290260366
A37: Natural Gas Escalation rate (%/year) | B37: 0.005
A38: Ave Monthly Energy cost for gas water heater | B38: =B36*B34/12 -> 14.46480231
A39: Ave Monthly Energy cost/savings w/ HPWH ($/mo) | B39: =B38-B27 -> 3.978135648
A40: Monthly HPWH Net Payment/Benefit | B40: =B21+B39 -> -8.853739624
A43: Project Year | B43: 1 | C43: 2 | D43: 3 | E43: 4 | F43: 5 | G43: 6 | H43: 7 | I43: 8 | J43: 9 | K43: 10 | L43: 11 | M43: 12 | N43: 13 | O43: 14 | P43: 15 | Q43: 16 | R43: 17 | S43: 18 | T43: 19 | U43: 20 | V43: 21 | W43: 22 | X43: 23 | Y43: 24 | Z43: 25 | AA43: 26 | AB43: 27 | AC43: 28 | AD43: 29 | AE43: 30
A44: Calendar Year | B44: =StartYr+B43-1 -> 2022 | C44: 2023 | D44: 2024 | E44: 2025 | F44: 2026 | G44: 2027 | H44: 2028 | I44: 2029 | J44: 2030 | K44: 2031 | L44: 2032 | M44: 2033 | N44: 2034 | O44: 2035 | P44: 2036 | Q44: 2037 | R44: 2038 | S44: 2039 | T44: 2040 | U44: 2041 | V44: 2042 | W44: 2043 | X44: 2044 | Y44: 2045 | Z44: 2046 | AA44: 2047 | AB44: 2048 | AC44: 2049 | AD44: 2050 | AE44: 2051
A45: kWh produced for LI fund | B45: =Community_Solar_Business_Case!E16 -> 0 | C45: =Community_Solar_Business_Case!F16 -> 0 | D45: =Community_Solar_Business_Case!G16 -> 0 | E45: =Community_Solar_Business_Case!H16 -> 0 | F45: =Community_Solar_Business_Case!I16 -> 0 | G45: =Community_Solar_Business_Case!J16 -> 0 | H45: =Community_Solar_Business_Case!K16 -> 0 | I45: =Community_Solar_Business_Case!L16 -> 0 | J45: =Community_Solar_Business_Case!M16 -> 0 | K45: =Community_Solar_Business_Case!N16 -> 0 | L45: =Community_Solar_Business_Case!O16 -> 0 | M45: =Community_Solar_Business_Case!P16 -> 0 | N45: =Community_Solar_Business_Case!Q16 -> 0 | O45: =Community_Solar_Business_Case!R16 -> 0 | P45: =Community_Solar_Business_Case!S16 -> 0 | Q45: =Community_Solar_Business_Case!T16 -> 0 | R45: =Community_Solar_Business_Case!U16 -> 0 | S45: =Community_Solar_Business_Case!V16 -> 0 | T45: =Community_Solar_Business_Case!W16 -> 0 | U45: =Community_Solar_Business_Case!X16 -> 0 | V45: =Community_Solar_Business_Case!Y16 -> 0 | W45: =Community_Solar_Business_Case!Z16 -> 0 | X45: =Community_Solar_Business_Case!AA16 -> 0 | Y45: =Community_Solar_Business_Case!AB16 -> 0 | Z45: =Community_Solar_Business_Case!AC16 -> 0 | AA45: =Community_Solar_Business_Case!AD16 -> 0 | AB45: =Community_Solar_Business_Case!AE16 -> 0 | AC45: =Community_Solar_Business_Case!AF16 -> 0 | AD45: =Community_Solar_Business_Case!AG16 -> 0 | AE45: =Community_Solar_Business_Case!AH16 -> 0
A46: $ produced for LI fund | B46: =Community_Solar_Business_Case!E18 -> 29736 | C46: =Community_Solar_Business_Case!F18 -> 29587.32 | D46: =Community_Solar_Business_Case!G18 -> 29439.3834 | E46: =Community_Solar_Business_Case!H18 -> 29292.18648 | F46: =Community_Solar_Business_Case!I18 -> 29145.72555 | G46: =Community_Solar_Business_Case!J18 -> 28999.99692 | H46: =Community_Solar_Business_Case!K18 -> 28854.99694 | I46: =Community_Solar_Business_Case!L18 -> 28710.72195 | J46: =Community_Solar_Business_Case!M18 -> 28567.16834 | K46: =Community_Solar_Business_Case!N18 -> 28424.3325 | L46: =Community_Solar_Business_Case!O18 -> 28282.21084 | M46: =Community_Solar_Business_Case!P18 -> 28140.79979 | N46: =Community_Solar_Business_Case!Q18 -> 28000.09579 | O46: =Community_Solar_Business_Case!R18 -> 27860.09531 | P46: =Community_Solar_Business_Case!S18 -> 27720.79483 | Q46: =Community_Solar_Business_Case!T18 -> 27582.19086 | R46: =Community_Solar_Business_Case!U18 -> 27444.2799 | S46: =Community_Solar_Business_Case!V18 -> 27307.0585 | T46: =Community_Solar_Business_Case!W18 -> 27170.52321 | U46: =Community_Solar_Business_Case!X18 -> 27034.67059 | V46: =Community_Solar_Business_Case!Y18 -> 26899.49724 | W46: =Community_Solar_Business_Case!Z18 -> 26764.99976 | X46: =Community_Solar_Business_Case!AA18 -> 26631.17476 | Y46: =Community_Solar_Business_Case!AB18 -> 26498.01888 | Z46: =Community_Solar_Business_Case!AC18 -> 26365.52879 | AA46: =Community_Solar_Business_Case!AD18 -> 26233.70114 | AB46: =Community_Solar_Business_Case!AE18 -> 26102.53264 | AC46: =Community_Solar_Business_Case!AF18 -> 25972.01998 | AD46: =Community_Solar_Business_Case!AG18 -> 25842.15988 | AE46: =Community_Solar_Business_Case!AH18 -> 25712.94908
A47: $ of LI fund for Low Income Fund | B47: =$B$6*B46 -> 0 | C47: 0 | D47: 0 | E47: 0 | F47: 0 | G47: 0 | H47: 0 | I47: 0 | J47: 0 | K47: 0 | L47: 0 | M47: 0 | N47: 0 | O47: 0 | P47: 0 | Q47: 0 | R47: 0 | S47: 0 | T47: 0 | U47: 0 | V47: 0 | W47: 0 | X47: 0 | Y47: 0 | Z47: 0 | AA47: 0 | AB47: 0 | AC47: 0 | AD47: 0 | AE47: 0
A48: $ total for LI HPWH rebate | B48: =B46-B47 -> 29736 | C48: 29587.32 | D48: 29439.3834 | E48: 29292.18648 | F48: 29145.72555 | G48: 28999.99692 | H48: 28854.99694 | I48: 28710.72195 | J48: 28567.16834 | K48: 28424.3325 | L48: 28282.21084 | M48: 28140.79979 | N48: 28000.09579 | O48: 27860.09531 | P48: 27720.79483 | Q48: 27582.19086 | R48: 27444.2799 | S48: 27307.0585 | T48: 27170.52321 | U48: 27034.67059 | V48: 26899.49724 | W48: 26764.99976 | X48: 26631.17476 | Y48: 26498.01888 | Z48: 26365.52879 | AA48: 26233.70114 | AB48: 26102.53264 | AC48: 25972.01998 | AD48: 25842.15988 | AE48: 25712.94908
A49: $/household for LI HPWH rebate | B49: =B48/$B$8 -> 1652 | C49: 1643.74 | D49: 1635.5213 | E49: 1627.343693 | F49: 1619.206975 | G49: 1611.11094 | H49: 1603.055385 | I49: 1595.040109 | J49: 1587.064908 | K49: 1579.129583 | L49: 1571.233936 | M49: 1563.377766 | N49: 1555.560877 | O49: 1547.783073 | P49: 1540.044157 | Q49: 1532.343936 | R49: 1524.682217 | S49: 1517.058806 | T49: 1509.473512 | U49: 1501.926144 | V49: 1494.416513 | W49: 1486.944431 | X49: 1479.509709 | Y49: 1472.11216 | Z49: 1464.751599 | AA49: 1457.427841 | AB49: 1450.140702 | AC49: 1442.889999 | AD49: 1435.675549 | AE49: 1428.497171
A51: Homeowner Analysis
A52: Energy Cost Savings (from electric heater) | B52: =IF(B43<=$B$25,-($B$26-$B$29)*12*RetailEnergyCost*(1+RetailEnergyCostEscalation)^(B$43-1),0) -> 259.16 | C52: =IF(C43<=$B$25,-($B$26-$B$29)*12*RetailEnergyCost*(1+RetailEnergyCostEscalation)^(C43-1),0) -> 264.3432 | D52: 269.630064 | E52: 275.0226653 | F52: 280.5231186 | G52: 286.133581 | H52: 291.8562526 | I52: 297.6933776 | J52: 303.6472452 | K52: 309.7201901 | L52: 0 | M52: 0 | N52: 0 | O52: 0 | P52: 0
A53: Net Costs/Benefits | B53: =B52+B59 -> 246.3281247 | C53: 251.5113247 | D53: 256.7981887 | E53: 275.0226653 | F53: 280.5231186 | G53: 286.133581 | H53: 291.8562526 | I53: 297.6933776 | J53: 303.6472452 | K53: 309.7201901 | L53: 0 | M53: 0 | N53: 0 | O53: 0 | P53: 0
A54: Cumulative Costs/Benefits | B54: =B53 -> 246.3281247 | C54: =C53+B54 -> 497.8394495 | D54: =IF(C43<=$B$25,D53+C54,) -> 754.6376382 | E54: 1029.660303 | F54: 1310.183422 | G54: 1596.317003 | H54: 1888.173256 | I54: 2185.866633 | J54: 2489.513878 | K54: 2799.234068 | L54: 2799.234068 | M54: 0 | N54: 0 | O54: 0 | P54: 0
A55: Energy Cost Savings (from gas heater) | B55: =IF(B$43<=$B$25,$B$34*$B$36*(1+$B$37)^(B$43-1)-$B$26*12*RetailEnergyCost*(1+RetailEnergyCostEscalation)^(B$43-1),0) -> 47.73762777 | C55: 46.08871591 | D55: 44.39380749 | E55: 42.65191749 | F55: 40.86204085 | G55: 39.02315211 | H55: 37.13420495 | I55: 35.19413179 | J55: 33.20184339 | K55: 31.15622835 | L55: 0 | M55: 0 | N55: 0 | O55: 0 | P55: 0
A56: Net Costs/Benefits | B56: =B59+B55 -> 34.9057525 | C56: 33.25684064 | D56: 31.56193222 | E56: 42.65191749 | F56: 40.86204085 | G56: 39.02315211 | H56: 37.13420495 | I56: 35.19413179 | J56: 33.20184339 | K56: 31.15622835 | L56: 0 | M56: 0 | N56: 0 | O56: 0 | P56: 0
A57: Cumulative Costs/Benefits | B57: =B56 -> 34.9057525 | C57: =IF(C43<=$B$25,C56+B57,) -> 68.16259314 | D57: 99.72452536 | E57: 142.3764428 | F57: 183.2384837 | G57: 222.2616358 | H57: 259.3958408 | I57: 294.5899726 | J57: 327.7918159 | K57: 358.9480443 | L57: 0 | M57: 0 | N57: 0 | O57: 0 | P57: 0
A59: On-bill financing payment | B59: =IF(B43<=$B$19,PMT($B$20/12,12*$B$19,$B$16),) -> -12.83187527 | C59: -12.83187527 | D59: -12.83187527 | E59: 0 | F59: 0 | G59: 0 | H59: 0 | I59: 0 | J59: 0 | K59: 0 | L59: 0 | M59: 0 | N59: 0 | O59: 0 | P59: 0
A62: Key Performace Indicator | C62: Electric Htr | D62: Gas Heater
A63: Costs: | B63: $ | C63: =SUM(B59:P59) -> -38.49562582 | D63: =SUM(B59:P59) -> -38.49562582
A64: Benefits: | B64: $ | C64: =SUM(B52:P52) -> 2837.729694 | D64: =SUM(B55:P55) -> 397.4436701
A65: Net Benefits: | B65: $ | C65: 2799.234068 | D65: 358.9480443
A66: Net Present Value (NPV): | B66: $ | C66: =NPV('Key_Assumptions_&_Inputs'!E60,B53:P53) -> 2034.573765 | D66: =NPV('Key_Assumptions_&_Inputs'!E60,B56:P56) -> 264.6842179
A67: B/C Ratio | C67: =-C64/C63 -> 73.71564 | D67: 10.32438522
A68: Return on Investment (ROI): | B68: % | C68: =-C65/C63 -> 72.71564 | D68: 9.324385217
A69: Year 1 Net Benefits: | B69: $ | C69: =B53 -> 246.3281247 | D69: =B56 -> 34.9057525

Sheet Admin_&_Transaction_Costs
A1: Administrative and Transactional Costs: The purpose of this tab is to represent the administrative and transactional costs for the community solar program. Cells in blue font may be overridden.
B7: Assumptions (from Key_Assumptions_&_Inputs Tab)
B8: System Size: | D8: ='Key_Assumptions_&_Inputs'!E22 -> 1200 | E8: kW
B9: Number of Panels: | D9: ='Key_Assumptions_&_Inputs'!E39 -> 12000
B10: Panels per Subscriber: | D10: ='Key_Assumptions_&_Inputs'!E26 -> 40
B11: Number of Subscribers at Full Subscription (after Anchors) | D11: =(D9/D10)*D12 -> 300
B12: Full Subscription Rate (after Anchors) | D12: =1-'Key_Assumptions_&_Inputs'!E52 -> 1
B13: Labor Rate | D13: ='Key_Assumptions_&_Inputs'!J73 -> 25 | E13: /hour
B14: Labor Rate Escalator | D14: ='Key_Assumptions_&_Inputs'!J74 -> 0.03
B15: Subscriber Acquisition Difficulty | D15: ='Key_Assumptions_&_Inputs'!J72 -> Easy
B18: Total Upfront Administrative Costs (Year 1) | D18: Total ($) | E18: $/W | G18: $/Subscriber
B19: Marketing & Communications | D19: =I42 -> 40600 | E19: =(D19/$D$8)/1000 -> 0.03383333333 | G19: =D19/$D$11 -> 135.3333333
B20: Customer Acquisition Setup | D20: =I54 -> 6950 | E20: 0.005791666667 | G20: 23.16666667
B21: Outreach Setup | D21: =I60 -> 1200 | E21: 0.001 | G21: 4
B22: Admin Setup | D22: =I65 -> 700 | E22: 0.0005833333333 | G22: 2.333333333
B23: Year 1 Subscriber Management Costs | D23: =E79 -> 46475 | E23: 0.03872916667 | G23: 154.9166667
B24: TOTAL UPFRONT COSTS | D24: =SUM(D19:D23) -> 95925 | E24: 0.0799375 | G24: 319.75
B26: Total Lifetime Subsciber Management Costs (year 2-25) | D26: Total ($) | E26: $/W | G26: $/Subscriber
B27: Outreach | D27: =AI74-E95 -> 9215.140287 | E27: =(D27/$D$8)/1000 -> 0.007679283572 | G27: =D27/$D$11 -> 30.71713429
B28: Sales | D28: =AI75-E101 -> 467.1067145 | E28: 0.0003892555954 | G28: 1.557022382
B29: Sign-up Transaction | D29: =AI76-E107 -> 311.4044763 | E29: 0.0002595037303 | G29: 1.038014921
B30: Customer Service | D30: =AI77-E115 -> 2122.551555 | E30: 0.001768792962 | G30: 7.075171849
B31: Billing Admin | D31: =AI78-E121 -> 149474.1486 | E31: 0.1245617905 | G31: 498.2471621
B32: TOTAL ONGOING-TRANSACTIONAL COSTS | D32: =SUM(D27:D31) -> 161590.3517 | E32: 0.1346586264 | G32: 538.6345055
B35: UPFRONT COSTS
B37: Marketing & Communications | D37: $/W | E37: Labor Hours | F37: Labor Rate | G37: Labor Cost | H37: OOP Cost | I37: TOTAL Cost
B38: Messaging | D38: =I38/($D$8*1000) -> 0.0004166666667 | E38: 20 | F38: =$D$13 -> 25 | G38: =E38*F38 -> 500 | H38: 0 | I38: =G38+H38 -> 500
B39: Marketing Materials | D39: 0.01291666667 | E39: =IF('Key_Assumptions_&_Inputs'!$J$72="Easy",20,IF('Key_Assumptions_&_Inputs'!$J$72="Moderate",20,IF('Key_Assumptions_&_Inputs'!$J$72="Difficult",40))) -> 20 | F39: 25 | G39: 500 | H39: =D11*J39 -> 15000 | I39: 15500 | J39: 50 | K39: Marketing Materials Rate per Subscriber
B40: Media Buy | D40: 0.01916666667 | E40: =IF('Key_Assumptions_&_Inputs'!$J$72="Easy",20,IF('Key_Assumptions_&_Inputs'!$J$72="Moderate",20,IF('Key_Assumptions_&_Inputs'!$J$72="Difficult",40))) -> 20 | F40: 25 | G40: 500 | H40: =D11*J40 -> 22500 | I40: 23000 | J40: 75 | K40: Media Buy Rate per Subscriber
B41: Website | D41: 0.001333333333 | E41: =IF('Key_Assumptions_&_Inputs'!$J$72="Easy",24,IF('Key_Assumptions_&_Inputs'!$J$72="Moderate",28,IF('Key_Assumptions_&_Inputs'!$J$72="Difficult",32))) -> 24 | F41: 25 | G41: 600 | H41: 1000 | I41: 1600
G42: =SUM(G38:G41) -> 2100 | H42: 38500 | I42: 40600
B44: Customer Acquisition-Call Center Setup | D44: $/W | E44: Labor Hours | F44: Labor Rate | G44: Labor Cost | H44: OOP Cost | I44: TOTAL Cost
B45: Email setup | D45: =I45/($D$8*1000) -> 0.0002916666667 | E45: 4 | F45: =$D$13 -> 25 | G45: =E45*F45 -> 100 | H45: 250 | I45: =G45+H45 -> 350
B46: Templates and SOPs | D46: 0.0003333333333 | E46: 16 | F46: 25 | G46: 400 | H46: 0 | I46: 400
B47: Live chat setup | D47: 0.0003333333333 | E47: 16 | F47: 25 | G47: 400 | H47: 0 | I47: 400
B48: CIS integration | D48: 0.002583333333 | E48: 24 | F48: 25 | G48: 600 | H48: 2500 | I48: 3100
B49: E-pay solution integration | D49: 0.001208333333 | E49: 18 | F49: 25 | G49: 450 | H49: 1000 | I49: 1450
B50: Phone # | D50: 0.00025 | E50: 2 | F50: 25 | G50: 50 | H50: 250 | I50: 300
B51: Training prep | D51: 0.00025 | E51: 12 | F51: 25 | G51: 300 | H51: 0 | I51: 300
B52: Training execution | D52: 0.0004166666667 | E52: 20 | F52: 25 | G52: 500 | H52: 0 | I52: 500
B53: IVR Setup | D53: 0.000125 | E53: 6 | F53: 25 | G53: 150 | H53: 0 | I53: 150
G54: =SUM(G45:G53) -> 2950 | H54: 4000 | I54: 6950
B56: Outreach Setup | D56: $/W | E56: Labor Hours | F56: Labor Rate | G56: Labor Cost | H56: OOP Cost | I56: TOTAL Cost
B57: Training prep | D57: =I57/($D$8*1000) -> 0.0003333333333 | E57: 16 | F57: =$D$13 -> 25 | G57: =E57*F57 -> 400 | H57: 0 | I57: =G57+H57 -> 400
B58: Training execution | D58: 0.0004166666667 | E58: 20 | F58: 25 | G58: 500 | H58: 0 | I58: 500
B59: SOPs | D59: 0.00025 | E59: 12 | F59: 25 | G59: 300 | H59: 0 | I59: 300
G60: =SUM(G57:G59) -> 1200 | H60: 0 | I60: 1200
B62: Admin | D62: $/W | E62: Labor Hours | F62: Labor Rate | G62: Labor Cost | H62: OOP Cost | I62: TOTAL Cost
B63: Billing templates and setup | D63: =IF('Key_Assumptions_&_Inputs'!$E$16="Power Purchase Agreement","N/A",I63/($D$8*1000)) -> 0.0004166666667 | E63: 20 | F63: =$D$13 -> 25 | G63: =E63*F63 -> 500 | H63: 0 | I63: =G63+H63 -> 500
B64: SOPs | D64: =IF('Key_Assumptions_&_Inputs'!$E$16="Power Purchase Agreement","N/A",I64/($D$8*1000)) -> 0.0001666666667 | E64: 8 | F64: 25 | G64: 200 | H64: 0 | I64: 200
G65: =SUM(G63:G64) -> 700 | H65: 0 | I65: 700
B67: TOTAL UPFRONT COSTS | D67: $/W | E67: Labor Hours | F67: Labor Rate | G67: Labor Cost | H67: OOP Cost | I67: TOTAL Cost
D68: =I68/($D$8*1000) -> 0.04120833333 | E68: N/A | F68: N/A | G68: =G42+G54+G65+G60 -> 6950 | H68: 42500 | I68: 49450
B71: TRANSACTIONAL COSTS
B73: Customer Acquisition | D73: $/W | E73: 1 | F73: =E73+1 -> 2 | G73: 3 | H73: 4 | I73: 5 | J73: 6 | K73: 7 | L73: 8 | M73: 9 | N73: 10 | O73: 11 | P73: 12 | Q73: 13 | R73: 14 | S73: 15 | T73: 16 | U73: 17 | V73: 18 | W73: 19 | X73: 20 | Y73: 21 | Z73: 22 | AA73: 23 | AB73: 24 | AC73: 25 | AD73: 26 | AE73: 27 | AF73: 28 | AG73: 29 | AH73: 30 | AI73: TOTAL
B74: Outreach | D74: =AI74/($D$8*1000) -> 0.03580428357 | E74: =E95 -> 33750 | F74: 467.859375 | G74: 451.6296328 | H74: 455.0535218 | I74: 458.5801275 | J74: 462.2125313 | K74: 465.9539072 | L74: 469.8075244 | M74: 473.7767502 | N74: 477.8650527 | O74: 482.0760042 | P74: 486.4132844 | Q74: 490.8806829 | R74: 495.4821034 | S74: 500.2215665 | T74: 505.1032135 | U74: 510.1313099 | V74: 515.3102492 | W74: 520.6445567 | X74: 526.1388934 | Y74: 0 | Z74: 0 | AA74: 0 | AB74: 0 | AC74: 0 | AD74: 0 | AE74: 0 | AF74: 0 | AG74: 0 | AH74: 0 | AI74: =SUMIF(E$73:AH$73,"<="&SubscriptionLife,E74:AH74) -> 42965.14029
B75: Sales | D75: 0.001951755595 | E75: =E101 -> 1875 | F75: 21.7265625 | G75: 19.02160547 | H75: 19.59225363 | I75: 20.18002124 | J75: 20.78542188 | K75: 21.40898454 | L75: 22.05125407 | M75: 22.71279169 | N75: 23.39417544 | O75: 24.09600071 | P75: 24.81888073 | Q75: 25.56344715 | R75: 26.33035057 | S75: 27.12026108 | T75: 27.93386891 | U75: 28.77188498 | V75: 29.63504153 | W75: 30.52409278 | X75: 31.43981556 | Y75: 0 | Z75: 0 | AA75: 0 | AB75: 0 | AC75: 0 | AD75: 0 | AE75: 0 | AF75: 0 | AG75: 0 | AH75: 0 | AI75: 2342.106714
B76: Sign-up transaction | D76: 0.001301170397 | E76: =E107 -> 1250 | F76: 14.484375 | G76: 12.68107031 | H76: 13.06150242 | I76: 13.45334749 | J76: 13.85694792 | K76: 14.27265636 | L76: 14.70083605 | M76: 15.14186113 | N76: 15.59611696 | O76: 16.06400047 | P76: 16.54592049 | Q76: 17.0422981 | R76: 17.55356704 | S76: 18.08017405 | T76: 18.62257928 | U76: 19.18125665 | V76: 19.75669435 | W76: 20.34939519 | X76: 20.95987704 | Y76: 0 | Z76: 0 | AA76: 0 | AB76: 0 | AC76: 0 | AD76: 0 | AE76: 0 | AF76: 0 | AG76: 0 | AH76: 0 | AI76: 1561.404476
B77: Customer service | D77: 0.002268792962 | E77: =E115 -> 600 | F77: 347.625 | G77: 258.6938344 | H77: 133.2273247 | I77: 68.61207222 | J77: 70.67043439 | K77: 72.79054742 | L77: 74.97426384 | M77: 77.22349176 | N77: 79.54019651 | O77: 81.92640241 | P77: 84.38419448 | Q77: 86.91572031 | R77: 89.52319192 | S77: 92.20888768 | T77: 94.97515431 | U77: 97.82440894 | V77: 100.7591412 | W77: 103.7819154 | X77: 106.8953729 | Y77: 0 | Z77: 0 | AA77: 0 | AB77: 0 | AC77: 0 | AD77: 0 | AE77: 0 | AF77: 0 | AG77: 0 | AH77: 0 | AI77: 2722.551555
B78: Billing admin | D78: 0.1320617905 | E78: =E121 -> 9000 | F78: 6952.5 | G78: 6086.91375 | H78: 6269.521162 | I78: 6457.606797 | J78: 6651.335001 | K78: 6850.875051 | L78: 7056.401303 | M78: 7268.093342 | N78: 7486.136142 | O78: 7710.720226 | P78: 7942.041833 | Q78: 8180.303088 | R78: 8425.712181 | S78: 8678.483546 | T78: 8938.838053 | U78: 9207.003194 | V78: 9483.21329 | W78: 9767.709689 | X78: 10060.74098 | Y78: 0 | Z78: 0 | AA78: 0 | AB78: 0 | AC78: 0 | AD78: 0 | AE78: 0 | AF78: 0 | AG78: 0 | AH78: 0 | AI78: 158474.1486
B79: TOTAL ONGOING COSTS | D79: 0.1733877931 | E79: =SUM(E74:E78) -> 46475 | F79: 7804.195312 | G79: 6828.939893 | H79: 6890.455765 | I79: 7018.432366 | J79: 7218.860337 | K79: 7425.301147 | L79: 7637.935181 | M79: 7856.948237 | N79: 8082.531684 | O79: 8314.882634 | P79: 8554.204113 | Q79: 8800.705237 | R79: 9054.601394 | S79: 9316.114436 | T79: 9585.472869 | U79: 9862.912055 | V79: 10148.67442 | W79: 10443.00965 | X79: 10746.17494 | Y79: 0 | Z79: 0 | AA79: 0 | AB79: 0 | AC79: 0 | AD79: 0 | AE79: 0 | AF79: 0 | AG79: 0 | AH79: 0 | AI79: 208065.3517
B82: Subscriber Assumptions | E82: 1 | F82: =E82+1 -> 2 | G82: 3 | H82: 4 | I82: 5 | J82: 6 | K82: 7 | L82: 8 | M82: 9 | N82: 10 | O82: 11 | P82: 12 | Q82: 13 | R82: 14 | S82: 15 | T82: 16 | U82: 17 | V82: 18 | W82: 19 | X82: 20 | Y82: 21 | Z82: 22 | AA82: 23 | AB82: 24 | AC82: 25 | AD82: 26 | AE82: 27 | AF82: 28 | AG82: 29 | AH82: 30
B83: Annual Cumulative Subscription Rate | E83: =Community_Solar_Business_Case!E25/((1-'Key_Assumptions_&_Inputs'!$E$52)*'Key_Assumptions_&_Inputs'!$E$39/'Key_Assumptions_&_Inputs'!$E$26) -> 1 | F83: =Community_Solar_Business_Case!F25/((1-'Key_Assumptions_&_Inputs'!$E$52)*'Key_Assumptions_&_Inputs'!$E$39/'Key_Assumptions_&_Inputs'!$E$26) -> 1 | G83: =Community_Solar_Business_Case!G25/((1-'Key_Assumptions_&_Inputs'!$E$52)*'Key_Assumptions_&_Inputs'!$E$39/'Key_Assumptions_&_Inputs'!$E$26) -> 1 | H83: =Community_Solar_Business_Case!H25/((1-'Key_Assumptions_&_Inputs'!$E$52)*'Key_Assumptions_&_Inputs'!$E$39/'Key_Assumptions_&_Inputs'!$E$26) -> 1 | I83: =Community_Solar_Business_Case!I25/((1-'Key_Assumptions_&_Inputs'!$E$52)*'Key_Assumptions_&_Inputs'!$E$39/'Key_Assumptions_&_Inputs'!$E$26) -> 1 | J83: =Community_Solar_Business_Case!J25/((1-'Key_Assumptions_&_Inputs'!$E$52)*'Key_Assumptions_&_Inputs'!$E$39/'Key_Assumptions_&_Inputs'!$E$26) -> 1 | K83: =Community_Solar_Business_Case!K25/((1-'Key_Assumptions_&_Inputs'!$E$52)*'Key_Assumptions_&_Inputs'!$E$39/'Key_Assumptions_&_Inputs'!$E$26) -> 1 | L83: =Community_Solar_Business_Case!L25/((1-'Key_Assumptions_&_Inputs'!$E$52)*'Key_Assumptions_&_Inputs'!$E$39/'Key_Assumptions_&_Inputs'!$E$26) -> 1 | M83: =Community_Solar_Business_Case!M25/((1-'Key_Assumptions_&_Inputs'!$E$52)*'Key_Assumptions_&_Inputs'!$E$39/'Key_Assumptions_&_Inputs'!$E$26) -> 1 | N83: =Community_Solar_Business_Case!N25/((1-'Key_Assumptions_&_Inputs'!$E$52)*'Key_Assumptions_&_Inputs'!$E$39/'Key_Assumptions_&_Inputs'!$E$26) -> 1 | O83: =Community_Solar_Business_Case!O25/((1-'Key_Assumptions_&_Inputs'!$E$52)*'Key_Assumptions_&_Inputs'!$E$39/'Key_Assumptions_&_Inputs'!$E$26) -> 1 | P83: =Community_Solar_Business_Case!P25/((1-'Key_Assumptions_&_Inputs'!$E$52)*'Key_Assumptions_&_Inputs'!$E$39/'Key_Assumptions_&_Inputs'!$E$26) -> 1 | Q83: =Community_Solar_Business_Case!Q25/((1-'Key_Assumptions_&_Inputs'!$E$52)*'Key_Assumptions_&_Inputs'!$E$39/'Key_Assumptions_&_Inputs'!$E$26) -> 1 | R83: =Community_Solar_Business_Case!R25/((1-'Key_Assumptions_&_Inputs'!$E$52)*'Key_Assumptions_&_Inputs'!$E$39/'Key_Assumptions_&_Inputs'!$E$26) -> 1 | S83: =Community_Solar_Business_Case!S25/((1-'Key_Assumptions_&_Inputs'!$E$52)*'Key_Assumptions_&_Inputs'!$E$39/'Key_Assumptions_&_Inputs'!$E$26) -> 1 | T83: =Community_Solar_Business_Case!T25/((1-'Key_Assumptions_&_Inputs'!$E$52)*'Key_Assumptions_&_Inputs'!$E$39/'Key_Assumptions_&_Inputs'!$E$26) -> 1 | U83: =Community_Solar_Business_Case!U25/((1-'Key_Assumptions_&_Inputs'!$E$52)*'Key_Assumptions_&_Inputs'!$E$39/'Key_Assumptions_&_Inputs'!$E$26) -> 1 | V83: =Community_Solar_Business_Case!V25/((1-'Key_Assumptions_&_Inputs'!$E$52)*'Key_Assumptions_&_Inputs'!$E$39/'Key_Assumptions_&_Inputs'!$E$26) -> 1 | W83: =Community_Solar_Business_Case!W25/((1-'Key_Assumptions_&_Inputs'!$E$52)*'Key_Assumptions_&_Inputs'!$E$39/'Key_Assumptions_&_Inputs'!$E$26) -> 1 | X83: =Community_Solar_Business_Case!X25/((1-'Key_Assumptions_&_Inputs'!$E$52)*'Key_Assumptions_&_Inputs'!$E$39/'Key_Assumptions_&_Inputs'!$E$26) -> 1 | Y83: =Community_Solar_Business_Case!Y25/((1-'Key_Assumptions_&_Inputs'!$E$52)*'Key_Assumptions_&_Inputs'!$E$39/'Key_Assumptions_&_Inputs'!$E$26) -> 0 | Z83: =Community_Solar_Business_Case!Z25/((1-'Key_Assumptions_&_Inputs'!$E$52)*'Key_Assumptions_&_Inputs'!$E$39/'Key_Assumptions_&_Inputs'!$E$26) -> 0 | AA83: =Community_Solar_Business_Case!AA25/((1-'Key_Assumptions_&_Inputs'!$E$52)*'Key_Assumptions_&_Inputs'!$E$39/'Key_Assumptions_&_Inputs'!$E$26) -> 0 | AB83: =Community_Solar_Business_Case!AB25/((1-'Key_Assumptions_&_Inputs'!$E$52)*'Key_Assumptions_&_Inputs'!$E$39/'Key_Assumptions_&_Inputs'!$E$26) -> 0 | AC83: =Community_Solar_Business_Case!AC25/((1-'Key_Assumptions_&_Inputs'!$E$52)*'Key_Assumptions_&_Inputs'!$E$39/'Key_Assumptions_&_Inputs'!$E$26) -> 0 | AD83: =Community_Solar_Business_Case!AD25/((1-'Key_Assumptions_&_Inputs'!$E$52)*'Key_Assumptions_&_Inputs'!$E$39/'Key_Assumptions_&_Inputs'!$E$26) -> 0 | AE83: =Community_Solar_Business_Case!AE25/((1-'Key_Assumptions_&_Inputs'!$E$52)*'Key_Assumptions_&_Inputs'!$E$39/'Key_Assumptions_&_Inputs'!$E$26) -> 0 | AF83: =Community_Solar_Business_Case!AF25/((1-'Key_Assumptions_&_Inputs'!$E$52)*'Key_Assumptions_&_Inputs'!$E$39/'Key_Assumptions_&_Inputs'!$E$26) -> 0 | AG83: =Community_Solar_Business_Case!AG25/((1-'Key_Assumptions_&_Inputs'!$E$52)*'Key_Assumptions_&_Inputs'!$E$39/'Key_Assumptions_&_Inputs'!$E$26) -> 0 | AH83: =Community_Solar_Business_Case!AH25/((1-'Key_Assumptions_&_Inputs'!$E$52)*'Key_Assumptions_&_Inputs'!$E$39/'Key_Assumptions_&_Inputs'!$E$26) -> 0
B84: Total # Subscribers (after Anchor) | E84: =ROUNDUP(Community_Solar_Business_Case!E25,1) -> 300 | F84: =ROUNDUP(Community_Solar_Business_Case!F25,1) -> 300 | G84: =ROUNDUP(Community_Solar_Business_Case!G25,1) -> 300 | H84: =ROUNDUP(Community_Solar_Business_Case!H25,1) -> 300 | I84: =ROUNDUP(Community_Solar_Business_Case!I25,1) -> 300 | J84: =ROUNDUP(Community_Solar_Business_Case!J25,1) -> 300 | K84: =ROUNDUP(Community_Solar_Business_Case!K25,1) -> 300 | L84: =ROUNDUP(Community_Solar_Business_Case!L25,1) -> 300 | M84: =ROUNDUP(Community_Solar_Business_Case!M25,1) -> 300 | N84: =ROUNDUP(Community_Solar_Business_Case!N25,1) -> 300 | O84: =ROUNDUP(Community_Solar_Business_Case!O25,1) -> 300 | P84: =ROUNDUP(Community_Solar_Business_Case!P25,1) -> 300 | Q84: =ROUNDUP(Community_Solar_Business_Case!Q25,1) -> 300 | R84: =ROUNDUP(Community_Solar_Business_Case!R25,1) -> 300 | S84: =ROUNDUP(Community_Solar_Business_Case!S25,1) -> 300 | T84: =ROUNDUP(Community_Solar_Business_Case!T25,1) -> 300 | U84: =ROUNDUP(Community_Solar_Business_Case!U25,1) -> 300 | V84: =ROUNDUP(Community_Solar_Business_Case!V25,1) -> 300 | W84: =ROUNDUP(Community_Solar_Business_Case!W25,1) -> 300 | X84: =ROUNDUP(Community_Solar_Business_Case!X25,1) -> 300 | Y84: =ROUNDUP(Community_Solar_Business_Case!Y25,1) -> 0 | Z84: =ROUNDUP(Community_Solar_Business_Case!Z25,1) -> 0 | AA84: =ROUNDUP(Community_Solar_Business_Case!AA25,1) -> 0 | AB84: =ROUNDUP(Community_Solar_Business_Case!AB25,1) -> 0 | AC84: =ROUNDUP(Community_Solar_Business_Case!AC25,1) -> 0 | AD84: =ROUNDUP(Community_Solar_Business_Case!AD25,1) -> 0 | AE84: =ROUNDUP(Community_Solar_Business_Case!AE25,1) -> 0 | AF84: =ROUNDUP(Community_Solar_Business_Case!AF25,1) -> 0 | AG84: =ROUNDUP(Community_Solar_Business_Case!AG25,1) -> 0 | AH84: =ROUNDUP(Community_Solar_Business_Case!AH25,1) -> 0
B85: Annual Subscriber Loss | E85: =ROUNDUP(Community_Solar_Business_Case!E24,1) -> 0 | F85: =ROUNDUP(Community_Solar_Business_Case!F24,1) -> 4.5 | G85: =ROUNDUP(Community_Solar_Business_Case!G24,1) -> 4.5 | H85: =ROUNDUP(Community_Solar_Business_Case!H24,1) -> 4.5 | I85: =ROUNDUP(Community_Solar_Business_Case!I24,1) -> 4.5 | J85: =ROUNDUP(Community_Solar_Business_Case!J24,1) -> 4.5 | K85: =ROUNDUP(Community_Solar_Business_Case!K24,1) -> 4.5 | L85: =ROUNDUP(Community_Solar_Business_Case!L24,1) -> 4.5 | M85: =ROUNDUP(Community_Solar_Business_Case!M24,1) -> 4.5 | N85: =ROUNDUP(Community_Solar_Business_Case!N24,1) -> 4.5 | O85: =ROUNDUP(Community_Solar_Business_Case!O24,1) -> 4.5 | P85: =ROUNDUP(Community_Solar_Business_Case!P24,1) -> 4.5 | Q85: =ROUNDUP(Community_Solar_Business_Case!Q24,1) -> 4.5 | R85: =ROUNDUP(Community_Solar_Business_Case!R24,1) -> 4.5 | S85: =ROUNDUP(Community_Solar_Business_Case!S24,1) -> 4.5 | T85: =ROUNDUP(Community_Solar_Business_Case!T24,1) -> 4.5 | U85: =ROUNDUP(Community_Solar_Business_Case!U24,1) -> 4.5 | V85: =ROUNDUP(Community_Solar_Business_Case!V24,1) -> 4.5 | W85: =ROUNDUP(Community_Solar_Business_Case!W24,1) -> 4.5 | X85: =ROUNDUP(Community_Solar_Business_Case!X24,1) -> 4.5 | Y85: =ROUNDUP(Community_Solar_Business_Case!Y24,1) -> 0 | Z85: =ROUNDUP(Community_Solar_Business_Case!Z24,1) -> 0 | AA85: =ROUNDUP(Community_Solar_Business_Case!AA24,1) -> 0 | AB85: =ROUNDUP(Community_Solar_Business_Case!AB24,1) -> 0 | AC85: =ROUNDUP(Community_Solar_Business_Case!AC24,1) -> 0 | AD85: =ROUNDUP(Community_Solar_Business_Case!AD24,1) -> 0 | AE85: =ROUNDUP(Community_Solar_Business_Case!AE24,1) -> 0 | AF85: =ROUNDUP(Community_Solar_Business_Case!AF24,1) -> 0 | AG85: =ROUNDUP(Community_Solar_Business_Case!AG24,1) -> 0 | AH85: =ROUNDUP(Community_Solar_Business_Case!AH24,1) -> 0 | AJ85: Efficiency of tasks over previous year
B86: Annual Subscriber Gain | E86: =ROUNDUP(Community_Solar_Business_Case!E23,1) -> 300 | F86: =ROUNDUP(Community_Solar_Business_Case!F23,1) -> 4.5 | G86: =ROUNDUP(Community_Solar_Business_Case!G23,1) -> 4.5 | H86: =ROUNDUP(Community_Solar_Business_Case!H23,1) -> 4.5 | I86: =ROUNDUP(Community_Solar_Business_Case!I23,1) -> 4.5 | J86: =ROUNDUP(Community_Solar_Business_Case!J23,1) -> 4.5 | K86: =ROUNDUP(Community_Solar_Business_Case!K23,1) -> 4.5 | L86: =ROUNDUP(Community_Solar_Business_Case!L23,1) -> 4.5 | M86: =ROUNDUP(Community_Solar_Business_Case!M23,1) -> 4.5 | N86: =ROUNDUP(Community_Solar_Business_Case!N23,1) -> 4.5 | O86: =ROUNDUP(Community_Solar_Business_Case!O23,1) -> 4.5 | P86: =ROUNDUP(Community_Solar_Business_Case!P23,1) -> 4.5 | Q86: =ROUNDUP(Community_Solar_Business_Case!Q23,1) -> 4.5 | R86: =ROUNDUP(Community_Solar_Business_Case!R23,1) -> 4.5 | S86: =ROUNDUP(Community_Solar_Business_Case!S23,1) -> 4.5 | T86: =ROUNDUP(Community_Solar_Business_Case!T23,1) -> 4.5 | U86: =ROUNDUP(Community_Solar_Business_Case!U23,1) -> 4.5 | V86: =ROUNDUP(Community_Solar_Business_Case!V23,1) -> 4.5 | W86: =ROUNDUP(Community_Solar_Business_Case!W23,1) -> 4.5 | X86: =ROUNDUP(Community_Solar_Business_Case!X23,1) -> 4.5 | Y86: =ROUNDUP(Community_Solar_Business_Case!Y23,1) -> 0 | Z86: =ROUNDUP(Community_Solar_Business_Case!Z23,1) -> 0 | AA86: =ROUNDUP(Community_Solar_Business_Case!AA23,1) -> 0 | AB86: =ROUNDUP(Community_Solar_Business_Case!AB23,1) -> 0 | AC86: =ROUNDUP(Community_Solar_Business_Case!AC23,1) -> 0 | AD86: =ROUNDUP(Community_Solar_Business_Case!AD23,1) -> 0 | AE86: =ROUNDUP(Community_Solar_Business_Case!AE23,1) -> 0 | AF86: =ROUNDUP(Community_Solar_Business_Case!AF23,1) -> 0 | AG86: =ROUNDUP(Community_Solar_Business_Case!AG23,1) -> 0 | AH86: =ROUNDUP(Community_Solar_Business_Case!AH23,1) -> 0 | AJ86: Year 1 | AK86: Year 2 | AL86: Year 3
AJ87: NA | AK87: 0.25 | AL87: 0.15
B89: Outreach | E89: 1 | F89: =E89+1 -> 2 | G89: 3 | H89: 4 | I89: 5 | J89: 6 | K89: 7 | L89: 8 | M89: 9 | N89: 10 | O89: 11 | P89: 12 | Q89: 13 | R89: 14 | S89: 15 | T89: 16 | U89: 17 | V89: 18 | W89: 19 | X89: 20 | Y89: 21 | Z89: 22 | AA89: 23 | AB89: 24 | AC89: 25 | AD89: 26 | AE89: 27 | AF89: 28 | AG89: 29 | AH89: 30 | AJ89: Outreach hours per subscriber
B90: Media Buy | E90: =E86*$J$40 -> 22500 | F90: 337.5 | G90: 337.5 | H90: 337.5 | I90: 337.5 | J90: 337.5 | K90: 337.5 | L90: 337.5 | M90: 337.5 | N90: 337.5 | O90: 337.5 | P90: 337.5 | Q90: 337.5 | R90: 337.5 | S90: 337.5 | T90: 337.5 | U90: 337.5 | V90: 337.5 | W90: 337.5 | X90: 337.5 | Y90: 0 | Z90: 0 | AA90: 0 | AB90: 0 | AC90: 0 | AD90: 0 | AE90: 0 | AF90: 0 | AG90: 0 | AH90: 0 | AJ90: Year 1 | AK90: Year 2 | AL90: Year 3+
B91: Media Buy Rate / Subscriber | E91: =J40 -> 75 | F91: =E91*1.03 -> 77.25 | G91: 79.5675 | H91: 81.954525 | I91: 84.41316075 | J91: 86.94555557 | K91: 89.55392224 | L91: 92.24053991 | M91: 95.0077561 | N91: 97.85798879 | O91: 100.7937285 | P91: 103.8175403 | Q91: 106.9320665 | R91: 110.1400285 | S91: 113.4442294 | T91: 116.8475562 | U91: 120.3529829 | V91: 123.9635724 | W91: 127.6824796 | X91: 131.512954 | Y91: 135.4583426 | Z91: 139.5220929 | AA91: 143.7077557 | AB91: 148.0189883 | AC91: 152.459558 | AD91: 157.0333447 | AE91: 161.7443451 | AF91: 166.5966754 | AG91: 171.5945757 | AH91: 176.742413 | AJ91: Hours | AK91: Hours | AL91: Hours
B92: Outreach hours per subscriber | E92: =IF('Key_Assumptions_&_Inputs'!$J$72="Easy",$AJ$92,IF('Key_Assumptions_&_Inputs'!$J$72="Moderate",$AJ$93,IF('Key_Assumptions_&_Inputs'!$J$72="Difficult",$AJ$94))) -> 1.5 | F92: =IF('Key_Assumptions_&_Inputs'!$J$72="Easy",$AK$92,IF('Key_Assumptions_&_Inputs'!$J$72="Moderate",$AK$93,IF('Key_Assumptions_&_Inputs'!$J$72="Difficult",$AK$94))) -> 1.125 | G92: =IF('Key_Assumptions_&_Inputs'!$J$72="Easy",$AL$92,IF('Key_Assumptions_&_Inputs'!$J$72="Moderate",$AL$93,IF('Key_Assumptions_&_Inputs'!$J$72="Difficult",$AL$94))) -> 0.95625 | H92: =IF('Key_Assumptions_&_Inputs'!$J$72="Easy",$AL$92,IF('Key_Assumptions_&_Inputs'!$J$72="Moderate",$AL$93,IF('Key_Assumptions_&_Inputs'!$J$72="Difficult",$AL$94))) -> 0.95625 | I92: =IF('Key_Assumptions_&_Inputs'!$J$72="Easy",$AL$92,IF('Key_Assumptions_&_Inputs'!$J$72="Moderate",$AL$93,IF('Key_Assumptions_&_Inputs'!$J$72="Difficult",$AL$94))) -> 0.95625 | J92: =IF('Key_Assumptions_&_Inputs'!$J$72="Easy",$AL$92,IF('Key_Assumptions_&_Inputs'!$J$72="Moderate",$AL$93,IF('Key_Assumptions_&_Inputs'!$J$72="Difficult",$AL$94))) -> 0.95625 | K92: =IF('Key_Assumptions_&_Inputs'!$J$72="Easy",$AL$92,IF('Key_Assumptions_&_Inputs'!$J$72="Moderate",$AL$93,IF('Key_Assumptions_&_Inputs'!$J$72="Difficult",$AL$94))) -> 0.95625 | L92: =IF('Key_Assumptions_&_Inputs'!$J$72="Easy",$AL$92,IF('Key_Assumptions_&_Inputs'!$J$72="Moderate",$AL$93,IF('Key_Assumptions_&_Inputs'!$J$72="Difficult",$AL$94))) -> 0.95625 | M92: =IF('Key_Assumptions_&_Inputs'!$J$72="Easy",$AL$92,IF('Key_Assumptions_&_Inputs'!$J$72="Moderate",$AL$93,IF('Key_Assumptions_&_Inputs'!$J$72="Difficult",$AL$94))) -> 0.95625 | N92: =IF('Key_Assumptions_&_Inputs'!$J$72="Easy",$AL$92,IF('Key_Assumptions_&_Inputs'!$J$72="Moderate",$AL$93,IF('Key_Assumptions_&_Inputs'!$J$72="Difficult",$AL$94))) -> 0.95625 | O92: =IF('Key_Assumptions_&_Inputs'!$J$72="Easy",$AL$92,IF('Key_Assumptions_&_Inputs'!$J$72="Moderate",$AL$93,IF('Key_Assumptions_&_Inputs'!$J$72="Difficult",$AL$94))) -> 0.95625 | P92: =IF('Key_Assumptions_&_Inputs'!$J$72="Easy",$AL$92,IF('Key_Assumptions_&_Inputs'!$J$72="Moderate",$AL$93,IF('Key_Assumptions_&_Inputs'!$J$72="Difficult",$AL$94))) -> 0.95625 | Q92: =IF('Key_Assumptions_&_Inputs'!$J$72="Easy",$AL$92,IF('Key_Assumptions_&_Inputs'!$J$72="Moderate",$AL$93,IF('Key_Assumptions_&_Inputs'!$J$72="Difficult",$AL$94))) -> 0.95625 | R92: =IF('Key_Assumptions_&_Inputs'!$J$72="Easy",$AL$92,IF('Key_Assumptions_&_Inputs'!$J$72="Moderate",$AL$93,IF('Key_Assumptions_&_Inputs'!$J$72="Difficult",$AL$94))) -> 0.95625 | S92: =IF('Key_Assumptions_&_Inputs'!$J$72="Easy",$AL$92,IF('Key_Assumptions_&_Inputs'!$J$72="Moderate",$AL$93,IF('Key_Assumptions_&_Inputs'!$J$72="Difficult",$AL$94))) -> 0.95625 | T92: =IF('Key_Assumptions_&_Inputs'!$J$72="Easy",$AL$92,IF('Key_Assumptions_&_Inputs'!$J$72="Moderate",$AL$93,IF('Key_Assumptions_&_Inputs'!$J$72="Difficult",$AL$94))) -> 0.95625 | U92: =IF('Key_Assumptions_&_Inputs'!$J$72="Easy",$AL$92,IF('Key_Assumptions_&_Inputs'!$J$72="Moderate",$AL$93,IF('Key_Assumptions_&_Inputs'!$J$72="Difficult",$AL$94))) -> 0.95625 | V92: =IF('Key_Assumptions_&_Inputs'!$J$72="Easy",$AL$92,IF('Key_Assumptions_&_Inputs'!$J$72="Moderate",$AL$93,IF('Key_Assumptions_&_Inputs'!$J$72="Difficult",$AL$94))) -> 0.95625 | W92: =IF('Key_Assumptions_&_Inputs'!$J$72="Easy",$AL$92,IF('Key_Assumptions_&_Inputs'!$J$72="Moderate",$AL$93,IF('Key_Assumptions_&_Inputs'!$J$72="Difficult",$AL$94))) -> 0.95625 | X92: =IF('Key_Assumptions_&_Inputs'!$J$72="Easy",$AL$92,IF('Key_Assumptions_&_Inputs'!$J$72="Moderate",$AL$93,IF('Key_Assumptions_&_Inputs'!$J$72="Difficult",$AL$94))) -> 0.95625 | Y92: =IF('Key_Assumptions_&_Inputs'!$J$72="Easy",$AL$92,IF('Key_Assumptions_&_Inputs'!$J$72="Moderate",$AL$93,IF('Key_Assumptions_&_Inputs'!$J$72="Difficult",$AL$94))) -> 0.95625 | Z92: =IF('Key_Assumptions_&_Inputs'!$J$72="Easy",$AL$92,IF('Key_Assumptions_&_Inputs'!$J$72="Moderate",$AL$93,IF('Key_Assumptions_&_Inputs'!$J$72="Difficult",$AL$94))) -> 0.95625 | AA92: =IF('Key_Assumptions_&_Inputs'!$J$72="Easy",$AL$92,IF('Key_Assumptions_&_Inputs'!$J$72="Moderate",$AL$93,IF('Key_Assumptions_&_Inputs'!$J$72="Difficult",$AL$94))) -> 0.95625 | AB92: =IF('Key_Assumptions_&_Inputs'!$J$72="Easy",$AL$92,IF('Key_Assumptions_&_Inputs'!$J$72="Moderate",$AL$93,IF('Key_Assumptions_&_Inputs'!$J$72="Difficult",$AL$94))) -> 0.95625 | AC92: =IF('Key_Assumptions_&_Inputs'!$J$72="Easy",$AL$92,IF('Key_Assumptions_&_Inputs'!$J$72="Moderate",$AL$93,IF('Key_Assumptions_&_Inputs'!$J$72="Difficult",$AL$94))) -> 0.95625 | AD92: =IF('Key_Assumptions_&_Inputs'!$J$72="Easy",$AL$92,IF('Key_Assumptions_&_Inputs'!$J$72="Moderate",$AL$93,IF('Key_Assumptions_&_Inputs'!$J$72="Difficult",$AL$94))) -> 0.95625 | AE92: =IF('Key_Assumptions_&_Inputs'!$J$72="Easy",$AL$92,IF('Key_Assumptions_&_Inputs'!$J$72="Moderate",$AL$93,IF('Key_Assumptions_&_Inputs'!$J$72="Difficult",$AL$94))) -> 0.95625 | AF92: =IF('Key_Assumptions_&_Inputs'!$J$72="Easy",$AL$92,IF('Key_Assumptions_&_Inputs'!$J$72="Moderate",$AL$93,IF('Key_Assumptions_&_Inputs'!$J$72="Difficult",$AL$94))) -> 0.95625 | AG92: =IF('Key_Assumptions_&_Inputs'!$J$72="Easy",$AL$92,IF('Key_Assumptions_&_Inputs'!$J$72="Moderate",$AL$93,IF('Key_Assumptions_&_Inputs'!$J$72="Difficult",$AL$94))) -> 0.95625 | AH92: =IF('Key_Assumptions_&_Inputs'!$J$72="Easy",$AL$92,IF('Key_Assumptions_&_Inputs'!$J$72="Moderate",$AL$93,IF('Key_Assumptions_&_Inputs'!$J$72="Difficult",$AL$94))) -> 0.95625 | AI92: Easy | AJ92: 1.5 | AK92: =AJ92*(1-AK$87) -> 1.125 | AL92: 0.95625
B93: Labor rate | E93: =$D$13 -> 25 | F93: =E93*(1+$D$14) -> 25.75 | G93: 26.5225 | H93: 27.318175 | I93: 28.13772025 | J93: 28.98185186 | K93: 29.85130741 | L93: 30.74684664 | M93: 31.66925203 | N93: 32.6193296 | O93: 33.59790948 | P93: 34.60584677 | Q93: 35.64402217 | R93: 36.71334284 | S93: 37.81474312 | T93: 38.94918542 | U93: 40.11766098 | V93: 41.32119081 | W93: 42.56082653 | X93: 43.83765133 | Y93: 45.15278087 | Z93: 46.50736429 | AA93: 47.90258522 | AB93: 49.33966278 | AC93: 50.81985266 | AD93: 52.34444824 | AE93: 53.91478169 | AF93: 55.53222514 | AG93: 57.19819189 | AH93: 58.91413765 | AI93: Moderate | AJ93: 1.75 | AK93: =AJ93*(1-AK$87) -> 1.3125 | AL93: 1.115625
B94: Outreach cost per subscriber | E94: =E92*E93 -> 37.5 | F94: 28.96875 | G94: 25.36214062 | H94: 26.12300484 | I94: 26.90669499 | J94: 27.71389584 | K94: 28.54531271 | L94: 29.4016721 | M94: 30.28372226 | N94: 31.19223393 | O94: 32.12800094 | P94: 33.09184097 | Q94: 34.0845962 | R94: 35.10713409 | S94: 36.16034811 | T94: 37.24515855 | U94: 38.36251331 | V94: 39.51338871 | W94: 40.69879037 | X94: 41.91975408 | Y94: 43.1773467 | Z94: 44.4726671 | AA94: 45.80684712 | AB94: 47.18105253 | AC94: 48.59648411 | AD94: 50.05437863 | AE94: 51.55600999 | AF94: 53.10269029 | AG94: 54.695771 | AH94: 56.33664413 | AI94: Difficult | AJ94: 2 | AK94: =AJ94*(1-AK$87) -> 1.5 | AL94: 1.275
B95: Annual costs | E95: =(E86*E94)+E90 -> 33750 | F95: 467.859375 | G95: 451.6296328 | H95: 455.0535218 | I95: 458.5801275 | J95: 462.2125313 | K95: 465.9539072 | L95: 469.8075244 | M95: 473.7767502 | N95: 477.8650527 | O95: 482.0760042 | P95: 486.4132844 | Q95: 490.8806829 | R95: 495.4821034 | S95: 500.2215665 | T95: 505.1032135 | U95: 510.1313099 | V95: 515.3102492 | W95: 520.6445567 | X95: 526.1388934 | Y95: 0 | Z95: 0 | AA95: 0 | AB95: 0 | AC95: 0 | AD95: 0 | AE95: 0 | AF95: 0 | AG95: 0 | AH95: 0
AJ96: Sales time per Subcriber
B97: Sales | E97: 1 | F97: =E97+1 -> 2 | G97: 3 | H97: 4 | I97: 5 | J97: 6 | K97: 7 | L97: 8 | M97: 9 | N97: 10 | O97: 11 | P97: 12 | Q97: 13 | R97: 14 | S97: 15 | T97: 16 | U97: 17 | V97: 18 | W97: 19 | X97: 20 | Y97: 21 | Z97: 22 | AA97: 23 | AB97: 24 | AC97: 25 | AD97: 26 | AE97: 27 | AF97: 28 | AG97: 29 | AH97: 30 | AJ97: Year 1 | AL97: Year 2 | AN97: Year 3+
B98: Sales hours per subscriber | E98: =IF('Key_Assumptions_&_Inputs'!$J$72="Easy",$AK$99,IF('Key_Assumptions_&_Inputs'!$J$72="Moderate",$AK$100,IF('Key_Assumptions_&_Inputs'!$J$72="Difficult",$AK$101))) -> 0.25 | F98: =IF('Key_Assumptions_&_Inputs'!$J$72="Easy",$AM$99,IF('Key_Assumptions_&_Inputs'!$J$72="Moderate",$AM$100,IF('Key_Assumptions_&_Inputs'!$J$72="Difficult",$AM$101))) -> 0.1875 | G98: =IF('Key_Assumptions_&_Inputs'!$J$72="Easy",$AO$99,IF('Key_Assumptions_&_Inputs'!$J$72="Moderate",$AO$100,IF('Key_Assumptions_&_Inputs'!$J$72="Difficult",$AO$101))) -> 0.159375 | H98: =IF('Key_Assumptions_&_Inputs'!$J$72="Easy",$AO$99,IF('Key_Assumptions_&_Inputs'!$J$72="Moderate",$AO$100,IF('Key_Assumptions_&_Inputs'!$J$72="Difficult",$AO$101))) -> 0.159375 | I98: =IF('Key_Assumptions_&_Inputs'!$J$72="Easy",$AO$99,IF('Key_Assumptions_&_Inputs'!$J$72="Moderate",$AO$100,IF('Key_Assumptions_&_Inputs'!$J$72="Difficult",$AO$101))) -> 0.159375 | J98: =IF('Key_Assumptions_&_Inputs'!$J$72="Easy",$AO$99,IF('Key_Assumptions_&_Inputs'!$J$72="Moderate",$AO$100,IF('Key_Assumptions_&_Inputs'!$J$72="Difficult",$AO$101))) -> 0.159375 | K98: =IF('Key_Assumptions_&_Inputs'!$J$72="Easy",$AO$99,IF('Key_Assumptions_&_Inputs'!$J$72="Moderate",$AO$100,IF('Key_Assumptions_&_Inputs'!$J$72="Difficult",$AO$101))) -> 0.159375 | L98: =IF('Key_Assumptions_&_Inputs'!$J$72="Easy",$AO$99,IF('Key_Assumptions_&_Inputs'!$J$72="Moderate",$AO$100,IF('Key_Assumptions_&_Inputs'!$J$72="Difficult",$AO$101))) -> 0.159375 | M98: =IF('Key_Assumptions_&_Inputs'!$J$72="Easy",$AO$99,IF('Key_Assumptions_&_Inputs'!$J$72="Moderate",$AO$100,IF('Key_Assumptions_&_Inputs'!$J$72="Difficult",$AO$101))) -> 0.159375 | N98: =IF('Key_Assumptions_&_Inputs'!$J$72="Easy",$AO$99,IF('Key_Assumptions_&_Inputs'!$J$72="Moderate",$AO$100,IF('Key_Assumptions_&_Inputs'!$J$72="Difficult",$AO$101))) -> 0.159375 | O98: =IF('Key_Assumptions_&_Inputs'!$J$72="Easy",$AO$99,IF('Key_Assumptions_&_Inputs'!$J$72="Moderate",$AO$100,IF('Key_Assumptions_&_Inputs'!$J$72="Difficult",$AO$101))) -> 0.159375 | P98: =IF('Key_Assumptions_&_Inputs'!$J$72="Easy",$AO$99,IF('Key_Assumptions_&_Inputs'!$J$72="Moderate",$AO$100,IF('Key_Assumptions_&_Inputs'!$J$72="Difficult",$AO$101))) -> 0.159375 | Q98: =IF('Key_Assumptions_&_Inputs'!$J$72="Easy",$AO$99,IF('Key_Assumptions_&_Inputs'!$J$72="Moderate",$AO$100,IF('Key_Assumptions_&_Inputs'!$J$72="Difficult",$AO$101))) -> 0.159375 | R98: =IF('Key_Assumptions_&_Inputs'!$J$72="Easy",$AO$99,IF('Key_Assumptions_&_Inputs'!$J$72="Moderate",$AO$100,IF('Key_Assumptions_&_Inputs'!$J$72="Difficult",$AO$101))) -> 0.159375 | S98: =IF('Key_Assumptions_&_Inputs'!$J$72="Easy",$AO$99,IF('Key_Assumptions_&_Inputs'!$J$72="Moderate",$AO$100,IF('Key_Assumptions_&_Inputs'!$J$72="Difficult",$AO$101))) -> 0.159375 | T98: =IF('Key_Assumptions_&_Inputs'!$J$72="Easy",$AO$99,IF('Key_Assumptions_&_Inputs'!$J$72="Moderate",$AO$100,IF('Key_Assumptions_&_Inputs'!$J$72="Difficult",$AO$101))) -> 0.159375 | U98: =IF('Key_Assumptions_&_Inputs'!$J$72="Easy",$AO$99,IF('Key_Assumptions_&_Inputs'!$J$72="Moderate",$AO$100,IF('Key_Assumptions_&_Inputs'!$J$72="Difficult",$AO$101))) -> 0.159375 | V98: =IF('Key_Assumptions_&_Inputs'!$J$72="Easy",$AO$99,IF('Key_Assumptions_&_Inputs'!$J$72="Moderate",$AO$100,IF('Key_Assumptions_&_Inputs'!$J$72="Difficult",$AO$101))) -> 0.159375 | W98: =IF('Key_Assumptions_&_Inputs'!$J$72="Easy",$AO$99,IF('Key_Assumptions_&_Inputs'!$J$72="Moderate",$AO$100,IF('Key_Assumptions_&_Inputs'!$J$72="Difficult",$AO$101))) -> 0.159375 | X98: =IF('Key_Assumptions_&_Inputs'!$J$72="Easy",$AO$99,IF('Key_Assumptions_&_Inputs'!$J$72="Moderate",$AO$100,IF('Key_Assumptions_&_Inputs'!$J$72="Difficult",$AO$101))) -> 0.159375 | Y98: =IF('Key_Assumptions_&_Inputs'!$J$72="Easy",$AO$99,IF('Key_Assumptions_&_Inputs'!$J$72="Moderate",$AO$100,IF('Key_Assumptions_&_Inputs'!$J$72="Difficult",$AO$101))) -> 0.159375 | Z98: =IF('Key_Assumptions_&_Inputs'!$J$72="Easy",$AO$99,IF('Key_Assumptions_&_Inputs'!$J$72="Moderate",$AO$100,IF('Key_Assumptions_&_Inputs'!$J$72="Difficult",$AO$101))) -> 0.159375 | AA98: =IF('Key_Assumptions_&_Inputs'!$J$72="Easy",$AO$99,IF('Key_Assumptions_&_Inputs'!$J$72="Moderate",$AO$100,IF('Key_Assumptions_&_Inputs'!$J$72="Difficult",$AO$101))) -> 0.159375 | AB98: =IF('Key_Assumptions_&_Inputs'!$J$72="Easy",$AO$99,IF('Key_Assumptions_&_Inputs'!$J$72="Moderate",$AO$100,IF('Key_Assumptions_&_Inputs'!$J$72="Difficult",$AO$101))) -> 0.159375 | AC98: =IF('Key_Assumptions_&_Inputs'!$J$72="Easy",$AO$99,IF('Key_Assumptions_&_Inputs'!$J$72="Moderate",$AO$100,IF('Key_Assumptions_&_Inputs'!$J$72="Difficult",$AO$101))) -> 0.159375 | AD98: =IF('Key_Assumptions_&_Inputs'!$J$72="Easy",$AO$99,IF('Key_Assumptions_&_Inputs'!$J$72="Moderate",$AO$100,IF('Key_Assumptions_&_Inputs'!$J$72="Difficult",$AO$101))) -> 0.159375 | AE98: =IF('Key_Assumptions_&_Inputs'!$J$72="Easy",$AO$99,IF('Key_Assumptions_&_Inputs'!$J$72="Moderate",$AO$100,IF('Key_Assumptions_&_Inputs'!$J$72="Difficult",$AO$101))) -> 0.159375 | AF98: =IF('Key_Assumptions_&_Inputs'!$J$72="Easy",$AO$99,IF('Key_Assumptions_&_Inputs'!$J$72="Moderate",$AO$100,IF('Key_Assumptions_&_Inputs'!$J$72="Difficult",$AO$101))) -> 0.159375 | AG98: =IF('Key_Assumptions_&_Inputs'!$J$72="Easy",$AO$99,IF('Key_Assumptions_&_Inputs'!$J$72="Moderate",$AO$100,IF('Key_Assumptions_&_Inputs'!$J$72="Difficult",$AO$101))) -> 0.159375 | AH98: =IF('Key_Assumptions_&_Inputs'!$J$72="Easy",$AO$99,IF('Key_Assumptions_&_Inputs'!$J$72="Moderate",$AO$100,IF('Key_Assumptions_&_Inputs'!$J$72="Difficult",$AO$101))) -> 0.159375 | AJ98: Minutes | AK98: % of hour | AL98: Minutes | AM98: % of hour | AN98: Minutes | AO98: % of hour
B99: Labor rate | E99: =$D$13 -> 25 | F99: =E99*(1+$D$14) -> 25.75 | G99: 26.5225 | H99: 27.318175 | I99: 28.13772025 | J99: 28.98185186 | K99: 29.85130741 | L99: 30.74684664 | M99: 31.66925203 | N99: 32.6193296 | O99: 33.59790948 | P99: 34.60584677 | Q99: 35.64402217 | R99: 36.71334284 | S99: 37.81474312 | T99: 38.94918542 | U99: 40.11766098 | V99: 41.32119081 | W99: 42.56082653 | X99: 43.83765133 | Y99: 45.15278087 | Z99: 46.50736429 | AA99: 47.90258522 | AB99: 49.33966278 | AC99: 50.81985266 | AD99: 52.34444824 | AE99: 53.91478169 | AF99: 55.53222514 | AG99: 57.19819189 | AH99: 58.91413765 | AI99: Easy | AJ99: 15 | AK99: =AJ99/60 -> 0.25 | AL99: =AJ99*(1-$AK$87) -> 11.25 | AM99: =AL99/60 -> 0.1875 | AN99: =AL99*(1-$AL$87) -> 9.5625 | AO99: =AN99/60 -> 0.159375
B100: Sales cost per subscriber | E100: =E98*E99 -> 6.25 | F100: 4.828125 | G100: 4.227023437 | H100: 4.353834141 | I100: 4.484449165 | J100: 4.61898264 | K100: 4.757552119 | L100: 4.900278683 | M100: 5.047287043 | N100: 5.198705654 | O100: 5.354666824 | P100: 5.515306829 | Q100: 5.680766034 | R100: 5.851189015 | S100: 6.026724685 | T100: 6.207526426 | U100: 6.393752218 | V100: 6.585564785 | W100: 6.783131728 | X100: 6.98662568 | Y100: 7.196224451 | Z100: 7.412111184 | AA100: 7.63447452 | AB100: 7.863508755 | AC100: 8.099414018 | AD100: 8.342396438 | AE100: 8.592668332 | AF100: 8.850448382 | AG100: 9.115961833 | AH100: 9.389440688 | AI100: Moderate | AJ100: 17.5 | AK100: 0.2916666667 | AL100: 13.125 | AM100: 0.21875 | AN100: 11.15625 | AO100: 0.1859375
B101: Annual costs | E101: =E86*E100 -> 1875 | F101: 21.7265625 | G101: 19.02160547 | H101: 19.59225363 | I101: 20.18002124 | J101: 20.78542188 | K101: 21.40898454 | L101: 22.05125407 | M101: 22.71279169 | N101: 23.39417544 | O101: 24.09600071 | P101: 24.81888073 | Q101: 25.56344715 | R101: 26.33035057 | S101: 27.12026108 | T101: 27.93386891 | U101: 28.77188498 | V101: 29.63504153 | W101: 30.52409278 | X101: 31.43981556 | Y101: 0 | Z101: 0 | AA101: 0 | AB101: 0 | AC101: 0 | AD101: 0 | AE101: 0 | AF101: 0 | AG101: 0 | AH101: 0 | AI101: Difficult | AJ101: 20 | AK101: 0.3333333333 | AL101: 15 | AM101: 0.25 | AN101: 12.75 | AO101: 0.2125
AJ102: Transaction time per Subscriber
B103: Sign-up Transaction | E103: 1 | F103: =E103+1 -> 2 | G103: 3 | H103: 4 | I103: 5 | J103: 6 | K103: 7 | L103: 8 | M103: 9 | N103: 10 | O103: 11 | P103: 12 | Q103: 13 | R103: 14 | S103: 15 | T103: 16 | U103: 17 | V103: 18 | W103: 19 | X103: 20 | Y103: 21 | Z103: 22 | AA103: 23 | AB103: 24 | AC103: 25 | AD103: 26 | AE103: 27 | AF103: 28 | AG103: 29 | AH103: 30 | AJ103: Year 1 | AL103: Year 2 | AN103: Year 3+
B104: Sign-up hours per subscriber | E104: =IF('Key_Assumptions_&_Inputs'!$J$72="Easy",$AK$105,IF('Key_Assumptions_&_Inputs'!$J$72="Moderate",$AK$106,IF('Key_Assumptions_&_Inputs'!$J$72="Difficult",$AK$107))) -> 0.1666666667 | F104: =IF('Key_Assumptions_&_Inputs'!$J$72="Easy",$AM$105,IF('Key_Assumptions_&_Inputs'!$J$72="Moderate",$AM$106,IF('Key_Assumptions_&_Inputs'!$J$72="Difficult",$AM$107))) -> 0.125 | G104: =IF('Key_Assumptions_&_Inputs'!$J$72="Easy",$AO$105,IF('Key_Assumptions_&_Inputs'!$J$72="Moderate",$AO$106,IF('Key_Assumptions_&_Inputs'!$J$72="Difficult",$AO$107))) -> 0.10625 | H104: =IF('Key_Assumptions_&_Inputs'!$J$72="Easy",$AO$105,IF('Key_Assumptions_&_Inputs'!$J$72="Moderate",$AO$106,IF('Key_Assumptions_&_Inputs'!$J$72="Difficult",$AO$107))) -> 0.10625 | I104: =IF('Key_Assumptions_&_Inputs'!$J$72="Easy",$AO$105,IF('Key_Assumptions_&_Inputs'!$J$72="Moderate",$AO$106,IF('Key_Assumptions_&_Inputs'!$J$72="Difficult",$AO$107))) -> 0.10625 | J104: =IF('Key_Assumptions_&_Inputs'!$J$72="Easy",$AO$105,IF('Key_Assumptions_&_Inputs'!$J$72="Moderate",$AO$106,IF('Key_Assumptions_&_Inputs'!$J$72="Difficult",$AO$107))) -> 0.10625 | K104: =IF('Key_Assumptions_&_Inputs'!$J$72="Easy",$AO$105,IF('Key_Assumptions_&_Inputs'!$J$72="Moderate",$AO$106,IF('Key_Assumptions_&_Inputs'!$J$72="Difficult",$AO$107))) -> 0.10625 | L104: =IF('Key_Assumptions_&_Inputs'!$J$72="Easy",$AO$105,IF('Key_Assumptions_&_Inputs'!$J$72="Moderate",$AO$106,IF('Key_Assumptions_&_Inputs'!$J$72="Difficult",$AO$107))) -> 0.10625 | M104: =IF('Key_Assumptions_&_Inputs'!$J$72="Easy",$AO$105,IF('Key_Assumptions_&_Inputs'!$J$72="Moderate",$AO$106,IF('Key_Assumptions_&_Inputs'!$J$72="Difficult",$AO$107))) -> 0.10625 | N104: =IF('Key_Assumptions_&_Inputs'!$J$72="Easy",$AO$105,IF('Key_Assumptions_&_Inputs'!$J$72="Moderate",$AO$106,IF('Key_Assumptions_&_Inputs'!$J$72="Difficult",$AO$107))) -> 0.10625 | O104: =IF('Key_Assumptions_&_Inputs'!$J$72="Easy",$AO$105,IF('Key_Assumptions_&_Inputs'!$J$72="Moderate",$AO$106,IF('Key_Assumptions_&_Inputs'!$J$72="Difficult",$AO$107))) -> 0.10625 | P104: =IF('Key_Assumptions_&_Inputs'!$J$72="Easy",$AO$105,IF('Key_Assumptions_&_Inputs'!$J$72="Moderate",$AO$106,IF('Key_Assumptions_&_Inputs'!$J$72="Difficult",$AO$107))) -> 0.10625 | Q104: =IF('Key_Assumptions_&_Inputs'!$J$72="Easy",$AO$105,IF('Key_Assumptions_&_Inputs'!$J$72="Moderate",$AO$106,IF('Key_Assumptions_&_Inputs'!$J$72="Difficult",$AO$107))) -> 0.10625 | R104: =IF('Key_Assumptions_&_Inputs'!$J$72="Easy",$AO$105,IF('Key_Assumptions_&_Inputs'!$J$72="Moderate",$AO$106,IF('Key_Assumptions_&_Inputs'!$J$72="Difficult",$AO$107))) -> 0.10625 | S104: =IF('Key_Assumptions_&_Inputs'!$J$72="Easy",$AO$105,IF('Key_Assumptions_&_Inputs'!$J$72="Moderate",$AO$106,IF('Key_Assumptions_&_Inputs'!$J$72="Difficult",$AO$107))) -> 0.10625 | T104: =IF('Key_Assumptions_&_Inputs'!$J$72="Easy",$AO$105,IF('Key_Assumptions_&_Inputs'!$J$72="Moderate",$AO$106,IF('Key_Assumptions_&_Inputs'!$J$72="Difficult",$AO$107))) -> 0.10625 | U104: =IF('Key_Assumptions_&_Inputs'!$J$72="Easy",$AO$105,IF('Key_Assumptions_&_Inputs'!$J$72="Moderate",$AO$106,IF('Key_Assumptions_&_Inputs'!$J$72="Difficult",$AO$107))) -> 0.10625 | V104: =IF('Key_Assumptions_&_Inputs'!$J$72="Easy",$AO$105,IF('Key_Assumptions_&_Inputs'!$J$72="Moderate",$AO$106,IF('Key_Assumptions_&_Inputs'!$J$72="Difficult",$AO$107))) -> 0.10625 | W104: =IF('Key_Assumptions_&_Inputs'!$J$72="Easy",$AO$105,IF('Key_Assumptions_&_Inputs'!$J$72="Moderate",$AO$106,IF('Key_Assumptions_&_Inputs'!$J$72="Difficult",$AO$107))) -> 0.10625 | X104: =IF('Key_Assumptions_&_Inputs'!$J$72="Easy",$AO$105,IF('Key_Assumptions_&_Inputs'!$J$72="Moderate",$AO$106,IF('Key_Assumptions_&_Inputs'!$J$72="Difficult",$AO$107))) -> 0.10625 | Y104: =IF('Key_Assumptions_&_Inputs'!$J$72="Easy",$AO$105,IF('Key_Assumptions_&_Inputs'!$J$72="Moderate",$AO$106,IF('Key_Assumptions_&_Inputs'!$J$72="Difficult",$AO$107))) -> 0.10625 | Z104: =IF('Key_Assumptions_&_Inputs'!$J$72="Easy",$AO$105,IF('Key_Assumptions_&_Inputs'!$J$72="Moderate",$AO$106,IF('Key_Assumptions_&_Inputs'!$J$72="Difficult",$AO$107))) -> 0.10625 | AA104: =IF('Key_Assumptions_&_Inputs'!$J$72="Easy",$AO$105,IF('Key_Assumptions_&_Inputs'!$J$72="Moderate",$AO$106,IF('Key_Assumptions_&_Inputs'!$J$72="Difficult",$AO$107))) -> 0.10625 | AB104: =IF('Key_Assumptions_&_Inputs'!$J$72="Easy",$AO$105,IF('Key_Assumptions_&_Inputs'!$J$72="Moderate",$AO$106,IF('Key_Assumptions_&_Inputs'!$J$72="Difficult",$AO$107))) -> 0.10625 | AC104: =IF('Key_Assumptions_&_Inputs'!$J$72="Easy",$AO$105,IF('Key_Assumptions_&_Inputs'!$J$72="Moderate",$AO$106,IF('Key_Assumptions_&_Inputs'!$J$72="Difficult",$AO$107))) -> 0.10625 | AD104: =IF('Key_Assumptions_&_Inputs'!$J$72="Easy",$AO$105,IF('Key_Assumptions_&_Inputs'!$J$72="Moderate",$AO$106,IF('Key_Assumptions_&_Inputs'!$J$72="Difficult",$AO$107))) -> 0.10625 | AE104: =IF('Key_Assumptions_&_Inputs'!$J$72="Easy",$AO$105,IF('Key_Assumptions_&_Inputs'!$J$72="Moderate",$AO$106,IF('Key_Assumptions_&_Inputs'!$J$72="Difficult",$AO$107))) -> 0.10625 | AF104: =IF('Key_Assumptions_&_Inputs'!$J$72="Easy",$AO$105,IF('Key_Assumptions_&_Inputs'!$J$72="Moderate",$AO$106,IF('Key_Assumptions_&_Inputs'!$J$72="Difficult",$AO$107))) -> 0.10625 | AG104: =IF('Key_Assumptions_&_Inputs'!$J$72="Easy",$AO$105,IF('Key_Assumptions_&_Inputs'!$J$72="Moderate",$AO$106,IF('Key_Assumptions_&_Inputs'!$J$72="Difficult",$AO$107))) -> 0.10625 | AH104: =IF('Key_Assumptions_&_Inputs'!$J$72="Easy",$AO$105,IF('Key_Assumptions_&_Inputs'!$J$72="Moderate",$AO$106,IF('Key_Assumptions_&_Inputs'!$J$72="Difficult",$AO$107))) -> 0.10625 | AJ104: Minutes | AK104: % of hour | AL104: Minutes | AM104: % of hour | AN104: Minutes | AO104: % of hour
B105: Labor rate | E105: =$D$13 -> 25 | F105: =E105*(1+$D$14) -> 25.75 | G105: 26.5225 | H105: 27.318175 | I105: 28.13772025 | J105: 28.98185186 | K105: 29.85130741 | L105: 30.74684664 | M105: 31.66925203 | N105: 32.6193296 | O105: 33.59790948 | P105: 34.60584677 | Q105: 35.64402217 | R105: 36.71334284 | S105: 37.81474312 | T105: 38.94918542 | U105: 40.11766098 | V105: 41.32119081 | W105: 42.56082653 | X105: 43.83765133 | Y105: 45.15278087 | Z105: 46.50736429 | AA105: 47.90258522 | AB105: 49.33966278 | AC105: 50.81985266 | AD105: 52.34444824 | AE105: 53.91478169 | AF105: 55.53222514 | AG105: 57.19819189 | AH105: 58.91413765 | AI105: Easy | AJ105: 10 | AK105: =AJ105/60 -> 0.1666666667 | AL105: =AJ105*(1-$AK$87) -> 7.5 | AM105: =AL105/60 -> 0.125 | AN105: =AL105*(1-$AL$87) -> 6.375 | AO105: =AN105/60 -> 0.10625
B106: Sign-up cost per subscriber | E106: =E104*E105 -> 4.166666667 | F106: 3.21875 | G106: 2.818015625 | H106: 2.902556094 | I106: 2.989632777 | J106: 3.07932176 | K106: 3.171701413 | L106: 3.266852455 | M106: 3.364858029 | N106: 3.46580377 | O106: 3.569777883 | P106: 3.676871219 | Q106: 3.787177356 | R106: 3.900792676 | S106: 4.017816457 | T106: 4.13835095 | U106: 4.262501479 | V106: 4.390376523 | W106: 4.522087819 | X106: 4.657750453 | Y106: 4.797482967 | Z106: 4.941407456 | AA106: 5.08964968 | AB106: 5.24233917 | AC106: 5.399609345 | AD106: 5.561597626 | AE106: 5.728445554 | AF106: 5.900298921 | AG106: 6.077307889 | AH106: 6.259627125 | AI106: Moderate | AJ106: 12.5 | AK106: 0.2083333333 | AL106: 9.375 | AM106: 0.15625 | AN106: 7.96875 | AO106: 0.1328125
B107: Annual costs | E107: =E86*E106 -> 1250 | F107: 14.484375 | G107: 12.68107031 | H107: 13.06150242 | I107: 13.45334749 | J107: 13.85694792 | K107: 14.27265636 | L107: 14.70083605 | M107: 15.14186113 | N107: 15.59611696 | O107: 16.06400047 | P107: 16.54592049 | Q107: 17.0422981 | R107: 17.55356704 | S107: 18.08017405 | T107: 18.62257928 | U107: 19.18125665 | V107: 19.75669435 | W107: 20.34939519 | X107: 20.95987704 | Y107: 0 | Z107: 0 | AA107: 0 | AB107: 0 | AC107: 0 | AD107: 0 | AE107: 0 | AF107: 0 | AG107: 0 | AH107: 0 | AI107: Difficult | AJ107: 15 | AK107: 0.25 | AL107: 11.25 | AM107: 0.1875 | AN107: 9.5625 | AO107: 0.159375
B109: Customer Service | E109: 1 | F109: =E109+1 -> 2 | G109: 3 | H109: 4 | I109: 5 | J109: 6 | K109: 7 | L109: 8 | M109: 9 | N109: 10 | O109: 11 | P109: 12 | Q109: 13 | R109: 14 | S109: 15 | T109: 16 | U109: 17 | V109: 18 | W109: 19 | X109: 20 | Y109: 21 | Z109: 22 | AA109: 23 | AB109: 24 | AC109: 25 | AD109: 26 | AE109: 27 | AF109: 28 | AG109: 29 | AH109: 30 | AJ109: Customer Service time per Subscriber | AR109: % of Total Subscribers requiring service monthly
B110: % of subscribers calling per month | E110: =IF('Key_Assumptions_&_Inputs'!$J$72="Easy",AR112,IF('Key_Assumptions_&_Inputs'!$J$72="Moderate",AR113,IF('Key_Assumptions_&_Inputs'!$J$72="Difficult",AR114))) -> 0.08 | F110: =IF('Key_Assumptions_&_Inputs'!$J$72="Easy",AS112,IF('Key_Assumptions_&_Inputs'!$J$72="Moderate",AS113,IF('Key_Assumptions_&_Inputs'!$J$72="Difficult",AS114))) -> 0.06 | G110: =IF('Key_Assumptions_&_Inputs'!$J$72="Easy",$AT$112,IF('Key_Assumptions_&_Inputs'!$J$72="Moderate",$AT$113,IF('Key_Assumptions_&_Inputs'!$J$72="Difficult",$AT$114))) -> 0.051 | H110: =G110*0.5 -> 0.0255 | I110: 0.01275 | J110: =I110 -> 0.01275 | K110: 0.01275 | L110: 0.01275 | M110: 0.01275 | N110: 0.01275 | O110: 0.01275 | P110: 0.01275 | Q110: 0.01275 | R110: 0.01275 | S110: 0.01275 | T110: 0.01275 | U110: 0.01275 | V110: 0.01275 | W110: 0.01275 | X110: 0.01275 | Y110: 0.01275 | Z110: 0.01275 | AA110: 0.01275 | AB110: 0.01275 | AC110: 0.01275 | AD110: 0.01275 | AE110: 0.01275 | AF110: 0.01275 | AG110: 0.01275 | AH110: 0.01275 | AJ110: Year 1 | AL110: Year 2 | AN110: Year 3+ | AR110: Year 1 | AS110: Year 2 | AT110: Year 3+
B111: Hours per call | E111: =IF('Key_Assumptions_&_Inputs'!$J$72="Easy",$AK$112,IF('Key_Assumptions_&_Inputs'!$J$72="Moderate",$AK$113,IF('Key_Assumptions_&_Inputs'!$J$72="Difficult",$AK$114))) -> 0.08333333333 | F111: =IF('Key_Assumptions_&_Inputs'!$J$72="Easy",$AM$112,IF('Key_Assumptions_&_Inputs'!$J$72="Moderate",$AM$113,IF('Key_Assumptions_&_Inputs'!$J$72="Difficult",$AM$114))) -> 0.0625 | G111: =IF('Key_Assumptions_&_Inputs'!$J$72="Easy",$AO$112,IF('Key_Assumptions_&_Inputs'!$J$72="Moderate",$AO$113,IF('Key_Assumptions_&_Inputs'!$J$72="Difficult",$AO$114))) -> 0.053125 | H111: =IF('Key_Assumptions_&_Inputs'!$J$72="Easy",$AO$112,IF('Key_Assumptions_&_Inputs'!$J$72="Moderate",$AO$113,IF('Key_Assumptions_&_Inputs'!$J$72="Difficult",$AO$114))) -> 0.053125 | I111: =IF('Key_Assumptions_&_Inputs'!$J$72="Easy",$AO$112,IF('Key_Assumptions_&_Inputs'!$J$72="Moderate",$AO$113,IF('Key_Assumptions_&_Inputs'!$J$72="Difficult",$AO$114))) -> 0.053125 | J111: =IF('Key_Assumptions_&_Inputs'!$J$72="Easy",$AO$112,IF('Key_Assumptions_&_Inputs'!$J$72="Moderate",$AO$113,IF('Key_Assumptions_&_Inputs'!$J$72="Difficult",$AO$114))) -> 0.053125 | K111: =IF('Key_Assumptions_&_Inputs'!$J$72="Easy",$AO$112,IF('Key_Assumptions_&_Inputs'!$J$72="Moderate",$AO$113,IF('Key_Assumptions_&_Inputs'!$J$72="Difficult",$AO$114))) -> 0.053125 | L111: =IF('Key_Assumptions_&_Inputs'!$J$72="Easy",$AO$112,IF('Key_Assumptions_&_Inputs'!$J$72="Moderate",$AO$113,IF('Key_Assumptions_&_Inputs'!$J$72="Difficult",$AO$114))) -> 0.053125 | M111: =IF('Key_Assumptions_&_Inputs'!$J$72="Easy",$AO$112,IF('Key_Assumptions_&_Inputs'!$J$72="Moderate",$AO$113,IF('Key_Assumptions_&_Inputs'!$J$72="Difficult",$AO$114))) -> 0.053125 | N111: =IF('Key_Assumptions_&_Inputs'!$J$72="Easy",$AO$112,IF('Key_Assumptions_&_Inputs'!$J$72="Moderate",$AO$113,IF('Key_Assumptions_&_Inputs'!$J$72="Difficult",$AO$114))) -> 0.053125 | O111: =IF('Key_Assumptions_&_Inputs'!$J$72="Easy",$AO$112,IF('Key_Assumptions_&_Inputs'!$J$72="Moderate",$AO$113,IF('Key_Assumptions_&_Inputs'!$J$72="Difficult",$AO$114))) -> 0.053125 | P111: =IF('Key_Assumptions_&_Inputs'!$J$72="Easy",$AO$112,IF('Key_Assumptions_&_Inputs'!$J$72="Moderate",$AO$113,IF('Key_Assumptions_&_Inputs'!$J$72="Difficult",$AO$114))) -> 0.053125 | Q111: =IF('Key_Assumptions_&_Inputs'!$J$72="Easy",$AO$112,IF('Key_Assumptions_&_Inputs'!$J$72="Moderate",$AO$113,IF('Key_Assumptions_&_Inputs'!$J$72="Difficult",$AO$114))) -> 0.053125 | R111: =IF('Key_Assumptions_&_Inputs'!$J$72="Easy",$AO$112,IF('Key_Assumptions_&_Inputs'!$J$72="Moderate",$AO$113,IF('Key_Assumptions_&_Inputs'!$J$72="Difficult",$AO$114))) -> 0.053125 | S111: =IF('Key_Assumptions_&_Inputs'!$J$72="Easy",$AO$112,IF('Key_Assumptions_&_Inputs'!$J$72="Moderate",$AO$113,IF('Key_Assumptions_&_Inputs'!$J$72="Difficult",$AO$114))) -> 0.053125 | T111: =IF('Key_Assumptions_&_Inputs'!$J$72="Easy",$AO$112,IF('Key_Assumptions_&_Inputs'!$J$72="Moderate",$AO$113,IF('Key_Assumptions_&_Inputs'!$J$72="Difficult",$AO$114))) -> 0.053125 | U111: =IF('Key_Assumptions_&_Inputs'!$J$72="Easy",$AO$112,IF('Key_Assumptions_&_Inputs'!$J$72="Moderate",$AO$113,IF('Key_Assumptions_&_Inputs'!$J$72="Difficult",$AO$114))) -> 0.053125 | V111: =IF('Key_Assumptions_&_Inputs'!$J$72="Easy",$AO$112,IF('Key_Assumptions_&_Inputs'!$J$72="Moderate",$AO$113,IF('Key_Assumptions_&_Inputs'!$J$72="Difficult",$AO$114))) -> 0.053125 | W111: =IF('Key_Assumptions_&_Inputs'!$J$72="Easy",$AO$112,IF('Key_Assumptions_&_Inputs'!$J$72="Moderate",$AO$113,IF('Key_Assumptions_&_Inputs'!$J$72="Difficult",$AO$114))) -> 0.053125 | X111: =IF('Key_Assumptions_&_Inputs'!$J$72="Easy",$AO$112,IF('Key_Assumptions_&_Inputs'!$J$72="Moderate",$AO$113,IF('Key_Assumptions_&_Inputs'!$J$72="Difficult",$AO$114))) -> 0.053125 | Y111: =IF('Key_Assumptions_&_Inputs'!$J$72="Easy",$AO$112,IF('Key_Assumptions_&_Inputs'!$J$72="Moderate",$AO$113,IF('Key_Assumptions_&_Inputs'!$J$72="Difficult",$AO$114))) -> 0.053125 | Z111: =IF('Key_Assumptions_&_Inputs'!$J$72="Easy",$AO$112,IF('Key_Assumptions_&_Inputs'!$J$72="Moderate",$AO$113,IF('Key_Assumptions_&_Inputs'!$J$72="Difficult",$AO$114))) -> 0.053125 | AA111: =IF('Key_Assumptions_&_Inputs'!$J$72="Easy",$AO$112,IF('Key_Assumptions_&_Inputs'!$J$72="Moderate",$AO$113,IF('Key_Assumptions_&_Inputs'!$J$72="Difficult",$AO$114))) -> 0.053125 | AB111: =IF('Key_Assumptions_&_Inputs'!$J$72="Easy",$AO$112,IF('Key_Assumptions_&_Inputs'!$J$72="Moderate",$AO$113,IF('Key_Assumptions_&_Inputs'!$J$72="Difficult",$AO$114))) -> 0.053125 | AC111: =IF('Key_Assumptions_&_Inputs'!$J$72="Easy",$AO$112,IF('Key_Assumptions_&_Inputs'!$J$72="Moderate",$AO$113,IF('Key_Assumptions_&_Inputs'!$J$72="Difficult",$AO$114))) -> 0.053125 | AD111: =IF('Key_Assumptions_&_Inputs'!$J$72="Easy",$AO$112,IF('Key_Assumptions_&_Inputs'!$J$72="Moderate",$AO$113,IF('Key_Assumptions_&_Inputs'!$J$72="Difficult",$AO$114))) -> 0.053125 | AE111: =IF('Key_Assumptions_&_Inputs'!$J$72="Easy",$AO$112,IF('Key_Assumptions_&_Inputs'!$J$72="Moderate",$AO$113,IF('Key_Assumptions_&_Inputs'!$J$72="Difficult",$AO$114))) -> 0.053125 | AF111: =IF('Key_Assumptions_&_Inputs'!$J$72="Easy",$AO$112,IF('Key_Assumptions_&_Inputs'!$J$72="Moderate",$AO$113,IF('Key_Assumptions_&_Inputs'!$J$72="Difficult",$AO$114))) -> 0.053125 | AG111: =IF('Key_Assumptions_&_Inputs'!$J$72="Easy",$AO$112,IF('Key_Assumptions_&_Inputs'!$J$72="Moderate",$AO$113,IF('Key_Assumptions_&_Inputs'!$J$72="Difficult",$AO$114))) -> 0.053125 | AH111: =IF('Key_Assumptions_&_Inputs'!$J$72="Easy",$AO$112,IF('Key_Assumptions_&_Inputs'!$J$72="Moderate",$AO$113,IF('Key_Assumptions_&_Inputs'!$J$72="Difficult",$AO$114))) -> 0.053125 | AJ111: Minutes | AK111: % of hour | AL111: Minutes | AM111: % of hour | AN111: Minutes | AO111: % of hour | AR111: Hours | AS111: Hours | AT111: Hours
B112: Total monthly calls | E112: =E84*E110 -> 24 | F112: 18 | G112: 15.3 | H112: 7.65 | I112: 3.825 | J112: 3.825 | K112: 3.825 | L112: 3.825 | M112: 3.825 | N112: 3.825 | O112: 3.825 | P112: 3.825 | Q112: 3.825 | R112: 3.825 | S112: 3.825 | T112: 3.825 | U112: 3.825 | V112: 3.825 | W112: 3.825 | X112: 3.825 | Y112: 0 | Z112: 0 | AA112: 0 | AB112: 0 | AC112: 0 | AD112: 0 | AE112: 0 | AF112: 0 | AG112: 0 | AH112: 0 | AI112: Easy | AJ112: 5 | AK112: =AJ112/60 -> 0.08333333333 | AL112: =AJ112*(1-$AK$87) -> 3.75 | AM112: =AL112/60 -> 0.0625 | AN112: =AL112*(1-$AL$87) -> 3.1875 | AO112: =AN112/60 -> 0.053125 | AR112: 0.08 | AS112: =AR112*(1-$AK$87) -> 0.06 | AT112: =AS112*(1-$AL$87) -> 0.051
B113: Total call hours | E113: =(E111*E112) -> 2 | F113: 1.125 | G113: 0.8128125 | H113: 0.40640625 | I113: 0.203203125 | J113: 0.203203125 | K113: 0.203203125 | L113: 0.203203125 | M113: 0.203203125 | N113: 0.203203125 | O113: 0.203203125 | P113: 0.203203125 | Q113: 0.203203125 | R113: 0.203203125 | S113: 0.203203125 | T113: 0.203203125 | U113: 0.203203125 | V113: 0.203203125 | W113: 0.203203125 | X113: 0.203203125 | Y113: 0 | Z113: 0 | AA113: 0 | AB113: 0 | AC113: 0 | AD113: 0 | AE113: 0 | AF113: 0 | AG113: 0 | AH113: 0 | AI113: Moderate | AJ113: 7.5 | AK113: 0.125 | AL113: 5.625 | AM113: 0.09375 | AN113: 4.78125 | AO113: 0.0796875 | AR113: 0.1 | AS113: 0.075 | AT113: 0.06375
B114: Labor rate | E114: =$D$13 -> 25 | F114: =E114*(1+$D$14) -> 25.75 | G114: 26.5225 | H114: 27.318175 | I114: 28.13772025 | J114: 28.98185186 | K114: 29.85130741 | L114: 30.74684664 | M114: 31.66925203 | N114: 32.6193296 | O114: 33.59790948 | P114: 34.60584677 | Q114: 35.64402217 | R114: 36.71334284 | S114: 37.81474312 | T114: 38.94918542 | U114: 40.11766098 | V114: 41.32119081 | W114: 42.56082653 | X114: 43.83765133 | Y114: 45.15278087 | Z114: 46.50736429 | AA114: 47.90258522 | AB114: 49.33966278 | AC114: 50.81985266 | AD114: 52.34444824 | AE114: 53.91478169 | AF114: 55.53222514 | AG114: 57.19819189 | AH114: 58.91413765 | AI114: Difficult | AJ114: 10 | AK114: 0.1666666667 | AL114: 7.5 | AM114: 0.125 | AN114: 6.375 | AO114: 0.10625 | AR114: 0.12 | AS114: 0.09 | AT114: 0.0765
B115: Annual costs | E115: =E113*E114*12 -> 600 | F115: 347.625 | G115: 258.6938344 | H115: 133.2273247 | I115: 68.61207222 | J115: 70.67043439 | K115: 72.79054742 | L115: 74.97426384 | M115: 77.22349176 | N115: 79.54019651 | O115: 81.92640241 | P115: 84.38419448 | Q115: 86.91572031 | R115: 89.52319192 | S115: 92.20888768 | T115: 94.97515431 | U115: 97.82440894 | V115: 100.7591412 | W115: 103.7819154 | X115: 106.8953729 | Y115: 0 | Z115: 0 | AA115: 0 | AB115: 0 | AC115: 0 | AD115: 0 | AE115: 0 | AF115: 0 | AG115: 0 | AH115: 0
AJ116: Minutes for admin setup per Subscriber | AR116: Minutes individual billing per Subscriber
B117: Billing Admin | AJ117: Year 1 | AL117: Year 2 | AN117: Year 3+ | AR117: Year 1 | AT117: Year 2 | AV117: Year 3+
B118: Billing setup hours per month | E118: =IF('Key_Assumptions_&_Inputs'!$J$72="Easy",(E84*AK119),IF('Key_Assumptions_&_Inputs'!$J$72="Moderate",(E84*AK120),IF('Key_Assumptions_&_Inputs'!$J$72="Difficult",E84*AK121))) -> 15 | F118: =IF('Key_Assumptions_&_Inputs'!$J$72="Easy",(F84*AM119),IF('Key_Assumptions_&_Inputs'!$J$72="Moderate",(F84*AM120),IF('Key_Assumptions_&_Inputs'!$J$72="Difficult",F84*AM121))) -> 11.25 | G118: =IF('Key_Assumptions_&_Inputs'!$J$72="Easy",(G84*$AO$119),IF('Key_Assumptions_&_Inputs'!$J$72="Moderate",(G84*$AO$120),IF('Key_Assumptions_&_Inputs'!$J$72="Difficult",G84*$AO$121))) -> 9.5625 | H118: =IF('Key_Assumptions_&_Inputs'!$J$72="Easy",(H84*$AO$119),IF('Key_Assumptions_&_Inputs'!$J$72="Moderate",(H84*$AO$120),IF('Key_Assumptions_&_Inputs'!$J$72="Difficult",H84*$AO$121))) -> 9.5625 | I118: =IF('Key_Assumptions_&_Inputs'!$J$72="Easy",(I84*$AO$119),IF('Key_Assumptions_&_Inputs'!$J$72="Moderate",(I84*$AO$120),IF('Key_Assumptions_&_Inputs'!$J$72="Difficult",I84*$AO$121))) -> 9.5625 | J118: =IF('Key_Assumptions_&_Inputs'!$J$72="Easy",(J84*$AO$119),IF('Key_Assumptions_&_Inputs'!$J$72="Moderate",(J84*$AO$120),IF('Key_Assumptions_&_Inputs'!$J$72="Difficult",J84*$AO$121))) -> 9.5625 | K118: =IF('Key_Assumptions_&_Inputs'!$J$72="Easy",(K84*$AO$119),IF('Key_Assumptions_&_Inputs'!$J$72="Moderate",(K84*$AO$120),IF('Key_Assumptions_&_Inputs'!$J$72="Difficult",K84*$AO$121))) -> 9.5625 | L118: =IF('Key_Assumptions_&_Inputs'!$J$72="Easy",(L84*$AO$119),IF('Key_Assumptions_&_Inputs'!$J$72="Moderate",(L84*$AO$120),IF('Key_Assumptions_&_Inputs'!$J$72="Difficult",L84*$AO$121))) -> 9.5625 | M118: =IF('Key_Assumptions_&_Inputs'!$J$72="Easy",(M84*$AO$119),IF('Key_Assumptions_&_Inputs'!$J$72="Moderate",(M84*$AO$120),IF('Key_Assumptions_&_Inputs'!$J$72="Difficult",M84*$AO$121))) -> 9.5625 | N118: =IF('Key_Assumptions_&_Inputs'!$J$72="Easy",(N84*$AO$119),IF('Key_Assumptions_&_Inputs'!$J$72="Moderate",(N84*$AO$120),IF('Key_Assumptions_&_Inputs'!$J$72="Difficult",N84*$AO$121))) -> 9.5625 | O118: =IF('Key_Assumptions_&_Inputs'!$J$72="Easy",(O84*$AO$119),IF('Key_Assumptions_&_Inputs'!$J$72="Moderate",(O84*$AO$120),IF('Key_Assumptions_&_Inputs'!$J$72="Difficult",O84*$AO$121))) -> 9.5625 | P118: =IF('Key_Assumptions_&_Inputs'!$J$72="Easy",(P84*$AO$119),IF('Key_Assumptions_&_Inputs'!$J$72="Moderate",(P84*$AO$120),IF('Key_Assumptions_&_Inputs'!$J$72="Difficult",P84*$AO$121))) -> 9.5625 | Q118: =IF('Key_Assumptions_&_Inputs'!$J$72="Easy",(Q84*$AO$119),IF('Key_Assumptions_&_Inputs'!$J$72="Moderate",(Q84*$AO$120),IF('Key_Assumptions_&_Inputs'!$J$72="Difficult",Q84*$AO$121))) -> 9.5625 | R118: =IF('Key_Assumptions_&_Inputs'!$J$72="Easy",(R84*$AO$119),IF('Key_Assumptions_&_Inputs'!$J$72="Moderate",(R84*$AO$120),IF('Key_Assumptions_&_Inputs'!$J$72="Difficult",R84*$AO$121))) -> 9.5625 | S118: =IF('Key_Assumptions_&_Inputs'!$J$72="Easy",(S84*$AO$119),IF('Key_Assumptions_&_Inputs'!$J$72="Moderate",(S84*$AO$120),IF('Key_Assumptions_&_Inputs'!$J$72="Difficult",S84*$AO$121))) -> 9.5625 | T118: =IF('Key_Assumptions_&_Inputs'!$J$72="Easy",(T84*$AO$119),IF('Key_Assumptions_&_Inputs'!$J$72="Moderate",(T84*$AO$120),IF('Key_Assumptions_&_Inputs'!$J$72="Difficult",T84*$AO$121))) -> 9.5625 | U118: =IF('Key_Assumptions_&_Inputs'!$J$72="Easy",(U84*$AO$119),IF('Key_Assumptions_&_Inputs'!$J$72="Moderate",(U84*$AO$120),IF('Key_Assumptions_&_Inputs'!$J$72="Difficult",U84*$AO$121))) -> 9.5625 | V118: =IF('Key_Assumptions_&_Inputs'!$J$72="Easy",(V84*$AO$119),IF('Key_Assumptions_&_Inputs'!$J$72="Moderate",(V84*$AO$120),IF('Key_Assumptions_&_Inputs'!$J$72="Difficult",V84*$AO$121))) -> 9.5625 | W118: =IF('Key_Assumptions_&_Inputs'!$J$72="Easy",(W84*$AO$119),IF('Key_Assumptions_&_Inputs'!$J$72="Moderate",(W84*$AO$120),IF('Key_Assumptions_&_Inputs'!$J$72="Difficult",W84*$AO$121))) -> 9.5625 | X118: =IF('Key_Assumptions_&_Inputs'!$J$72="Easy",(X84*$AO$119),IF('Key_Assumptions_&_Inputs'!$J$72="Moderate",(X84*$AO$120),IF('Key_Assumptions_&_Inputs'!$J$72="Difficult",X84*$AO$121))) -> 9.5625 | Y118: =IF('Key_Assumptions_&_Inputs'!$J$72="Easy",(Y84*$AO$119),IF('Key_Assumptions_&_Inputs'!$J$72="Moderate",(Y84*$AO$120),IF('Key_Assumptions_&_Inputs'!$J$72="Difficult",Y84*$AO$121))) -> 0 | Z118: =IF('Key_Assumptions_&_Inputs'!$J$72="Easy",(Z84*$AO$119),IF('Key_Assumptions_&_Inputs'!$J$72="Moderate",(Z84*$AO$120),IF('Key_Assumptions_&_Inputs'!$J$72="Difficult",Z84*$AO$121))) -> 0 | AA118: =IF('Key_Assumptions_&_Inputs'!$J$72="Easy",(AA84*$AO$119),IF('Key_Assumptions_&_Inputs'!$J$72="Moderate",(AA84*$AO$120),IF('Key_Assumptions_&_Inputs'!$J$72="Difficult",AA84*$AO$121))) -> 0 | AB118: =IF('Key_Assumptions_&_Inputs'!$J$72="Easy",(AB84*$AO$119),IF('Key_Assumptions_&_Inputs'!$J$72="Moderate",(AB84*$AO$120),IF('Key_Assumptions_&_Inputs'!$J$72="Difficult",AB84*$AO$121))) -> 0 | AC118: =IF('Key_Assumptions_&_Inputs'!$J$72="Easy",(AC84*$AO$119),IF('Key_Assumptions_&_Inputs'!$J$72="Moderate",(AC84*$AO$120),IF('Key_Assumptions_&_Inputs'!$J$72="Difficult",AC84*$AO$121))) -> 0 | AD118: =IF('Key_Assumptions_&_Inputs'!$J$72="Easy",(AD84*$AO$119),IF('Key_Assumptions_&_Inputs'!$J$72="Moderate",(AD84*$AO$120),IF('Key_Assumptions_&_Inputs'!$J$72="Difficult",AD84*$AO$121))) -> 0 | AE118: =IF('Key_Assumptions_&_Inputs'!$J$72="Easy",(AE84*$AO$119),IF('Key_Assumptions_&_Inputs'!$J$72="Moderate",(AE84*$AO$120),IF('Key_Assumptions_&_Inputs'!$J$72="Difficult",AE84*$AO$121))) -> 0 | AF118: =IF('Key_Assumptions_&_Inputs'!$J$72="Easy",(AF84*$AO$119),IF('Key_Assumptions_&_Inputs'!$J$72="Moderate",(AF84*$AO$120),IF('Key_Assumptions_&_Inputs'!$J$72="Difficult",AF84*$AO$121))) -> 0 | AG118: =IF('Key_Assumptions_&_Inputs'!$J$72="Easy",(AG84*$AO$119),IF('Key_Assumptions_&_Inputs'!$J$72="Moderate",(AG84*$AO$120),IF('Key_Assumptions_&_Inputs'!$J$72="Difficult",AG84*$AO$121))) -> 0 | AH118: =IF('Key_Assumptions_&_Inputs'!$J$72="Easy",(AH84*$AO$119),IF('Key_Assumptions_&_Inputs'!$J$72="Moderate",(AH84*$AO$120),IF('Key_Assumptions_&_Inputs'!$J$72="Difficult",AH84*$AO$121))) -> 0 | AJ118: Minutes | AK118: % of hour | AL118: Minutes | AM118: % of hour | AN118: Minutes | AO118: % of hour | AR118: Minutes | AS118: % of hour | AT118: Minutes | AU118: % of hour | AV118: Minutes | AW118: % of hour
B119: Individual subscriber billing hours | E119: =IF('Key_Assumptions_&_Inputs'!$J$72="Easy",(E84*AS119),IF('Key_Assumptions_&_Inputs'!$J$72="Moderate",(E84*AS120),IF('Key_Assumptions_&_Inputs'!$J$72="Difficult",E84*AS121))) -> 15 | F119: =IF('Key_Assumptions_&_Inputs'!$J$72="Easy",(F84*AU119),IF('Key_Assumptions_&_Inputs'!$J$72="Moderate",(F84*AU120),IF('Key_Assumptions_&_Inputs'!$J$72="Difficult",F84*AU121))) -> 11.25 | G119: =IF('Key_Assumptions_&_Inputs'!$J$72="Easy",(G84*$AW$119),IF('Key_Assumptions_&_Inputs'!$J$72="Moderate",(G84*$AW$120),IF('Key_Assumptions_&_Inputs'!$J$72="Difficult",G84*$AW$121))) -> 9.5625 | H119: =IF('Key_Assumptions_&_Inputs'!$J$72="Easy",(H84*$AW$119),IF('Key_Assumptions_&_Inputs'!$J$72="Moderate",(H84*$AW$120),IF('Key_Assumptions_&_Inputs'!$J$72="Difficult",H84*$AW$121))) -> 9.5625 | I119: =IF('Key_Assumptions_&_Inputs'!$J$72="Easy",(I84*$AW$119),IF('Key_Assumptions_&_Inputs'!$J$72="Moderate",(I84*$AW$120),IF('Key_Assumptions_&_Inputs'!$J$72="Difficult",I84*$AW$121))) -> 9.5625 | J119: =IF('Key_Assumptions_&_Inputs'!$J$72="Easy",(J84*$AW$119),IF('Key_Assumptions_&_Inputs'!$J$72="Moderate",(J84*$AW$120),IF('Key_Assumptions_&_Inputs'!$J$72="Difficult",J84*$AW$121))) -> 9.5625 | K119: =IF('Key_Assumptions_&_Inputs'!$J$72="Easy",(K84*$AW$119),IF('Key_Assumptions_&_Inputs'!$J$72="Moderate",(K84*$AW$120),IF('Key_Assumptions_&_Inputs'!$J$72="Difficult",K84*$AW$121))) -> 9.5625 | L119: =IF('Key_Assumptions_&_Inputs'!$J$72="Easy",(L84*$AW$119),IF('Key_Assumptions_&_Inputs'!$J$72="Moderate",(L84*$AW$120),IF('Key_Assumptions_&_Inputs'!$J$72="Difficult",L84*$AW$121))) -> 9.5625 | M119: =IF('Key_Assumptions_&_Inputs'!$J$72="Easy",(M84*$AW$119),IF('Key_Assumptions_&_Inputs'!$J$72="Moderate",(M84*$AW$120),IF('Key_Assumptions_&_Inputs'!$J$72="Difficult",M84*$AW$121))) -> 9.5625 | N119: =IF('Key_Assumptions_&_Inputs'!$J$72="Easy",(N84*$AW$119),IF('Key_Assumptions_&_Inputs'!$J$72="Moderate",(N84*$AW$120),IF('Key_Assumptions_&_Inputs'!$J$72="Difficult",N84*$AW$121))) -> 9.5625 | O119: =IF('Key_Assumptions_&_Inputs'!$J$72="Easy",(O84*$AW$119),IF('Key_Assumptions_&_Inputs'!$J$72="Moderate",(O84*$AW$120),IF('Key_Assumptions_&_Inputs'!$J$72="Difficult",O84*$AW$121))) -> 9.5625 | P119: =IF('Key_Assumptions_&_Inputs'!$J$72="Easy",(P84*$AW$119),IF('Key_Assumptions_&_Inputs'!$J$72="Moderate",(P84*$AW$120),IF('Key_Assumptions_&_Inputs'!$J$72="Difficult",P84*$AW$121))) -> 9.5625 | Q119: =IF('Key_Assumptions_&_Inputs'!$J$72="Easy",(Q84*$AW$119),IF('Key_Assumptions_&_Inputs'!$J$72="Moderate",(Q84*$AW$120),IF('Key_Assumptions_&_Inputs'!$J$72="Difficult",Q84*$AW$121))) -> 9.5625 | R119: =IF('Key_Assumptions_&_Inputs'!$J$72="Easy",(R84*$AW$119),IF('Key_Assumptions_&_Inputs'!$J$72="Moderate",(R84*$AW$120),IF('Key_Assumptions_&_Inputs'!$J$72="Difficult",R84*$AW$121))) -> 9.5625 | S119: =IF('Key_Assumptions_&_Inputs'!$J$72="Easy",(S84*$AW$119),IF('Key_Assumptions_&_Inputs'!$J$72="Moderate",(S84*$AW$120),IF('Key_Assumptions_&_Inputs'!$J$72="Difficult",S84*$AW$121))) -> 9.5625 | T119: =IF('Key_Assumptions_&_Inputs'!$J$72="Easy",(T84*$AW$119),IF('Key_Assumptions_&_Inputs'!$J$72="Moderate",(T84*$AW$120),IF('Key_Assumptions_&_Inputs'!$J$72="Difficult",T84*$AW$121))) -> 9.5625 | U119: =IF('Key_Assumptions_&_Inputs'!$J$72="Easy",(U84*$AW$119),IF('Key_Assumptions_&_Inputs'!$J$72="Moderate",(U84*$AW$120),IF('Key_Assumptions_&_Inputs'!$J$72="Difficult",U84*$AW$121))) -> 9.5625 | V119: =IF('Key_Assumptions_&_Inputs'!$J$72="Easy",(V84*$AW$119),IF('Key_Assumptions_&_Inputs'!$J$72="Moderate",(V84*$AW$120),IF('Key_Assumptions_&_Inputs'!$J$72="Difficult",V84*$AW$121))) -> 9.5625 | W119: =IF('Key_Assumptions_&_Inputs'!$J$72="Easy",(W84*$AW$119),IF('Key_Assumptions_&_Inputs'!$J$72="Moderate",(W84*$AW$120),IF('Key_Assumptions_&_Inputs'!$J$72="Difficult",W84*$AW$121))) -> 9.5625 | X119: =IF('Key_Assumptions_&_Inputs'!$J$72="Easy",(X84*$AW$119),IF('Key_Assumptions_&_Inputs'!$J$72="Moderate",(X84*$AW$120),IF('Key_Assumptions_&_Inputs'!$J$72="Difficult",X84*$AW$121))) -> 9.5625 | Y119: =IF('Key_Assumptions_&_Inputs'!$J$72="Easy",(Y84*$AW$119),IF('Key_Assumptions_&_Inputs'!$J$72="Moderate",(Y84*$AW$120),IF('Key_Assumptions_&_Inputs'!$J$72="Difficult",Y84*$AW$121))) -> 0 | Z119: =IF('Key_Assumptions_&_Inputs'!$J$72="Easy",(Z84*$AW$119),IF('Key_Assumptions_&_Inputs'!$J$72="Moderate",(Z84*$AW$120),IF('Key_Assumptions_&_Inputs'!$J$72="Difficult",Z84*$AW$121))) -> 0 | AA119: =IF('Key_Assumptions_&_Inputs'!$J$72="Easy",(AA84*$AW$119),IF('Key_Assumptions_&_Inputs'!$J$72="Moderate",(AA84*$AW$120),IF('Key_Assumptions_&_Inputs'!$J$72="Difficult",AA84*$AW$121))) -> 0 | AB119: =IF('Key_Assumptions_&_Inputs'!$J$72="Easy",(AB84*$AW$119),IF('Key_Assumptions_&_Inputs'!$J$72="Moderate",(AB84*$AW$120),IF('Key_Assumptions_&_Inputs'!$J$72="Difficult",AB84*$AW$121))) -> 0 | AC119: =IF('Key_Assumptions_&_Inputs'!$J$72="Easy",(AC84*$AW$119),IF('Key_Assumptions_&_Inputs'!$J$72="Moderate",(AC84*$AW$120),IF('Key_Assumptions_&_Inputs'!$J$72="Difficult",AC84*$AW$121))) -> 0 | AD119: =IF('Key_Assumptions_&_Inputs'!$J$72="Easy",(AD84*$AW$119),IF('Key_Assumptions_&_Inputs'!$J$72="Moderate",(AD84*$AW$120),IF('Key_Assumptions_&_Inputs'!$J$72="Difficult",AD84*$AW$121))) -> 0 | AE119: =IF('Key_Assumptions_&_Inputs'!$J$72="Easy",(AE84*$AW$119),IF('Key_Assumptions_&_Inputs'!$J$72="Moderate",(AE84*$AW$120),IF('Key_Assumptions_&_Inputs'!$J$72="Difficult",AE84*$AW$121))) -> 0 | AF119: =IF('Key_Assumptions_&_Inputs'!$J$72="Easy",(AF84*$AW$119),IF('Key_Assumptions_&_Inputs'!$J$72="Moderate",(AF84*$AW$120),IF('Key_Assumptions_&_Inputs'!$J$72="Difficult",AF84*$AW$121))) -> 0 | AG119: =IF('Key_Assumptions_&_Inputs'!$J$72="Easy",(AG84*$AW$119),IF('Key_Assumptions_&_Inputs'!$J$72="Moderate",(AG84*$AW$120),IF('Key_Assumptions_&_Inputs'!$J$72="Difficult",AG84*$AW$121))) -> 0 | AH119: =IF('Key_Assumptions_&_Inputs'!$J$72="Easy",(AH84*$AW$119),IF('Key_Assumptions_&_Inputs'!$J$72="Moderate",(AH84*$AW$120),IF('Key_Assumptions_&_Inputs'!$J$72="Difficult",AH84*$AW$121))) -> 0 | AI119: Easy | AJ119: 3 | AK119: =AJ119/60 -> 0.05 | AL119: =AJ119*(1-$AK$87) -> 2.25 | AM119: =AL119/60 -> 0.0375 | AN119: =AL119*(1-$AL$87) -> 1.9125 | AO119: =AN119/60 -> 0.031875 | AQ119: Easy | AR119: 3 | AS119: =AR119/60 -> 0.05 | AT119: =AR119*(1-$AK$87) -> 2.25 | AU119: =AT119/60 -> 0.0375 | AV119: =AT119*(1-$AL$87) -> 1.9125 | AW119: =AV119/60 -> 0.031875
B120: Labor rate | E120: =$D$13 -> 25 | F120: =E120*(1+$D$14) -> 25.75 | G120: 26.5225 | H120: 27.318175 | I120: 28.13772025 | J120: 28.98185186 | K120: 29.85130741 | L120: 30.74684664 | M120: 31.66925203 | N120: 32.6193296 | O120: 33.59790948 | P120: 34.60584677 | Q120: 35.64402217 | R120: 36.71334284 | S120: 37.81474312 | T120: 38.94918542 | U120: 40.11766098 | V120: 41.32119081 | W120: 42.56082653 | X120: 43.83765133 | Y120: 45.15278087 | Z120: 46.50736429 | AA120: 47.90258522 | AB120: 49.33966278 | AC120: 50.81985266 | AD120: 52.34444824 | AE120: 53.91478169 | AF120: 55.53222514 | AG120: 57.19819189 | AH120: 58.91413765 | AI120: Moderate | AJ120: 4 | AK120: 0.06666666667 | AL120: 3 | AM120: 0.05 | AN120: 2.55 | AO120: 0.0425 | AQ120: Moderate | AR120: 5 | AS120: 0.08333333333 | AT120: 3.75 | AU120: 0.0625 | AV120: 3.1875 | AW120: 0.053125
B121: Annual costs | E121: =((E118+E119)*E120)*12 -> 9000 | F121: 6952.5 | G121: 6086.91375 | H121: 6269.521162 | I121: 6457.606797 | J121: 6651.335001 | K121: 6850.875051 | L121: 7056.401303 | M121: 7268.093342 | N121: 7486.136142 | O121: 7710.720226 | P121: 7942.041833 | Q121: 8180.303088 | R121: 8425.712181 | S121: 8678.483546 | T121: 8938.838053 | U121: 9207.003194 | V121: 9483.21329 | W121: 9767.709689 | X121: 10060.74098 | Y121: 0 | Z121: 0 | AA121: 0 | AB121: 0 | AC121: 0 | AD121: 0 | AE121: 0 | AF121: 0 | AG121: 0 | AH121: 0 | AI121: Difficult | AJ121: 5 | AK121: 0.08333333333 | AL121: 3.75 | AM121: 0.0625 | AN121: 3.1875 | AO121: 0.053125 | AQ121: Difficult | AR121: 7 | AS121: 0.1166666667 | AT121: 5.25 | AU121: 0.0875 | AV121: 4.4625 | AW121: 0.074375

Sheet Community_Solar_Business_Case
A1: Community Solar Business Case: This tab pulls inputs and assumptions to summarize costs and benefits to the system owner and subscribers over time.
B7: Subscription Model: | C7: ='Key_Assumptions_&_Inputs'!E16 -> Share Leasing
B8: ='Key_Assumptions_&_Inputs'!C17 -> Monthly Lease Price per Share: | C8: ='Key_Assumptions_&_Inputs'!E17 -> 2 | F8: =Capital_subsidy/(Capital_subsidy-$E$36) -> 0
B10: System Generation and Rates
B11: Project Year | D11: 0 | E11: 1 | F11: 2 | G11: 3 | H11: 4 | I11: 5 | J11: 6 | K11: 7 | L11: 8 | M11: 9 | N11: 10 | O11: 11 | P11: 12 | Q11: 13 | R11: 14 | S11: 15 | T11: 16 | U11: 17 | V11: 18 | W11: 19 | X11: 20 | Y11: 21 | Z11: 22 | AA11: 23 | AB11: 24 | AC11: 25 | AD11: 26 | AE11: 27 | AF11: 28 | AG11: 29 | AH11: 30
B12: Calendar Year | D12: =StartYr-1 -> 2021 | E12: =StartYr+E11-1 -> 2022 | F12: 2023 | G12: 2024 | H12: 2025 | I12: 2026 | J12: 2027 | K12: 2028 | L12: 2029 | M12: 2030 | N12: 2031 | O12: 2032 | P12: 2033 | Q12: 2034 | R12: 2035 | S12: 2036 | T12: 2037 | U12: 2038 | V12: 2039 | W12: 2040 | X12: 2041 | Y12: 2042 | Z12: 2043 | AA12: 2044 | AB12: 2045 | AC12: 2046 | AD12: 2047 | AE12: 2048 | AF12: 2049 | AG12: 2050 | AH12: 2051
B13: Retail Rate ($/kWh) | E13: =RetailEnergyCost -> 0.11 | F13: =E13*(1+RetailEnergyCostEscalation) -> 0.1122 | G13: 0.114444 | H13: 0.11673288 | I13: 0.1190675376 | J13: 0.1214488884 | K13: 0.1238778661 | L13: 0.1263554234 | M13: 0.1288825319 | N13: 0.1314601825 | O13: 0.1340893862 | P13: 0.1367711739 | Q13: 0.1395065974 | R13: 0.1422967293 | S13: 0.1451426639 | T13: 0.1480455172 | U13: 0.1510064276 | V13: 0.1540265561 | W13: 0.1571070872 | X13: 0.160249229 | Y13: 0.1634542136 | Z13: 0.1667232978 | AA13: 0.1700577638 | AB13: 0.1734589191 | AC13: 0.1769280974 | AD13: 0.1804666594 | AE13: 0.1840759926 | AF13: 0.1877575124 | AG13: 0.1915126627 | AH13: 0.1953429159
B14: Subscriber Rate ($/kWh) | E14: =CreditRate -> 0.1 | F14: =E14*(1+SharePriceEscalator) -> 0.1 | G14: 0.1 | H14: 0.1 | I14: 0.1 | J14: 0.1 | K14: 0.1 | L14: 0.1 | M14: 0.1 | N14: 0.1 | O14: 0.1 | P14: 0.1 | Q14: 0.1 | R14: 0.1 | S14: 0.1 | T14: 0.1 | U14: 0.1 | V14: 0.1 | W14: 0.1 | X14: 0.1 | Y14: 0.1 | Z14: 0.1 | AA14: 0.1 | AB14: 0.1 | AC14: 0.1 | AD14: 0.1 | AE14: 0.1 | AF14: 0.1 | AG14: 0.1 | AH14: 0.1
B15: Generation from Subscriber poriton of array (kWh/year) | E15: =AnnualPowerPerKw*SystemSizeDC*(1-Capital_subsidy/(Capital_subsidy-$E$36)) -> 2973600 | F15: =(1-AnnualDerate)*E15 -> 2958732 | G15: 2943938.34 | H15: 2929218.648 | I15: 2914572.555 | J15: 2899999.692 | K15: 2885499.694 | L15: 2871072.195 | M15: 2856716.834 | N15: 2842433.25 | O15: 2828221.084 | P15: 2814079.979 | Q15: 2800009.579 | R15: 2786009.531 | S15: 2772079.483 | T15: 2758219.086 | U15: 2744427.99 | V15: 2730705.85 | W15: 2717052.321 | X15: 2703467.059 | Y15: 2689949.724 | Z15: 2676499.976 | AA15: 2663117.476 | AB15: 2649801.888 | AC15: 2636552.879 | AD15: 2623370.114 | AE15: 2610253.264 | AF15: 2597201.998 | AG15: 2584215.988 | AH15: 2571294.908
B16: Generation from portion of array dedication to Low Income (kWh/yr) | E16: =AnnualPowerPerKw*SystemSizeDC*(Capital_subsidy/(Capital_subsidy-$E$36)) -> 0 | F16: =(1-AnnualDerate)*E16 -> 0 | G16: 0 | H16: 0 | I16: 0 | J16: 0 | K16: 0 | L16: 0 | M16: 0 | N16: 0 | O16: 0 | P16: 0 | Q16: 0 | R16: 0 | S16: 0 | T16: 0 | U16: 0 | V16: 0 | W16: 0 | X16: 0 | Y16: 0 | Z16: 0 | AA16: 0 | AB16: 0 | AC16: 0 | AD16: 0 | AE16: 0 | AF16: 0 | AG16: 0 | AH16: 0
B17: Value of subscribed energy based on subscriber credit rate ($) | D17: 0 | E17: =E15*E14 -> 297360 | F17: 295873.2 | G17: 294393.834 | H17: 292921.8648 | I17: 291457.2555 | J17: 289999.9692 | K17: 288549.9694 | L17: 287107.2195 | M17: 285671.6834 | N17: 284243.325 | O17: 282822.1084 | P17: 281407.9979 | Q17: 280000.9579 | R17: 278600.9531 | S17: 277207.9483 | T17: 275821.9086 | U17: 274442.799 | V17: 273070.585 | W17: 271705.2321 | X17: 270346.7059 | Y17: 268994.9724 | Z17: 267649.9976 | AA17: 266311.7476 | AB17: 264980.1888 | AC17: 263655.2879 | AD17: 262337.0114 | AE17: 261025.3264 | AF17: 259720.1998 | AG17: 258421.5988 | AH17: 257129.4908
B18: Value of energy to LI Fund based on adder ($) | D18: 0 | E18: =E15*(LI_Adder) -> 29736 | F18: 29587.32 | G18: 29439.3834 | H18: 29292.18648 | I18: 29145.72555 | J18: 28999.99692 | K18: 28854.99694 | L18: 28710.72195 | M18: 28567.16834 | N18: 28424.3325 | O18: 28282.21084 | P18: 28140.79979 | Q18: 28000.09579 | R18: 27860.09531 | S18: 27720.79483 | T18: 27582.19086 | U18: 27444.2799 | V18: 27307.0585 | W18: 27170.52321 | X18: 27034.67059 | Y18: 26899.49724 | Z18: 26764.99976 | AA18: 26631.17476 | AB18: 26498.01888 | AC18: 26365.52879 | AD18: 26233.70114 | AE18: 26102.53264 | AF18: 25972.01998 | AG18: 25842.15988 | AH18: 25712.94908
F19: 0.1 | G19: 0
B20: Community Shared Solar Customer Acquisition Schedule
B21: Project Year | D21: 0 | E21: 1 | F21: 2 | G21: 3 | H21: 4 | I21: 5 | J21: 6 | K21: 7 | L21: 8 | M21: 9 | N21: 10 | O21: 11 | P21: 12 | Q21: 13 | R21: 14 | S21: 15 | T21: 16 | U21: 17 | V21: 18 | W21: 19 | X21: 20 | Y21: 21 | Z21: 22 | AA21: 23 | AB21: 24 | AC21: 25 | AD21: 26 | AE21: 27 | AF21: 28 | AG21: 29 | AH21: 30
B22: Calendar Year | D22: =StartYr-1 -> 2021 | E22: =StartYr+E21-1 -> 2022 | F22: 2023 | G22: 2024 | H22: 2025 | I22: 2026 | J22: 2027 | K22: 2028 | L22: 2029 | M22: 2030 | N22: 2031 | O22: 2032 | P22: 2033 | Q22: 2034 | R22: 2035 | S22: 2036 | T22: 2037 | U22: 2038 | V22: 2039 | W22: 2040 | X22: 2041 | Y22: 2042 | Z22: 2043 | AA22: 2044 | AB22: 2045 | AC22: 2046 | AD22: 2047 | AE22: 2048 | AF22: 2049 | AG22: 2050 | AH22: 2051
B23: New Subscribers | D23: 0 | E23: =IF(E21<=SubscriptionLife,IF(E21<SubscriptionLife+1,IF(E21<='Key_Assumptions_&_Inputs'!$E$27,((1-'Key_Assumptions_&_Inputs'!$E$52)*TotalShares/SharePerSub)/'Key_Assumptions_&_Inputs'!$E$27,0),0),0)*(1-PercentPV_LI) -> 300 | F23: =IF(F21<=SubscriptionLife,IF(F21<='Key_Assumptions_&_Inputs'!$E$27,((1-'Key_Assumptions_&_Inputs'!$E$52)*TotalShares/SharePerSub)/'Key_Assumptions_&_Inputs'!$E$27,0)+'Key_Assumptions_&_Inputs'!$E$53*((1-'Key_Assumptions_&_Inputs'!$E$52)*TotalShares/SharePerSub),0) -> 4.5 | G23: =IF(G21<=SubscriptionLife,IF(G21<='Key_Assumptions_&_Inputs'!$E$27,((1-'Key_Assumptions_&_Inputs'!$E$52)*TotalShares/SharePerSub)/'Key_Assumptions_&_Inputs'!$E$27,0)+'Key_Assumptions_&_Inputs'!$E$53*((1-'Key_Assumptions_&_Inputs'!$E$52)*TotalShares/SharePerSub),0) -> 4.5 | H23: =IF(H21<=SubscriptionLife,IF(H21<='Key_Assumptions_&_Inputs'!$E$27,((1-'Key_Assumptions_&_Inputs'!$E$52)*TotalShares/SharePerSub)/'Key_Assumptions_&_Inputs'!$E$27,0)+'Key_Assumptions_&_Inputs'!$E$53*((1-'Key_Assumptions_&_Inputs'!$E$52)*TotalShares/SharePerSub),0) -> 4.5 | I23: =IF(I21<=SubscriptionLife,IF(I21<='Key_Assumptions_&_Inputs'!$E$27,((1-'Key_Assumptions_&_Inputs'!$E$52)*TotalShares/SharePerSub)/'Key_Assumptions_&_Inputs'!$E$27,0)+'Key_Assumptions_&_Inputs'!$E$53*((1-'Key_Assumptions_&_Inputs'!$E$52)*TotalShares/SharePerSub),0) -> 4.5 | J23: =IF(J21<=SubscriptionLife,IF(J21<='Key_Assumptions_&_Inputs'!$E$27,((1-'Key_Assumptions_&_Inputs'!$E$52)*TotalShares/SharePerSub)/'Key_Assumptions_&_Inputs'!$E$27,0)+'Key_Assumptions_&_Inputs'!$E$53*((1-'Key_Assumptions_&_Inputs'!$E$52)*TotalShares/SharePerSub),0) -> 4.5 | K23: =IF(K21<=SubscriptionLife,IF(K21<='Key_Assumptions_&_Inputs'!$E$27,((1-'Key_Assumptions_&_Inputs'!$E$52)*TotalShares/SharePerSub)/'Key_Assumptions_&_Inputs'!$E$27,0)+'Key_Assumptions_&_Inputs'!$E$53*((1-'Key_Assumptions_&_Inputs'!$E$52)*TotalShares/SharePerSub),0) -> 4.5 | L23: =IF(L21<=SubscriptionLife,IF(L21<='Key_Assumptions_&_Inputs'!$E$27,((1-'Key_Assumptions_&_Inputs'!$E$52)*TotalShares/SharePerSub)/'Key_Assumptions_&_Inputs'!$E$27,0)+'Key_Assumptions_&_Inputs'!$E$53*((1-'Key_Assumptions_&_Inputs'!$E$52)*TotalShares/SharePerSub),0) -> 4.5 | M23: =IF(M21<=SubscriptionLife,IF(M21<='Key_Assumptions_&_Inputs'!$E$27,((1-'Key_Assumptions_&_Inputs'!$E$52)*TotalShares/SharePerSub)/'Key_Assumptions_&_Inputs'!$E$27,0)+'Key_Assumptions_&_Inputs'!$E$53*((1-'Key_Assumptions_&_Inputs'!$E$52)*TotalShares/SharePerSub),0) -> 4.5 | N23: =IF(N21<=SubscriptionLife,IF(N21<='Key_Assumptions_&_Inputs'!$E$27,((1-'Key_Assumptions_&_Inputs'!$E$52)*TotalShares/SharePerSub)/'Key_Assumptions_&_Inputs'!$E$27,0)+'Key_Assumptions_&_Inputs'!$E$53*((1-'Key_Assumptions_&_Inputs'!$E$52)*TotalShares/SharePerSub),0) -> 4.5 | O23: =IF(O21<=SubscriptionLife,IF(O21<='Key_Assumptions_&_Inputs'!$E$27,((1-'Key_Assumptions_&_Inputs'!$E$52)*TotalShares/SharePerSub)/'Key_Assumptions_&_Inputs'!$E$27,0)+'Key_Assumptions_&_Inputs'!$E$53*((1-'Key_Assumptions_&_Inputs'!$E$52)*TotalShares/SharePerSub),0) -> 4.5 | P23: =IF(P21<=SubscriptionLife,IF(P21<='Key_Assumptions_&_Inputs'!$E$27,((1-'Key_Assumptions_&_Inputs'!$E$52)*TotalShares/SharePerSub)/'Key_Assumptions_&_Inputs'!$E$27,0)+'Key_Assumptions_&_Inputs'!$E$53*((1-'Key_Assumptions_&_Inputs'!$E$52)*TotalShares/SharePerSub),0) -> 4.5 | Q23: =IF(Q21<=SubscriptionLife,IF(Q21<='Key_Assumptions_&_Inputs'!$E$27,((1-'Key_Assumptions_&_Inputs'!$E$52)*TotalShares/SharePerSub)/'Key_Assumptions_&_Inputs'!$E$27,0)+'Key_Assumptions_&_Inputs'!$E$53*((1-'Key_Assumptions_&_Inputs'!$E$52)*TotalShares/SharePerSub),0) -> 4.5 | R23: =IF(R21<=SubscriptionLife,IF(R21<='Key_Assumptions_&_Inputs'!$E$27,((1-'Key_Assumptions_&_Inputs'!$E$52)*TotalShares/SharePerSub)/'Key_Assumptions_&_Inputs'!$E$27,0)+'Key_Assumptions_&_Inputs'!$E$53*((1-'Key_Assumptions_&_Inputs'!$E$52)*TotalShares/SharePerSub),0) -> 4.5 | S23: =IF(S21<=SubscriptionLife,IF(S21<='Key_Assumptions_&_Inputs'!$E$27,((1-'Key_Assumptions_&_Inputs'!$E$52)*TotalShares/SharePerSub)/'Key_Assumptions_&_Inputs'!$E$27,0)+'Key_Assumptions_&_Inputs'!$E$53*((1-'Key_Assumptions_&_Inputs'!$E$52)*TotalShares/SharePerSub),0) -> 4.5 | T23: =IF(T21<=SubscriptionLife,IF(T21<='Key_Assumptions_&_Inputs'!$E$27,((1-'Key_Assumptions_&_Inputs'!$E$52)*TotalShares/SharePerSub)/'Key_Assumptions_&_Inputs'!$E$27,0)+'Key_Assumptions_&_Inputs'!$E$53*((1-'Key_Assumptions_&_Inputs'!$E$52)*TotalShares/SharePerSub),0) -> 4.5 | U23: =IF(U21<=SubscriptionLife,IF(U21<='Key_Assumptions_&_Inputs'!$E$27,((1-'Key_Assumptions_&_Inputs'!$E$52)*TotalShares/SharePerSub)/'Key_Assumptions_&_Inputs'!$E$27,0)+'Key_Assumptions_&_Inputs'!$E$53*((1-'Key_Assumptions_&_Inputs'!$E$52)*TotalShares/SharePerSub),0) -> 4.5 | V23: =IF(V21<=SubscriptionLife,IF(V21<='Key_Assumptions_&_Inputs'!$E$27,((1-'Key_Assumptions_&_Inputs'!$E$52)*TotalShares/SharePerSub)/'Key_Assumptions_&_Inputs'!$E$27,0)+'Key_Assumptions_&_Inputs'!$E$53*((1-'Key_Assumptions_&_Inputs'!$E$52)*TotalShares/SharePerSub),0) -> 4.5 | W23: =IF(W21<=SubscriptionLife,IF(W21<='Key_Assumptions_&_Inputs'!$E$27,((1-'Key_Assumptions_&_Inputs'!$E$52)*TotalShares/SharePerSub)/'Key_Assumptions_&_Inputs'!$E$27,0)+'Key_Assumptions_&_Inputs'!$E$53*((1-'Key_Assumptions_&_Inputs'!$E$52)*TotalShares/SharePerSub),0) -> 4.5 | X23: =IF(X21<=SubscriptionLife,IF(X21<='Key_Assumptions_&_Inputs'!$E$27,((1-'Key_Assumptions_&_Inputs'!$E$52)*TotalShares/SharePerSub)/'Key_Assumptions_&_Inputs'!$E$27,0)+'Key_Assumptions_&_Inputs'!$E$53*((1-'Key_Assumptions_&_Inputs'!$E$52)*TotalShares/SharePerSub),0) -> 4.5 | Y23: =IF(Y21<=SubscriptionLife,IF(Y21<='Key_Assumptions_&_Inputs'!$E$27,((1-'Key_Assumptions_&_Inputs'!$E$52)*TotalShares/SharePerSub)/'Key_Assumptions_&_Inputs'!$E$27,0)+'Key_Assumptions_&_Inputs'!$E$53*((1-'Key_Assumptions_&_Inputs'!$E$52)*TotalShares/SharePerSub),0) -> 0 | Z23: =IF(Z21<=SubscriptionLife,IF(Z21<='Key_Assumptions_&_Inputs'!$E$27,((1-'Key_Assumptions_&_Inputs'!$E$52)*TotalShares/SharePerSub)/'Key_Assumptions_&_Inputs'!$E$27,0)+'Key_Assumptions_&_Inputs'!$E$53*((1-'Key_Assumptions_&_Inputs'!$E$52)*TotalShares/SharePerSub),0) -> 0 | AA23: =IF(AA21<=SubscriptionLife,IF(AA21<='Key_Assumptions_&_Inputs'!$E$27,((1-'Key_Assumptions_&_Inputs'!$E$52)*TotalShares/SharePerSub)/'Key_Assumptions_&_Inputs'!$E$27,0)+'Key_Assumptions_&_Inputs'!$E$53*((1-'Key_Assumptions_&_Inputs'!$E$52)*TotalShares/SharePerSub),0) -> 0 | AB23: =IF(AB21<=SubscriptionLife,IF(AB21<='Key_Assumptions_&_Inputs'!$E$27,((1-'Key_Assumptions_&_Inputs'!$E$52)*TotalShares/SharePerSub)/'Key_Assumptions_&_Inputs'!$E$27,0)+'Key_Assumptions_&_Inputs'!$E$53*((1-'Key_Assumptions_&_Inputs'!$E$52)*TotalShares/SharePerSub),0) -> 0 | AC23: =IF(AC21<=SubscriptionLife,IF(AC21<='Key_Assumptions_&_Inputs'!$E$27,((1-'Key_Assumptions_&_Inputs'!$E$52)*TotalShares/SharePerSub)/'Key_Assumptions_&_Inputs'!$E$27,0)+'Key_Assumptions_&_Inputs'!$E$53*((1-'Key_Assumptions_&_Inputs'!$E$52)*TotalShares/SharePerSub),0) -> 0 | AD23: =IF(AD21<=SubscriptionLife,IF(AD21<='Key_Assumptions_&_Inputs'!$E$27,((1-'Key_Assumptions_&_Inputs'!$E$52)*TotalShares/SharePerSub)/'Key_Assumptions_&_Inputs'!$E$27,0)+'Key_Assumptions_&_Inputs'!$E$53*((1-'Key_Assumptions_&_Inputs'!$E$52)*TotalShares/SharePerSub),0) -> 0 | AE23: =IF(AE21<=SubscriptionLife,IF(AE21<='Key_Assumptions_&_Inputs'!$E$27,((1-'Key_Assumptions_&_Inputs'!$E$52)*TotalShares/SharePerSub)/'Key_Assumptions_&_Inputs'!$E$27,0)+'Key_Assumptions_&_Inputs'!$E$53*((1-'Key_Assumptions_&_Inputs'!$E$52)*TotalShares/SharePerSub),0) -> 0 | AF23: =IF(AF21<=SubscriptionLife,IF(AF21<='Key_Assumptions_&_Inputs'!$E$27,((1-'Key_Assumptions_&_Inputs'!$E$52)*TotalShares/SharePerSub)/'Key_Assumptions_&_Inputs'!$E$27,0)+'Key_Assumptions_&_Inputs'!$E$53*((1-'Key_Assumptions_&_Inputs'!$E$52)*TotalShares/SharePerSub),0) -> 0 | AG23: =IF(AG21<=SubscriptionLife,IF(AG21<='Key_Assumptions_&_Inputs'!$E$27,((1-'Key_Assumptions_&_Inputs'!$E$52)*TotalShares/SharePerSub)/'Key_Assumptions_&_Inputs'!$E$27,0)+'Key_Assumptions_&_Inputs'!$E$53*((1-'Key_Assumptions_&_Inputs'!$E$52)*TotalShares/SharePerSub),0) -> 0 | AH23: =IF(AH21<=SubscriptionLife,IF(AH21<='Key_Assumptions_&_Inputs'!$E$27,((1-'Key_Assumptions_&_Inputs'!$E$52)*TotalShares/SharePerSub)/'Key_Assumptions_&_Inputs'!$E$27,0)+'Key_Assumptions_&_Inputs'!$E$53*((1-'Key_Assumptions_&_Inputs'!$E$52)*TotalShares/SharePerSub),0) -> 0
B24: Dropped Subscribers | D24: 0 | E24: 0 | F24: =IF(F21<=SubscriptionLife,('Key_Assumptions_&_Inputs'!$E$53*(1-'Key_Assumptions_&_Inputs'!$E$52)*(TotalShares/SharePerSub)),0) -> 4.5 | G24: =IF(G21<=SubscriptionLife,('Key_Assumptions_&_Inputs'!$E$53*(1-'Key_Assumptions_&_Inputs'!$E$52)*(TotalShares/SharePerSub)),0) -> 4.5 | H24: =IF(H21<=SubscriptionLife,('Key_Assumptions_&_Inputs'!$E$53*(1-'Key_Assumptions_&_Inputs'!$E$52)*(TotalShares/SharePerSub)),0) -> 4.5 | I24: =IF(I21<=SubscriptionLife,('Key_Assumptions_&_Inputs'!$E$53*(1-'Key_Assumptions_&_Inputs'!$E$52)*(TotalShares/SharePerSub)),0) -> 4.5 | J24: =IF(J21<=SubscriptionLife,('Key_Assumptions_&_Inputs'!$E$53*(1-'Key_Assumptions_&_Inputs'!$E$52)*(TotalShares/SharePerSub)),0) -> 4.5 | K24: =IF(K21<=SubscriptionLife,('Key_Assumptions_&_Inputs'!$E$53*(1-'Key_Assumptions_&_Inputs'!$E$52)*(TotalShares/SharePerSub)),0) -> 4.5 | L24: =IF(L21<=SubscriptionLife,('Key_Assumptions_&_Inputs'!$E$53*(1-'Key_Assumptions_&_Inputs'!$E$52)*(TotalShares/SharePerSub)),0) -> 4.5 | M24: =IF(M21<=SubscriptionLife,('Key_Assumptions_&_Inputs'!$E$53*(1-'Key_Assumptions_&_Inputs'!$E$52)*(TotalShares/SharePerSub)),0) -> 4.5 | N24: =IF(N21<=SubscriptionLife,('Key_Assumptions_&_Inputs'!$E$53*(1-'Key_Assumptions_&_Inputs'!$E$52)*(TotalShares/SharePerSub)),0) -> 4.5 | O24: =IF(O21<=SubscriptionLife,('Key_Assumptions_&_Inputs'!$E$53*(1-'Key_Assumptions_&_Inputs'!$E$52)*(TotalShares/SharePerSub)),0) -> 4.5 | P24: =IF(P21<=SubscriptionLife,('Key_Assumptions_&_Inputs'!$E$53*(1-'Key_Assumptions_&_Inputs'!$E$52)*(TotalShares/SharePerSub)),0) -> 4.5 | Q24: =IF(Q21<=SubscriptionLife,('Key_Assumptions_&_Inputs'!$E$53*(1-'Key_Assumptions_&_Inputs'!$E$52)*(TotalShares/SharePerSub)),0) -> 4.5 | R24: =IF(R21<=SubscriptionLife,('Key_Assumptions_&_Inputs'!$E$53*(1-'Key_Assumptions_&_Inputs'!$E$52)*(TotalShares/SharePerSub)),0) -> 4.5 | S24: =IF(S21<=SubscriptionLife,('Key_Assumptions_&_Inputs'!$E$53*(1-'Key_Assumptions_&_Inputs'!$E$52)*(TotalShares/SharePerSub)),0) -> 4.5 | T24: =IF(T21<=SubscriptionLife,('Key_Assumptions_&_Inputs'!$E$53*(1-'Key_Assumptions_&_Inputs'!$E$52)*(TotalShares/SharePerSub)),0) -> 4.5 | U24: =IF(U21<=SubscriptionLife,('Key_Assumptions_&_Inputs'!$E$53*(1-'Key_Assumptions_&_Inputs'!$E$52)*(TotalShares/SharePerSub)),0) -> 4.5 | V24: =IF(V21<=SubscriptionLife,('Key_Assumptions_&_Inputs'!$E$53*(1-'Key_Assumptions_&_Inputs'!$E$52)*(TotalShares/SharePerSub)),0) -> 4.5 | W24: =IF(W21<=SubscriptionLife,('Key_Assumptions_&_Inputs'!$E$53*(1-'Key_Assumptions_&_Inputs'!$E$52)*(TotalShares/SharePerSub)),0) -> 4.5 | X24: =IF(X21<=SubscriptionLife,('Key_Assumptions_&_Inputs'!$E$53*(1-'Key_Assumptions_&_Inputs'!$E$52)*(TotalShares/SharePerSub)),0) -> 4.5 | Y24: =IF(Y21<=SubscriptionLife,('Key_Assumptions_&_Inputs'!$E$53*(1-'Key_Assumptions_&_Inputs'!$E$52)*(TotalShares/SharePerSub)),0) -> 0 | Z24: =IF(Z21<=SubscriptionLife,('Key_Assumptions_&_Inputs'!$E$53*(1-'Key_Assumptions_&_Inputs'!$E$52)*(TotalShares/SharePerSub)),0) -> 0 | AA24: =IF(AA21<=SubscriptionLife,('Key_Assumptions_&_Inputs'!$E$53*(1-'Key_Assumptions_&_Inputs'!$E$52)*(TotalShares/SharePerSub)),0) -> 0 | AB24: =IF(AB21<=SubscriptionLife,('Key_Assumptions_&_Inputs'!$E$53*(1-'Key_Assumptions_&_Inputs'!$E$52)*(TotalShares/SharePerSub)),0) -> 0 | AC24: =IF(AC21<=SubscriptionLife,('Key_Assumptions_&_Inputs'!$E$53*(1-'Key_Assumptions_&_Inputs'!$E$52)*(TotalShares/SharePerSub)),0) -> 0 | AD24: =IF(AD21<=SubscriptionLife,('Key_Assumptions_&_Inputs'!$E$53*(1-'Key_Assumptions_&_Inputs'!$E$52)*(TotalShares/SharePerSub)),0) -> 0 | AE24: =IF(AE21<=SubscriptionLife,('Key_Assumptions_&_Inputs'!$E$53*(1-'Key_Assumptions_&_Inputs'!$E$52)*(TotalShares/SharePerSub)),0) -> 0 | AF24: =IF(AF21<=SubscriptionLife,('Key_Assumptions_&_Inputs'!$E$53*(1-'Key_Assumptions_&_Inputs'!$E$52)*(TotalShares/SharePerSub)),0) -> 0 | AG24: =IF(AG21<=SubscriptionLife,('Key_Assumptions_&_Inputs'!$E$53*(1-'Key_Assumptions_&_Inputs'!$E$52)*(TotalShares/SharePerSub)),0) -> 0 | AH24: =IF(AH21<=SubscriptionLife,('Key_Assumptions_&_Inputs'!$E$53*(1-'Key_Assumptions_&_Inputs'!$E$52)*(TotalShares/SharePerSub)),0) -> 0
B25: Cumulative Subcribers | D25: 0 | E25: =E23-E24 -> 300 | F25: =IF(F21<=SubscriptionLife,E25+F23-F24,0) -> 300 | G25: 300 | H25: 300 | I25: 300 | J25: 300 | K25: 300 | L25: 300 | M25: 300 | N25: 300 | O25: 300 | P25: 300 | Q25: 300 | R25: 300 | S25: 300 | T25: 300 | U25: 300 | V25: 300 | W25: 300 | X25: 300 | Y25: 0 | Z25: 0 | AA25: 0 | AB25: 0 | AC25: 0 | AD25: 0 | AE25: 0 | AF25: 0 | AG25: 0 | AH25: 0
B26: Un-Subsidized Subcribers | D26: 0 | E26: =E25 -> 300 | F26: 300 | G26: 300 | H26: 300 | I26: 300 | J26: 300 | K26: 300 | L26: 300 | M26: 300 | N26: 300 | O26: 300 | P26: 300 | Q26: 300 | R26: 300 | S26: 300 | T26: 300 | U26: 300 | V26: 300 | W26: 300 | X26: 300 | Y26: 0 | Z26: 0 | AA26: 0 | AB26: 0 | AC26: 0 | AD26: 0 | AE26: 0 | AF26: 0 | AG26: 0 | AH26: 0
B28: Panel Lease Price Un-Subsidized | E28: =-SharePrice*12*SharePerSub*(1+SharePriceEscalator)^(E20-1) -> -960 | F28: -960 | G28: -960 | H28: -960 | I28: -960 | J28: -960 | K28: -960 | L28: -960 | M28: -960 | N28: -960 | O28: -960 | P28: -960 | Q28: -960 | R28: -960 | S28: -960 | T28: -960 | U28: -960 | V28: -960 | W28: -960 | X28: -960 | Y28: -960 | Z28: -960 | AA28: -960 | AB28: -960 | AC28: -960 | AD28: -960 | AE28: -960 | AF28: -960 | AG28: -960 | AH28: -960
B30: Community Solar System Financials - Utility Owner
D31: Project Year: | E31: 0 | F31: 1 | G31: 2 | H31: 3 | I31: 4 | J31: 5 | K31: 6 | L31: 7 | M31: 8 | N31: 9 | O31: 10 | P31: 11 | Q31: 12 | R31: 13 | S31: 14 | T31: 15 | U31: 16 | V31: 17 | W31: 18 | X31: 19 | Y31: 20 | Z31: 21 | AA31: 22 | AB31: 23 | AC31: 24 | AD31: 25 | AE31: 26 | AF31: 27 | AG31: 28 | AH31: 29 | AI31: 30 | AJ31: Totals | AK31: NPV
D32: Calendar Year: | E32: =StartYr-1 -> 2021 | F32: =StartYr+F31-1 -> 2022 | G32: 2023 | H32: 2024 | I32: 2025 | J32: 2026 | K32: 2027 | L32: 2028 | M32: 2029 | N32: 2030 | O32: 2031 | P32: 2032 | Q32: 2033 | R32: 2034 | S32: 2035 | T32: 2036 | U32: 2037 | V32: 2038 | W32: 2039 | X32: 2040 | Y32: 2041 | Z32: 2042 | AA32: 2043 | AB32: 2044 | AC32: 2045 | AD32: 2046 | AE32: 2047 | AF32: 2048 | AG32: 2049 | AH32: 2050 | AI32: 2051
B33: System Capital
B34: Cost of Land (upfront and/or lease) | D34: $ | E34: =IF(E31=0,-'Key_Assumptions_&_Inputs'!$J$46-'Key_Assumptions_&_Inputs'!$J$47*1000*SystemSizeDC-'Key_Assumptions_&_Inputs'!$J$48,-'Key_Assumptions_&_Inputs'!$J$48) -> -492000 | F34: =IF(F31=0,-'Key_Assumptions_&_Inputs'!$J$46-'Key_Assumptions_&_Inputs'!$J$47*1000*SystemSizeDC-'Key_Assumptions_&_Inputs'!$J$48,-'Key_Assumptions_&_Inputs'!$J$48) -> 0 | G34: =IF(G31=0,-'Key_Assumptions_&_Inputs'!$J$46-'Key_Assumptions_&_Inputs'!$J$47*1000*SystemSizeDC-'Key_Assumptions_&_Inputs'!$J$48,-'Key_Assumptions_&_Inputs'!$J$48) -> 0 | H34: =IF(H31=0,-'Key_Assumptions_&_Inputs'!$J$46-'Key_Assumptions_&_Inputs'!$J$47*1000*SystemSizeDC-'Key_Assumptions_&_Inputs'!$J$48,-'Key_Assumptions_&_Inputs'!$J$48) -> 0 | I34: =IF(I31=0,-'Key_Assumptions_&_Inputs'!$J$46-'Key_Assumptions_&_Inputs'!$J$47*1000*SystemSizeDC-'Key_Assumptions_&_Inputs'!$J$48,-'Key_Assumptions_&_Inputs'!$J$48) -> 0 | J34: =IF(J31=0,-'Key_Assumptions_&_Inputs'!$J$46-'Key_Assumptions_&_Inputs'!$J$47*1000*SystemSizeDC-'Key_Assumptions_&_Inputs'!$J$48,-'Key_Assumptions_&_Inputs'!$J$48) -> 0 | K34: =IF(K31=0,-'Key_Assumptions_&_Inputs'!$J$46-'Key_Assumptions_&_Inputs'!$J$47*1000*SystemSizeDC-'Key_Assumptions_&_Inputs'!$J$48,-'Key_Assumptions_&_Inputs'!$J$48) -> 0 | L34: =IF(L31=0,-'Key_Assumptions_&_Inputs'!$J$46-'Key_Assumptions_&_Inputs'!$J$47*1000*SystemSizeDC-'Key_Assumptions_&_Inputs'!$J$48,-'Key_Assumptions_&_Inputs'!$J$48) -> 0 | M34: =IF(M31=0,-'Key_Assumptions_&_Inputs'!$J$46-'Key_Assumptions_&_Inputs'!$J$47*1000*SystemSizeDC-'Key_Assumptions_&_Inputs'!$J$48,-'Key_Assumptions_&_Inputs'!$J$48) -> 0 | N34: =IF(N31=0,-'Key_Assumptions_&_Inputs'!$J$46-'Key_Assumptions_&_Inputs'!$J$47*1000*SystemSizeDC-'Key_Assumptions_&_Inputs'!$J$48,-'Key_Assumptions_&_Inputs'!$J$48) -> 0 | O34: =IF(O31=0,-'Key_Assumptions_&_Inputs'!$J$46-'Key_Assumptions_&_Inputs'!$J$47*1000*SystemSizeDC-'Key_Assumptions_&_Inputs'!$J$48,-'Key_Assumptions_&_Inputs'!$J$48) -> 0 | P34: =IF(P31=0,-'Key_Assumptions_&_Inputs'!$J$46-'Key_Assumptions_&_Inputs'!$J$47*1000*SystemSizeDC-'Key_Assumptions_&_Inputs'!$J$48,-'Key_Assumptions_&_Inputs'!$J$48) -> 0 | Q34: =IF(Q31=0,-'Key_Assumptions_&_Inputs'!$J$46-'Key_Assumptions_&_Inputs'!$J$47*1000*SystemSizeDC-'Key_Assumptions_&_Inputs'!$J$48,-'Key_Assumptions_&_Inputs'!$J$48) -> 0 | R34: =IF(R31=0,-'Key_Assumptions_&_Inputs'!$J$46-'Key_Assumptions_&_Inputs'!$J$47*1000*SystemSizeDC-'Key_Assumptions_&_Inputs'!$J$48,-'Key_Assumptions_&_Inputs'!$J$48) -> 0 | S34: =IF(S31=0,-'Key_Assumptions_&_Inputs'!$J$46-'Key_Assumptions_&_Inputs'!$J$47*1000*SystemSizeDC-'Key_Assumptions_&_Inputs'!$J$48,-'Key_Assumptions_&_Inputs'!$J$48) -> 0 | T34: =IF(T31=0,-'Key_Assumptions_&_Inputs'!$J$46-'Key_Assumptions_&_Inputs'!$J$47*1000*SystemSizeDC-'Key_Assumptions_&_Inputs'!$J$48,-'Key_Assumptions_&_Inputs'!$J$48) -> 0 | U34: =IF(U31=0,-'Key_Assumptions_&_Inputs'!$J$46-'Key_Assumptions_&_Inputs'!$J$47*1000*SystemSizeDC-'Key_Assumptions_&_Inputs'!$J$48,-'Key_Assumptions_&_Inputs'!$J$48) -> 0 | V34: =IF(V31=0,-'Key_Assumptions_&_Inputs'!$J$46-'Key_Assumptions_&_Inputs'!$J$47*1000*SystemSizeDC-'Key_Assumptions_&_Inputs'!$J$48,-'Key_Assumptions_&_Inputs'!$J$48) -> 0 | W34: =IF(W31=0,-'Key_Assumptions_&_Inputs'!$J$46-'Key_Assumptions_&_Inputs'!$J$47*1000*SystemSizeDC-'Key_Assumptions_&_Inputs'!$J$48,-'Key_Assumptions_&_Inputs'!$J$48) -> 0 | X34: =IF(X31=0,-'Key_Assumptions_&_Inputs'!$J$46-'Key_Assumptions_&_Inputs'!$J$47*1000*SystemSizeDC-'Key_Assumptions_&_Inputs'!$J$48,-'Key_Assumptions_&_Inputs'!$J$48) -> 0 | Y34: =IF(Y31=0,-'Key_Assumptions_&_Inputs'!$J$46-'Key_Assumptions_&_Inputs'!$J$47*1000*SystemSizeDC-'Key_Assumptions_&_Inputs'!$J$48,-'Key_Assumptions_&_Inputs'!$J$48) -> 0 | Z34: =IF(Z31=0,-'Key_Assumptions_&_Inputs'!$J$46-'Key_Assumptions_&_Inputs'!$J$47*1000*SystemSizeDC-'Key_Assumptions_&_Inputs'!$J$48,-'Key_Assumptions_&_Inputs'!$J$48) -> 0 | AA34: =IF(AA31=0,-'Key_Assumptions_&_Inputs'!$J$46-'Key_Assumptions_&_Inputs'!$J$47*1000*SystemSizeDC-'Key_Assumptions_&_Inputs'!$J$48,-'Key_Assumptions_&_Inputs'!$J$48) -> 0 | AB34: =IF(AB31=0,-'Key_Assumptions_&_Inputs'!$J$46-'Key_Assumptions_&_Inputs'!$J$47*1000*SystemSizeDC-'Key_Assumptions_&_Inputs'!$J$48,-'Key_Assumptions_&_Inputs'!$J$48) -> 0 | AC34: =IF(AC31=0,-'Key_Assumptions_&_Inputs'!$J$46-'Key_Assumptions_&_Inputs'!$J$47*1000*SystemSizeDC-'Key_Assumptions_&_Inputs'!$J$48,-'Key_Assumptions_&_Inputs'!$J$48) -> 0 | AD34: =IF(AD31=0,-'Key_Assumptions_&_Inputs'!$J$46-'Key_Assumptions_&_Inputs'!$J$47*1000*SystemSizeDC-'Key_Assumptions_&_Inputs'!$J$48,-'Key_Assumptions_&_Inputs'!$J$48) -> 0 | AE34: =IF(AE31=0,-'Key_Assumptions_&_Inputs'!$J$46-'Key_Assumptions_&_Inputs'!$J$47*1000*SystemSizeDC-'Key_Assumptions_&_Inputs'!$J$48,-'Key_Assumptions_&_Inputs'!$J$48) -> 0 | AF34: =IF(AF31=0,-'Key_Assumptions_&_Inputs'!$J$46-'Key_Assumptions_&_Inputs'!$J$47*1000*SystemSizeDC-'Key_Assumptions_&_Inputs'!$J$48,-'Key_Assumptions_&_Inputs'!$J$48) -> 0 | AG34: =IF(AG31=0,-'Key_Assumptions_&_Inputs'!$J$46-'Key_Assumptions_&_Inputs'!$J$47*1000*SystemSizeDC-'Key_Assumptions_&_Inputs'!$J$48,-'Key_Assumptions_&_Inputs'!$J$48) -> 0 | AH34: =IF(AH31=0,-'Key_Assumptions_&_Inputs'!$J$46-'Key_Assumptions_&_Inputs'!$J$47*1000*SystemSizeDC-'Key_Assumptions_&_Inputs'!$J$48,-'Key_Assumptions_&_Inputs'!$J$48) -> 0 | AI34: =IF(AI31=0,-'Key_Assumptions_&_Inputs'!$J$46-'Key_Assumptions_&_Inputs'!$J$47*1000*SystemSizeDC-'Key_Assumptions_&_Inputs'!$J$48,-'Key_Assumptions_&_Inputs'!$J$48) -> 0 | AJ34: =SUM(E34:AI34) -> -492000 | AK34: =E34+NPV(UtilityDiscountRt,F34:AI34) -> -492000
B35: Equipment and Labor | D35: $ | E35: =IF(E31=0,-PVCapCost*1000*SystemSizeDC+Capital_subsidy,0) -> -2052000 | F35: =IF(F31=0,-PVCapCost*1000*SystemSizeDC,0) -> 0 | G35: 0 | H35: 0 | I35: 0 | J35: 0 | K35: 0 | L35: 0 | M35: 0 | N35: 0 | O35: 0 | P35: 0 | Q35: 0 | R35: 0 | S35: 0 | T35: 0 | U35: 0 | V35: 0 | W35: 0 | X35: 0 | Y35: 0 | Z35: 0 | AA35: 0 | AB35: 0 | AC35: 0 | AD35: 0 | AE35: 0 | AF35: 0 | AG35: 0 | AH35: 0 | AI35: 0 | AJ35: -2052000 | AK35: =E35+NPV(UtilityDiscountRt,F35:AI35) -> -2052000
B36: Total System Capital Costs (gross) | D36: $ | E36: =SUM(E34:E35) -> -2544000 | F36: 0 | G36: 0 | H36: 0 | I36: 0 | J36: 0 | K36: 0 | L36: 0 | M36: 0 | N36: 0 | O36: 0 | P36: 0 | Q36: 0 | R36: 0 | S36: 0 | T36: 0 | U36: 0 | V36: 0 | W36: 0 | X36: 0 | Y36: 0 | Z36: 0 | AA36: 0 | AB36: 0 | AC36: 0 | AD36: 0 | AE36: 0 | AF36: 0 | AG36: 0 | AH36: 0 | AI36: 0 | AJ36: -2544000 | AK36: =E36+NPV(UtilityDiscountRt,F36:AI36) -> -2544000
B38: Project Financing
B39: Loan Amount | E39: =IF(E31=0,-'Key_Assumptions_&_Inputs'!$D$67*SUM($E$34:$E$35),0) -> 2544000 | F39: =IF(F31=0,-'Key_Assumptions_&_Inputs'!$D$67*SUM($E$34:$E$35),0) -> 0 | G39: =IF(G31=0,-'Key_Assumptions_&_Inputs'!$D$67*SUM($E$34:$E$35),0) -> 0 | H39: =IF(H31=0,-'Key_Assumptions_&_Inputs'!$D$67*SUM($E$34:$E$35),0) -> 0 | I39: =IF(I31=0,-'Key_Assumptions_&_Inputs'!$D$67*SUM($E$34:$E$35),0) -> 0 | J39: =IF(J31=0,-'Key_Assumptions_&_Inputs'!$D$67*SUM($E$34:$E$35),0) -> 0 | K39: =IF(K31=0,-'Key_Assumptions_&_Inputs'!$D$67*SUM($E$34:$E$35),0) -> 0 | L39: =IF(L31=0,-'Key_Assumptions_&_Inputs'!$D$67*SUM($E$34:$E$35),0) -> 0 | M39: =IF(M31=0,-'Key_Assumptions_&_Inputs'!$D$67*SUM($E$34:$E$35),0) -> 0 | N39: =IF(N31=0,-'Key_Assumptions_&_Inputs'!$D$67*SUM($E$34:$E$35),0) -> 0 | O39: =IF(O31=0,-'Key_Assumptions_&_Inputs'!$D$67*SUM($E$34:$E$35),0) -> 0 | P39: =IF(P31=0,-'Key_Assumptions_&_Inputs'!$D$67*SUM($E$34:$E$35),0) -> 0 | Q39: =IF(Q31=0,-'Key_Assumptions_&_Inputs'!$D$67*SUM($E$34:$E$35),0) -> 0 | R39: =IF(R31=0,-'Key_Assumptions_&_Inputs'!$D$67*SUM($E$34:$E$35),0) -> 0 | S39: =IF(S31=0,-'Key_Assumptions_&_Inputs'!$D$67*SUM($E$34:$E$35),0) -> 0 | T39: =IF(T31=0,-'Key_Assumptions_&_Inputs'!$D$67*SUM($E$34:$E$35),0) -> 0 | U39: =IF(U31=0,-'Key_Assumptions_&_Inputs'!$D$67*SUM($E$34:$E$35),0) -> 0 | V39: =IF(V31=0,-'Key_Assumptions_&_Inputs'!$D$67*SUM($E$34:$E$35),0) -> 0 | W39: =IF(W31=0,-'Key_Assumptions_&_Inputs'!$D$67*SUM($E$34:$E$35),0) -> 0 | X39: =IF(X31=0,-'Key_Assumptions_&_Inputs'!$D$67*SUM($E$34:$E$35),0) -> 0 | Y39: =IF(Y31=0,-'Key_Assumptions_&_Inputs'!$D$67*SUM($E$34:$E$35),0) -> 0 | Z39: =IF(Z31=0,-'Key_Assumptions_&_Inputs'!$D$67*SUM($E$34:$E$35),0) -> 0 | AA39: =IF(AA31=0,-'Key_Assumptions_&_Inputs'!$D$67*SUM($E$34:$E$35),0) -> 0 | AB39: =IF(AB31=0,-'Key_Assumptions_&_Inputs'!$D$67*SUM($E$34:$E$35),0) -> 0 | AC39: =IF(AC31=0,-'Key_Assumptions_&_Inputs'!$D$67*SUM($E$34:$E$35),0) -> 0 | AD39: =IF(AD31=0,-'Key_Assumptions_&_Inputs'!$D$67*SUM($E$34:$E$35),0) -> 0 | AE39: =IF(AE31=0,-'Key_Assumptions_&_Inputs'!$D$67*SUM($E$34:$E$35),0) -> 0 | AF39: =IF(AF31=0,-'Key_Assumptions_&_Inputs'!$D$67*SUM($E$34:$E$35),0) -> 0 | AG39: =IF(AG31=0,-'Key_Assumptions_&_Inputs'!$D$67*SUM($E$34:$E$35),0) -> 0 | AH39: =IF(AH31=0,-'Key_Assumptions_&_Inputs'!$D$67*SUM($E$34:$E$35),0) -> 0 | AI39: =IF(AI31=0,-'Key_Assumptions_&_Inputs'!$D$67*SUM($E$34:$E$35),0) -> 0 | AK39: =E39+NPV(UtilityDiscountRt,F39:AI39) -> 2544000
B40: Annual Payments | D40: $ | E40: =IF(E31=0,0,IF(E31<='Key_Assumptions_&_Inputs'!$D$69,-PMT('Key_Assumptions_&_Inputs'!$D$68/12,'Key_Assumptions_&_Inputs'!$D$69*12,'Key_Assumptions_&_Inputs'!$D$67*($E$34+$E$35))*12,0)) -> 0 | F40: =IF(F31=0,0,IF(F31<='Key_Assumptions_&_Inputs'!$D$69,-PMT('Key_Assumptions_&_Inputs'!$D$68/12,'Key_Assumptions_&_Inputs'!$D$69*12,'Key_Assumptions_&_Inputs'!$D$67*($E$34+$E$35))*12,0)) -> -271674.8077 | G40: =IF(G31=0,0,IF(G31<='Key_Assumptions_&_Inputs'!$D$69,-PMT('Key_Assumptions_&_Inputs'!$D$68/12,'Key_Assumptions_&_Inputs'!$D$69*12,'Key_Assumptions_&_Inputs'!$D$67*($E$34+$E$35))*12,0)) -> -271674.8077 | H40: =IF(H31=0,0,IF(H31<='Key_Assumptions_&_Inputs'!$D$69,-PMT('Key_Assumptions_&_Inputs'!$D$68/12,'Key_Assumptions_&_Inputs'!$D$69*12,'Key_Assumptions_&_Inputs'!$D$67*($E$34+$E$35))*12,0)) -> -271674.8077 | I40: =IF(I31=0,0,IF(I31<='Key_Assumptions_&_Inputs'!$D$69,-PMT('Key_Assumptions_&_Inputs'!$D$68/12,'Key_Assumptions_&_Inputs'!$D$69*12,'Key_Assumptions_&_Inputs'!$D$67*($E$34+$E$35))*12,0)) -> -271674.8077 | J40: =IF(J31=0,0,IF(J31<='Key_Assumptions_&_Inputs'!$D$69,-PMT('Key_Assumptions_&_Inputs'!$D$68/12,'Key_Assumptions_&_Inputs'!$D$69*12,'Key_Assumptions_&_Inputs'!$D$67*($E$34+$E$35))*12,0)) -> -271674.8077 | K40: =IF(K31=0,0,IF(K31<='Key_Assumptions_&_Inputs'!$D$69,-PMT('Key_Assumptions_&_Inputs'!$D$68/12,'Key_Assumptions_&_Inputs'!$D$69*12,'Key_Assumptions_&_Inputs'!$D$67*($E$34+$E$35))*12,0)) -> -271674.8077 | L40: =IF(L31=0,0,IF(L31<='Key_Assumptions_&_Inputs'!$D$69,-PMT('Key_Assumptions_&_Inputs'!$D$68/12,'Key_Assumptions_&_Inputs'!$D$69*12,'Key_Assumptions_&_Inputs'!$D$67*($E$34+$E$35))*12,0)) -> -271674.8077 | M40: =IF(M31=0,0,IF(M31<='Key_Assumptions_&_Inputs'!$D$69,-PMT('Key_Assumptions_&_Inputs'!$D$68/12,'Key_Assumptions_&_Inputs'!$D$69*12,'Key_Assumptions_&_Inputs'!$D$67*($E$34+$E$35))*12,0)) -> -271674.8077 | N40: =IF(N31=0,0,IF(N31<='Key_Assumptions_&_Inputs'!$D$69,-PMT('Key_Assumptions_&_Inputs'!$D$68/12,'Key_Assumptions_&_Inputs'!$D$69*12,'Key_Assumptions_&_Inputs'!$D$67*($E$34+$E$35))*12,0)) -> -271674.8077 | O40: =IF(O31=0,0,IF(O31<='Key_Assumptions_&_Inputs'!$D$69,-PMT('Key_Assumptions_&_Inputs'!$D$68/12,'Key_Assumptions_&_Inputs'!$D$69*12,'Key_Assumptions_&_Inputs'!$D$67*($E$34+$E$35))*12,0)) -> -271674.8077 | P40: =IF(P31=0,0,IF(P31<='Key_Assumptions_&_Inputs'!$D$69,-PMT('Key_Assumptions_&_Inputs'!$D$68/12,'Key_Assumptions_&_Inputs'!$D$69*12,'Key_Assumptions_&_Inputs'!$D$67*($E$34+$E$35))*12,0)) -> -271674.8077 | Q40: =IF(Q31=0,0,IF(Q31<='Key_Assumptions_&_Inputs'!$D$69,-PMT('Key_Assumptions_&_Inputs'!$D$68/12,'Key_Assumptions_&_Inputs'!$D$69*12,'Key_Assumptions_&_Inputs'!$D$67*($E$34+$E$35))*12,0)) -> -271674.8077 | R40: =IF(R31=0,0,IF(R31<='Key_Assumptions_&_Inputs'!$D$69,-PMT('Key_Assumptions_&_Inputs'!$D$68/12,'Key_Assumptions_&_Inputs'!$D$69*12,'Key_Assumptions_&_Inputs'!$D$67*($E$34+$E$35))*12,0)) -> -271674.8077 | S40: =IF(S31=0,0,IF(S31<='Key_Assumptions_&_Inputs'!$D$69,-PMT('Key_Assumptions_&_Inputs'!$D$68/12,'Key_Assumptions_&_Inputs'!$D$69*12,'Key_Assumptions_&_Inputs'!$D$67*($E$34+$E$35))*12,0)) -> 0 | T40: =IF(T31=0,0,IF(T31<='Key_Assumptions_&_Inputs'!$D$69,-PMT('Key_Assumptions_&_Inputs'!$D$68/12,'Key_Assumptions_&_Inputs'!$D$69*12,'Key_Assumptions_&_Inputs'!$D$67*($E$34+$E$35))*12,0)) -> 0 | U40: =IF(U31=0,0,IF(U31<='Key_Assumptions_&_Inputs'!$D$69,-PMT('Key_Assumptions_&_Inputs'!$D$68/12,'Key_Assumptions_&_Inputs'!$D$69*12,'Key_Assumptions_&_Inputs'!$D$67*($E$34+$E$35))*12,0)) -> 0 | V40: =IF(V31=0,0,IF(V31<='Key_Assumptions_&_Inputs'!$D$69,-PMT('Key_Assumptions_&_Inputs'!$D$68/12,'Key_Assumptions_&_Inputs'!$D$69*12,'Key_Assumptions_&_Inputs'!$D$67*($E$34+$E$35))*12,0)) -> 0 | W40: =IF(W31=0,0,IF(W31<='Key_Assumptions_&_Inputs'!$D$69,-PMT('Key_Assumptions_&_Inputs'!$D$68/12,'Key_Assumptions_&_Inputs'!$D$69*12,'Key_Assumptions_&_Inputs'!$D$67*($E$34+$E$35))*12,0)) -> 0 | X40: =IF(X31=0,0,IF(X31<='Key_Assumptions_&_Inputs'!$D$69,-PMT('Key_Assumptions_&_Inputs'!$D$68/12,'Key_Assumptions_&_Inputs'!$D$69*12,'Key_Assumptions_&_Inputs'!$D$67*($E$34+$E$35))*12,0)) -> 0 | Y40: =IF(Y31=0,0,IF(Y31<='Key_Assumptions_&_Inputs'!$D$69,-PMT('Key_Assumptions_&_Inputs'!$D$68/12,'Key_Assumptions_&_Inputs'!$D$69*12,'Key_Assumptions_&_Inputs'!$D$67*($E$34+$E$35))*12,0)) -> 0 | Z40: =IF(Z31=0,0,IF(Z31<='Key_Assumptions_&_Inputs'!$D$69,-PMT('Key_Assumptions_&_Inputs'!$D$68/12,'Key_Assumptions_&_Inputs'!$D$69*12,'Key_Assumptions_&_Inputs'!$D$67*($E$34+$E$35))*12,0)) -> 0 | AA40: =IF(AA31=0,0,IF(AA31<='Key_Assumptions_&_Inputs'!$D$69,-PMT('Key_Assumptions_&_Inputs'!$D$68/12,'Key_Assumptions_&_Inputs'!$D$69*12,'Key_Assumptions_&_Inputs'!$D$67*($E$34+$E$35))*12,0)) -> 0 | AB40: =IF(AB31=0,0,IF(AB31<='Key_Assumptions_&_Inputs'!$D$69,-PMT('Key_Assumptions_&_Inputs'!$D$68/12,'Key_Assumptions_&_Inputs'!$D$69*12,'Key_Assumptions_&_Inputs'!$D$67*($E$34+$E$35))*12,0)) -> 0 | AC40: =IF(AC31=0,0,IF(AC31<='Key_Assumptions_&_Inputs'!$D$69,-PMT('Key_Assumptions_&_Inputs'!$D$68/12,'Key_Assumptions_&_Inputs'!$D$69*12,'Key_Assumptions_&_Inputs'!$D$67*($E$34+$E$35))*12,0)) -> 0 | AD40: =IF(AD31=0,0,IF(AD31<='Key_Assumptions_&_Inputs'!$D$69,-PMT('Key_Assumptions_&_Inputs'!$D$68/12,'Key_Assumptions_&_Inputs'!$D$69*12,'Key_Assumptions_&_Inputs'!$D$67*($E$34+$E$35))*12,0)) -> 0 | AE40: =IF(AE31=0,0,IF(AE31<='Key_Assumptions_&_Inputs'!$D$69,-PMT('Key_Assumptions_&_Inputs'!$D$68/12,'Key_Assumptions_&_Inputs'!$D$69*12,'Key_Assumptions_&_Inputs'!$D$67*($E$34+$E$35))*12,0)) -> 0 | AF40: =IF(AF31=0,0,IF(AF31<='Key_Assumptions_&_Inputs'!$D$69,-PMT('Key_Assumptions_&_Inputs'!$D$68/12,'Key_Assumptions_&_Inputs'!$D$69*12,'Key_Assumptions_&_Inputs'!$D$67*($E$34+$E$35))*12,0)) -> 0 | AG40: =IF(AG31=0,0,IF(AG31<='Key_Assumptions_&_Inputs'!$D$69,-PMT('Key_Assumptions_&_Inputs'!$D$68/12,'Key_Assumptions_&_Inputs'!$D$69*12,'Key_Assumptions_&_Inputs'!$D$67*($E$34+$E$35))*12,0)) -> 0 | AH40: =IF(AH31=0,0,IF(AH31<='Key_Assumptions_&_Inputs'!$D$69,-PMT('Key_Assumptions_&_Inputs'!$D$68/12,'Key_Assumptions_&_Inputs'!$D$69*12,'Key_Assumptions_&_Inputs'!$D$67*($E$34+$E$35))*12,0)) -> 0 | AI40: =IF(AI31=0,0,IF(AI31<='Key_Assumptions_&_Inputs'!$D$69,-PMT('Key_Assumptions_&_Inputs'!$D$68/12,'Key_Assumptions_&_Inputs'!$D$69*12,'Key_Assumptions_&_Inputs'!$D$67*($E$34+$E$35))*12,0)) -> 0 | AJ40: =SUM(E40:AI40) -> -3531772.5 | AK40: =E40+NPV(UtilityDiscountRt,F40:AI40) -> -2502042.298
B41: Financing Costs | D41: $ | E41: =SUM(E39:E40) -> 2544000 | F41: -271674.8077 | G41: -271674.8077 | H41: -271674.8077 | I41: -271674.8077 | J41: -271674.8077 | K41: -271674.8077 | L41: -271674.8077 | M41: -271674.8077 | N41: -271674.8077 | O41: -271674.8077 | P41: -271674.8077 | Q41: -271674.8077 | R41: -271674.8077 | S41: 0 | T41: 0 | U41: 0 | V41: 0 | W41: 0 | X41: 0 | Y41: 0 | Z41: 0 | AA41: 0 | AB41: 0 | AC41: 0 | AD41: 0 | AE41: 0 | AF41: 0 | AG41: 0 | AH41: 0 | AI41: 0 | AJ41: -987772.4995 | AK41: =E41+NPV(UtilityDiscountRt,F41:AI41) -> 41957.70153
B43: Operating Expenditures
B44: Upfront Administriative and Billing Costs | D44: $ | E44: =-IF(E31=0,'Admin_&_Transaction_Costs'!$D$24-'Admin_&_Transaction_Costs'!$D$23+'Key_Assumptions_&_Inputs'!$J$74,0) -> -49450.03 | F44: =-IF(F31=0,'Admin_&_Transaction_Costs'!$D$24-'Admin_&_Transaction_Costs'!$D$23+'Key_Assumptions_&_Inputs'!$J$74,0) -> 0 | G44: =-IF(G31=0,'Admin_&_Transaction_Costs'!$D$24-'Admin_&_Transaction_Costs'!$D$23+'Key_Assumptions_&_Inputs'!$J$74,0) -> 0 | H44: =-IF(H31=0,'Admin_&_Transaction_Costs'!$D$24-'Admin_&_Transaction_Costs'!$D$23+'Key_Assumptions_&_Inputs'!$J$74,0) -> 0 | I44: =-IF(I31=0,'Admin_&_Transaction_Costs'!$D$24-'Admin_&_Transaction_Costs'!$D$23+'Key_Assumptions_&_Inputs'!$J$74,0) -> 0 | J44: =-IF(J31=0,'Admin_&_Transaction_Costs'!$D$24-'Admin_&_Transaction_Costs'!$D$23+'Key_Assumptions_&_Inputs'!$J$74,0) -> 0 | K44: =-IF(K31=0,'Admin_&_Transaction_Costs'!$D$24-'Admin_&_Transaction_Costs'!$D$23+'Key_Assumptions_&_Inputs'!$J$74,0) -> 0 | L44: =-IF(L31=0,'Admin_&_Transaction_Costs'!$D$24-'Admin_&_Transaction_Costs'!$D$23+'Key_Assumptions_&_Inputs'!$J$74,0) -> 0 | M44: =-IF(M31=0,'Admin_&_Transaction_Costs'!$D$24-'Admin_&_Transaction_Costs'!$D$23+'Key_Assumptions_&_Inputs'!$J$74,0) -> 0 | N44: =-IF(N31=0,'Admin_&_Transaction_Costs'!$D$24-'Admin_&_Transaction_Costs'!$D$23+'Key_Assumptions_&_Inputs'!$J$74,0) -> 0 | O44: =-IF(O31=0,'Admin_&_Transaction_Costs'!$D$24-'Admin_&_Transaction_Costs'!$D$23+'Key_Assumptions_&_Inputs'!$J$74,0) -> 0 | P44: =-IF(P31=0,'Admin_&_Transaction_Costs'!$D$24-'Admin_&_Transaction_Costs'!$D$23+'Key_Assumptions_&_Inputs'!$J$74,0) -> 0 | Q44: =-IF(Q31=0,'Admin_&_Transaction_Costs'!$D$24-'Admin_&_Transaction_Costs'!$D$23+'Key_Assumptions_&_Inputs'!$J$74,0) -> 0 | R44: =-IF(R31=0,'Admin_&_Transaction_Costs'!$D$24-'Admin_&_Transaction_Costs'!$D$23+'Key_Assumptions_&_Inputs'!$J$74,0) -> 0 | S44: =-IF(S31=0,'Admin_&_Transaction_Costs'!$D$24-'Admin_&_Transaction_Costs'!$D$23+'Key_Assumptions_&_Inputs'!$J$74,0) -> 0 | T44: =-IF(T31=0,'Admin_&_Transaction_Costs'!$D$24-'Admin_&_Transaction_Costs'!$D$23+'Key_Assumptions_&_Inputs'!$J$74,0) -> 0 | U44: =-IF(U31=0,'Admin_&_Transaction_Costs'!$D$24-'Admin_&_Transaction_Costs'!$D$23+'Key_Assumptions_&_Inputs'!$J$74,0) -> 0 | V44: =-IF(V31=0,'Admin_&_Transaction_Costs'!$D$24-'Admin_&_Transaction_Costs'!$D$23+'Key_Assumptions_&_Inputs'!$J$74,0) -> 0 | W44: =-IF(W31=0,'Admin_&_Transaction_Costs'!$D$24-'Admin_&_Transaction_Costs'!$D$23+'Key_Assumptions_&_Inputs'!$J$74,0) -> 0 | X44: =-IF(X31=0,'Admin_&_Transaction_Costs'!$D$24-'Admin_&_Transaction_Costs'!$D$23+'Key_Assumptions_&_Inputs'!$J$74,0) -> 0 | Y44: =-IF(Y31=0,'Admin_&_Transaction_Costs'!$D$24-'Admin_&_Transaction_Costs'!$D$23+'Key_Assumptions_&_Inputs'!$J$74,0) -> 0 | Z44: =-IF(Z31=0,'Admin_&_Transaction_Costs'!$D$24-'Admin_&_Transaction_Costs'!$D$23+'Key_Assumptions_&_Inputs'!$J$74,0) -> 0 | AA44: =-IF(AA31=0,'Admin_&_Transaction_Costs'!$D$24-'Admin_&_Transaction_Costs'!$D$23+'Key_Assumptions_&_Inputs'!$J$74,0) -> 0 | AB44: =-IF(AB31=0,'Admin_&_Transaction_Costs'!$D$24-'Admin_&_Transaction_Costs'!$D$23+'Key_Assumptions_&_Inputs'!$J$74,0) -> 0 | AC44: =-IF(AC31=0,'Admin_&_Transaction_Costs'!$D$24-'Admin_&_Transaction_Costs'!$D$23+'Key_Assumptions_&_Inputs'!$J$74,0) -> 0 | AD44: =-IF(AD31=0,'Admin_&_Transaction_Costs'!$D$24-'Admin_&_Transaction_Costs'!$D$23+'Key_Assumptions_&_Inputs'!$J$74,0) -> 0 | AE44: =-IF(AE31=0,'Admin_&_Transaction_Costs'!$D$24-'Admin_&_Transaction_Costs'!$D$23+'Key_Assumptions_&_Inputs'!$J$74,0) -> 0 | AF44: =-IF(AF31=0,'Admin_&_Transaction_Costs'!$D$24-'Admin_&_Transaction_Costs'!$D$23+'Key_Assumptions_&_Inputs'!$J$74,0) -> 0 | AG44: =-IF(AG31=0,'Admin_&_Transaction_Costs'!$D$24-'Admin_&_Transaction_Costs'!$D$23+'Key_Assumptions_&_Inputs'!$J$74,0) -> 0 | AH44: =-IF(AH31=0,'Admin_&_Transaction_Costs'!$D$24-'Admin_&_Transaction_Costs'!$D$23+'Key_Assumptions_&_Inputs'!$J$74,0) -> 0 | AI44: =-IF(AI31=0,'Admin_&_Transaction_Costs'!$D$24-'Admin_&_Transaction_Costs'!$D$23+'Key_Assumptions_&_Inputs'!$J$74,0) -> 0 | AJ44: =SUM(E44:AI44) -> -49450.03 | AK44: =E44+NPV(UtilityDiscountRt,F44:AI44) -> -49450.03
B45: Ongoing Transactional and Billing Costs | D45: $ | E45: =IF(E31=0,0,-'Admin_&_Transaction_Costs'!D79-'Key_Assumptions_&_Inputs'!$J$76) -> 0 | F45: =IF(F31=0,0,-'Admin_&_Transaction_Costs'!E79-'Key_Assumptions_&_Inputs'!$J$76) -> -46475 | G45: =IF(G31=0,0,-'Admin_&_Transaction_Costs'!F79-'Key_Assumptions_&_Inputs'!$J$76) -> -7804.195312 | H45: =IF(H31=0,0,-'Admin_&_Transaction_Costs'!G79-'Key_Assumptions_&_Inputs'!$J$76) -> -6828.939893 | I45: =IF(I31=0,0,-'Admin_&_Transaction_Costs'!H79-'Key_Assumptions_&_Inputs'!$J$76) -> -6890.455765 | J45: =IF(J31=0,0,-'Admin_&_Transaction_Costs'!I79-'Key_Assumptions_&_Inputs'!$J$76) -> -7018.432366 | K45: =IF(K31=0,0,-'Admin_&_Transaction_Costs'!J79-'Key_Assumptions_&_Inputs'!$J$76) -> -7218.860337 | L45: =IF(L31=0,0,-'Admin_&_Transaction_Costs'!K79-'Key_Assumptions_&_Inputs'!$J$76) -> -7425.301147 | M45: =IF(M31=0,0,-'Admin_&_Transaction_Costs'!L79-'Key_Assumptions_&_Inputs'!$J$76) -> -7637.935181 | N45: =IF(N31=0,0,-'Admin_&_Transaction_Costs'!M79-'Key_Assumptions_&_Inputs'!$J$76) -> -7856.948237 | O45: =IF(O31=0,0,-'Admin_&_Transaction_Costs'!N79-'Key_Assumptions_&_Inputs'!$J$76) -> -8082.531684 | P45: =IF(P31=0,0,-'Admin_&_Transaction_Costs'!O79-'Key_Assumptions_&_Inputs'!$J$76) -> -8314.882634 | Q45: =IF(Q31=0,0,-'Admin_&_Transaction_Costs'!P79-'Key_Assumptions_&_Inputs'!$J$76) -> -8554.204113 | R45: =IF(R31=0,0,-'Admin_&_Transaction_Costs'!Q79-'Key_Assumptions_&_Inputs'!$J$76) -> -8800.705237 | S45: =IF(S31=0,0,-'Admin_&_Transaction_Costs'!R79-'Key_Assumptions_&_Inputs'!$J$76) -> -9054.601394 | T45: =IF(T31=0,0,-'Admin_&_Transaction_Costs'!S79-'Key_Assumptions_&_Inputs'!$J$76) -> -9316.114436 | U45: =IF(U31=0,0,-'Admin_&_Transaction_Costs'!T79-'Key_Assumptions_&_Inputs'!$J$76) -> -9585.472869 | V45: =IF(V31=0,0,-'Admin_&_Transaction_Costs'!U79-'Key_Assumptions_&_Inputs'!$J$76) -> -9862.912055 | W45: =IF(W31=0,0,-'Admin_&_Transaction_Costs'!V79-'Key_Assumptions_&_Inputs'!$J$76) -> -10148.67442 | X45: =IF(X31=0,0,-'Admin_&_Transaction_Costs'!W79-'Key_Assumptions_&_Inputs'!$J$76) -> -10443.00965 | Y45: =IF(Y31=0,0,-'Admin_&_Transaction_Costs'!X79-'Key_Assumptions_&_Inputs'!$J$76) -> -10746.17494 | Z45: =IF(Z31=0,0,-'Admin_&_Transaction_Costs'!Y79-'Key_Assumptions_&_Inputs'!$J$76) -> 0 | AA45: =IF(AA31=0,0,-'Admin_&_Transaction_Costs'!Z79-'Key_Assumptions_&_Inputs'!$J$76) -> 0 | AB45: =IF(AB31=0,0,-'Admin_&_Transaction_Costs'!AA79-'Key_Assumptions_&_Inputs'!$J$76) -> 0 | AC45: =IF(AC31=0,0,-'Admin_&_Transaction_Costs'!AB79-'Key_Assumptions_&_Inputs'!$J$76) -> 0 | AD45: =IF(AD31=0,0,-'Admin_&_Transaction_Costs'!AC79-'Key_Assumptions_&_Inputs'!$J$76) -> 0 | AE45: =IF(AE31=0,0,-'Admin_&_Transaction_Costs'!AD79-'Key_Assumptions_&_Inputs'!$J$76) -> 0 | AF45: =IF(AF31=0,0,-'Admin_&_Transaction_Costs'!AE79-'Key_Assumptions_&_Inputs'!$J$76) -> 0 | AG45: =IF(AG31=0,0,-'Admin_&_Transaction_Costs'!AF79-'Key_Assumptions_&_Inputs'!$J$76) -> 0 | AH45: =IF(AH31=0,0,-'Admin_&_Transaction_Costs'!AG79-'Key_Assumptions_&_Inputs'!$J$76) -> 0 | AI45: =IF(AI31=0,0,-'Admin_&_Transaction_Costs'!AH79-'Key_Assumptions_&_Inputs'!$J$76) -> 0 | AJ45: -208065.3517 | AK45: =E45+NPV(UtilityDiscountRt,F45:AI45) -> -135590.2878
B46: Operations & Maintenance | D46: $ | E46: 0 | F46: =IF(F31<=ProjectLife,-'Key_Assumptions_&_Inputs'!$J$52*SystemSizeDC,0) -> -21000 | G46: =IF(G31<=ProjectLife,-'Key_Assumptions_&_Inputs'!$J$52*SystemSizeDC,0) -> -21000 | H46: =IF(H31<=ProjectLife,-'Key_Assumptions_&_Inputs'!$J$52*SystemSizeDC,0) -> -21000 | I46: =IF(I31<=ProjectLife,-'Key_Assumptions_&_Inputs'!$J$52*SystemSizeDC,0) -> -21000 | J46: =IF(J31<=ProjectLife,-'Key_Assumptions_&_Inputs'!$J$52*SystemSizeDC,0) -> -21000 | K46: =IF(K31<=ProjectLife,-'Key_Assumptions_&_Inputs'!$J$52*SystemSizeDC,0) -> -21000 | L46: =IF(L31<=ProjectLife,-'Key_Assumptions_&_Inputs'!$J$52*SystemSizeDC,0) -> -21000 | M46: =IF(M31<=ProjectLife,-'Key_Assumptions_&_Inputs'!$J$52*SystemSizeDC,0) -> -21000 | N46: =IF(N31<=ProjectLife,-'Key_Assumptions_&_Inputs'!$J$52*SystemSizeDC,0) -> -21000 | O46: =IF(O31<=ProjectLife,-'Key_Assumptions_&_Inputs'!$J$52*SystemSizeDC,0) -> -21000 | P46: =IF(P31<=ProjectLife,-'Key_Assumptions_&_Inputs'!$J$52*SystemSizeDC,0) -> -21000 | Q46: =IF(Q31<=ProjectLife,-'Key_Assumptions_&_Inputs'!$J$52*SystemSizeDC,0) -> -21000 | R46: =IF(R31<=ProjectLife,-'Key_Assumptions_&_Inputs'!$J$52*SystemSizeDC,0) -> -21000 | S46: =IF(S31<=ProjectLife,-'Key_Assumptions_&_Inputs'!$J$52*SystemSizeDC,0) -> -21000 | T46: =IF(T31<=ProjectLife,-'Key_Assumptions_&_Inputs'!$J$52*SystemSizeDC,0) -> -21000 | U46: =IF(U31<=ProjectLife,-'Key_Assumptions_&_Inputs'!$J$52*SystemSizeDC,0) -> -21000 | V46: =IF(V31<=ProjectLife,-'Key_Assumptions_&_Inputs'!$J$52*SystemSizeDC,0) -> -21000 | W46: =IF(W31<=ProjectLife,-'Key_Assumptions_&_Inputs'!$J$52*SystemSizeDC,0) -> -21000 | X46: =IF(X31<=ProjectLife,-'Key_Assumptions_&_Inputs'!$J$52*SystemSizeDC,0) -> -21000 | Y46: =IF(Y31<=ProjectLife,-'Key_Assumptions_&_Inputs'!$J$52*SystemSizeDC,0) -> -21000 | Z46: =IF(Z31<=ProjectLife,-'Key_Assumptions_&_Inputs'!$J$52*SystemSizeDC,0) -> -21000 | AA46: =IF(AA31<=ProjectLife,-'Key_Assumptions_&_Inputs'!$J$52*SystemSizeDC,0) -> -21000 | AB46: =IF(AB31<=ProjectLife,-'Key_Assumptions_&_Inputs'!$J$52*SystemSizeDC,0) -> -21000 | AC46: =IF(AC31<=ProjectLife,-'Key_Assumptions_&_Inputs'!$J$52*SystemSizeDC,0) -> -21000 | AD46: =IF(AD31<=ProjectLife,-'Key_Assumptions_&_Inputs'!$J$52*SystemSizeDC,0) -> -21000 | AE46: =IF(AE31<=ProjectLife,-'Key_Assumptions_&_Inputs'!$J$52*SystemSizeDC,0) -> -21000 | AF46: =IF(AF31<=ProjectLife,-'Key_Assumptions_&_Inputs'!$J$52*SystemSizeDC,0) -> -21000 | AG46: =IF(AG31<=ProjectLife,-'Key_Assumptions_&_Inputs'!$J$52*SystemSizeDC,0) -> -21000 | AH46: =IF(AH31<=ProjectLife,-'Key_Assumptions_&_Inputs'!$J$52*SystemSizeDC,0) -> -21000 | AI46: =IF(AI31<=ProjectLife,-'Key_Assumptions_&_Inputs'!$J$52*SystemSizeDC,0) -> -21000 | AJ46: -630000 | AK46: =E46+NPV(UtilityDiscountRt,F46:AI46) -> -311024.6295
B47: System Removal Costs | D47: $ | E47: =IF(E31=ProjectLife,-'Key_Assumptions_&_Inputs'!$J$49,0) -> 0 | F47: =IF(F31=ProjectLife,-'Key_Assumptions_&_Inputs'!$J$49,0) -> 0 | G47: =IF(G31=ProjectLife,-'Key_Assumptions_&_Inputs'!$J$49,0) -> 0 | H47: =IF(H31=ProjectLife,-'Key_Assumptions_&_Inputs'!$J$49,0) -> 0 | I47: =IF(I31=ProjectLife,-'Key_Assumptions_&_Inputs'!$J$49,0) -> 0 | J47: =IF(J31=ProjectLife,-'Key_Assumptions_&_Inputs'!$J$49,0) -> 0 | K47: =IF(K31=ProjectLife,-'Key_Assumptions_&_Inputs'!$J$49,0) -> 0 | L47: =IF(L31=ProjectLife,-'Key_Assumptions_&_Inputs'!$J$49,0) -> 0 | M47: =IF(M31=ProjectLife,-'Key_Assumptions_&_Inputs'!$J$49,0) -> 0 | N47: =IF(N31=ProjectLife,-'Key_Assumptions_&_Inputs'!$J$49,0) -> 0 | O47: =IF(O31=ProjectLife,-'Key_Assumptions_&_Inputs'!$J$49,0) -> 0 | P47: =IF(P31=ProjectLife,-'Key_Assumptions_&_Inputs'!$J$49,0) -> 0 | Q47: =IF(Q31=ProjectLife,-'Key_Assumptions_&_Inputs'!$J$49,0) -> 0 | R47: =IF(R31=ProjectLife,-'Key_Assumptions_&_Inputs'!$J$49,0) -> 0 | S47: =IF(S31=ProjectLife,-'Key_Assumptions_&_Inputs'!$J$49,0) -> 0 | T47: =IF(T31=ProjectLife,-'Key_Assumptions_&_Inputs'!$J$49,0) -> 0 | U47: =IF(U31=ProjectLife,-'Key_Assumptions_&_Inputs'!$J$49,0) -> 0 | V47: =IF(V31=ProjectLife,-'Key_Assumptions_&_Inputs'!$J$49,0) -> 0 | W47: =IF(W31=ProjectLife,-'Key_Assumptions_&_Inputs'!$J$49,0) -> 0 | X47: =IF(X31=ProjectLife,-'Key_Assumptions_&_Inputs'!$J$49,0) -> 0 | Y47: =IF(Y31=ProjectLife,-'Key_Assumptions_&_Inputs'!$J$49,0) -> 0 | Z47: =IF(Z31=ProjectLife,-'Key_Assumptions_&_Inputs'!$J$49,0) -> 0 | AA47: =IF(AA31=ProjectLife,-'Key_Assumptions_&_Inputs'!$J$49,0) -> 0 | AB47: =IF(AB31=ProjectLife,-'Key_Assumptions_&_Inputs'!$J$49,0) -> 0 | AC47: =IF(AC31=ProjectLife,-'Key_Assumptions_&_Inputs'!$J$49,0) -> 0 | AD47: =IF(AD31=ProjectLife,-'Key_Assumptions_&_Inputs'!$J$49,0) -> 0 | AE47: =IF(AE31=ProjectLife,-'Key_Assumptions_&_Inputs'!$J$49,0) -> 0 | AF47: =IF(AF31=ProjectLife,-'Key_Assumptions_&_Inputs'!$J$49,0) -> 0 | AG47: =IF(AG31=ProjectLife,-'Key_Assumptions_&_Inputs'!$J$49,0) -> 0 | AH47: =IF(AH31=ProjectLife,-'Key_Assumptions_&_Inputs'!$J$49,0) -> 0 | AI47: =IF(AI31=ProjectLife,-'Key_Assumptions_&_Inputs'!$J$49,0) -> 0 | AJ47: 0 | AK47: =E47+NPV(UtilityDiscountRt,F47:AI47) -> 0
B48: Lost Retail Revenue (due to Net Metering) | D48: $ | E48: 0 | F48: =IF(F31<=SubscriptionLife,-E17,0) -> -297360 | G48: -295873.2 | H48: -294393.834 | I48: -292921.8648 | J48: -291457.2555 | K48: -289999.9692 | L48: -288549.9694 | M48: -287107.2195 | N48: -285671.6834 | O48: -284243.325 | P48: -282822.1084 | Q48: -281407.9979 | R48: -280000.9579 | S48: -278600.9531 | T48: -277207.9483 | U48: -275821.9086 | V48: -274442.799 | W48: -273070.585 | X48: -271705.2321 | Y48: -270346.7059 | Z48: 0 | AA48: 0 | AB48: 0 | AC48: 0 | AD48: 0 | AE48: 0 | AF48: 0 | AG48: 0 | AH48: 0 | AI48: 0 | AJ48: -5673005.517 | AK48: =E48+NPV(UtilityDiscountRt,F48:AI48) -> -3467335.062
B49: Subsidy payment (adder) to Low Income fund | D49: $ | E49: 0 | F49: =-E18 -> -29736 | G49: -29587.32 | H49: -29439.3834 | I49: -29292.18648 | J49: -29145.72555 | K49: -28999.99692 | L49: -28854.99694 | M49: -28710.72195 | N49: -28567.16834 | O49: -28424.3325 | P49: -28282.21084 | Q49: -28140.79979 | R49: -28000.09579 | S49: -27860.09531 | T49: -27720.79483 | U49: -27582.19086 | V49: -27444.2799 | W49: -27307.0585 | X49: -27170.52321 | Y49: -27034.67059 | Z49: -26899.49724 | AA49: -26764.99976 | AB49: -26631.17476 | AC49: -26498.01888 | AD49: -26365.52879 | AE49: -26233.70114 | AF49: -26102.53264 | AG49: -25972.01998 | AH49: -25842.15988 | AI49: -25712.94908 | AJ49: -830323.1338 | AK49: =E49+NPV(UtilityDiscountRt,F49:AI49) -> -417636.1553
B50: Total Operating Costs | D50: $ | E50: =SUM(E44:E47) -> -49450.03 | F50: =SUM(F44:F48) -> -364835 | G50: -324677.3953 | H50: -322222.7739 | I50: -320812.3206 | J50: -319475.6879 | K50: -318218.8296 | L50: -316975.2705 | M50: -315745.1547 | N50: -314528.6317 | O50: -313325.8567 | P50: -312136.991 | Q50: -310962.202 | R50: -309801.6631 | S50: -308655.5545 | T50: -307524.0627 | U50: -306407.3814 | V50: -305305.7111 | W50: -304219.2594 | X50: -303148.2418 | Y50: -302092.8809 | Z50: -21000 | AA50: -21000 | AB50: -21000 | AC50: -21000 | AD50: -21000 | AE50: -21000 | AF50: -21000 | AG50: -21000 | AH50: -21000 | AI50: -21000 | AJ50: -6560520.899 | AK50: =E50+NPV(UtilityDiscountRt,F50:AI50) -> -3963400.01
B52: Incentive Payments
B53: Federal ITC Cash Equivalent | D53: $ | E53: =IF(AND(E31=0,'Key_Assumptions_&_Inputs'!$E$25="Non Tax-Exempt Entity"),'Key_Assumptions_&_Inputs'!$J$58*-E35,0) -> 0 | F53: =IF(AND(F31=0,'Key_Assumptions_&_Inputs'!$E$25="Non Tax-Exempt Entity"),'Key_Assumptions_&_Inputs'!$J$58*-F35,0) -> 0 | G53: =IF(AND(G31=0,'Key_Assumptions_&_Inputs'!$E$25="Non Tax-Exempt Entity"),'Key_Assumptions_&_Inputs'!$J$58*-G35,0) -> 0 | H53: =IF(AND(H31=0,'Key_Assumptions_&_Inputs'!$E$25="Non Tax-Exempt Entity"),'Key_Assumptions_&_Inputs'!$J$58*-H35,0) -> 0 | I53: =IF(AND(I31=0,'Key_Assumptions_&_Inputs'!$E$25="Non Tax-Exempt Entity"),'Key_Assumptions_&_Inputs'!$J$58*-I35,0) -> 0 | J53: =IF(AND(J31=0,'Key_Assumptions_&_Inputs'!$E$25="Non Tax-Exempt Entity"),'Key_Assumptions_&_Inputs'!$J$58*-J35,0) -> 0 | K53: =IF(AND(K31=0,'Key_Assumptions_&_Inputs'!$E$25="Non Tax-Exempt Entity"),'Key_Assumptions_&_Inputs'!$J$58*-K35,0) -> 0 | L53: =IF(AND(L31=0,'Key_Assumptions_&_Inputs'!$E$25="Non Tax-Exempt Entity"),'Key_Assumptions_&_Inputs'!$J$58*-L35,0) -> 0 | M53: =IF(AND(M31=0,'Key_Assumptions_&_Inputs'!$E$25="Non Tax-Exempt Entity"),'Key_Assumptions_&_Inputs'!$J$58*-M35,0) -> 0 | N53: =IF(AND(N31=0,'Key_Assumptions_&_Inputs'!$E$25="Non Tax-Exempt Entity"),'Key_Assumptions_&_Inputs'!$J$58*-N35,0) -> 0 | O53: =IF(AND(O31=0,'Key_Assumptions_&_Inputs'!$E$25="Non Tax-Exempt Entity"),'Key_Assumptions_&_Inputs'!$J$58*-O35,0) -> 0 | P53: =IF(AND(P31=0,'Key_Assumptions_&_Inputs'!$E$25="Non Tax-Exempt Entity"),'Key_Assumptions_&_Inputs'!$J$58*-P35,0) -> 0 | Q53: =IF(AND(Q31=0,'Key_Assumptions_&_Inputs'!$E$25="Non Tax-Exempt Entity"),'Key_Assumptions_&_Inputs'!$J$58*-Q35,0) -> 0 | R53: =IF(AND(R31=0,'Key_Assumptions_&_Inputs'!$E$25="Non Tax-Exempt Entity"),'Key_Assumptions_&_Inputs'!$J$58*-R35,0) -> 0 | S53: =IF(AND(S31=0,'Key_Assumptions_&_Inputs'!$E$25="Non Tax-Exempt Entity"),'Key_Assumptions_&_Inputs'!$J$58*-S35,0) -> 0 | T53: =IF(AND(T31=0,'Key_Assumptions_&_Inputs'!$E$25="Non Tax-Exempt Entity"),'Key_Assumptions_&_Inputs'!$J$58*-T35,0) -> 0 | U53: =IF(AND(U31=0,'Key_Assumptions_&_Inputs'!$E$25="Non Tax-Exempt Entity"),'Key_Assumptions_&_Inputs'!$J$58*-U35,0) -> 0 | V53: =IF(AND(V31=0,'Key_Assumptions_&_Inputs'!$E$25="Non Tax-Exempt Entity"),'Key_Assumptions_&_Inputs'!$J$58*-V35,0) -> 0 | W53: =IF(AND(W31=0,'Key_Assumptions_&_Inputs'!$E$25="Non Tax-Exempt Entity"),'Key_Assumptions_&_Inputs'!$J$58*-W35,0) -> 0 | X53: =IF(AND(X31=0,'Key_Assumptions_&_Inputs'!$E$25="Non Tax-Exempt Entity"),'Key_Assumptions_&_Inputs'!$J$58*-X35,0) -> 0 | Y53: =IF(AND(Y31=0,'Key_Assumptions_&_Inputs'!$E$25="Non Tax-Exempt Entity"),'Key_Assumptions_&_Inputs'!$J$58*-Y35,0) -> 0 | Z53: =IF(AND(Z31=0,'Key_Assumptions_&_Inputs'!$E$25="Non Tax-Exempt Entity"),'Key_Assumptions_&_Inputs'!$J$58*-Z35,0) -> 0 | AA53: =IF(AND(AA31=0,'Key_Assumptions_&_Inputs'!$E$25="Non Tax-Exempt Entity"),'Key_Assumptions_&_Inputs'!$J$58*-AA35,0) -> 0 | AB53: =IF(AND(AB31=0,'Key_Assumptions_&_Inputs'!$E$25="Non Tax-Exempt Entity"),'Key_Assumptions_&_Inputs'!$J$58*-AB35,0) -> 0 | AC53: =IF(AND(AC31=0,'Key_Assumptions_&_Inputs'!$E$25="Non Tax-Exempt Entity"),'Key_Assumptions_&_Inputs'!$J$58*-AC35,0) -> 0 | AD53: =IF(AND(AD31=0,'Key_Assumptions_&_Inputs'!$E$25="Non Tax-Exempt Entity"),'Key_Assumptions_&_Inputs'!$J$58*-AD35,0) -> 0 | AE53: =IF(AND(AE31=0,'Key_Assumptions_&_Inputs'!$E$25="Non Tax-Exempt Entity"),'Key_Assumptions_&_Inputs'!$J$58*-AE35,0) -> 0 | AF53: =IF(AND(AF31=0,'Key_Assumptions_&_Inputs'!$E$25="Non Tax-Exempt Entity"),'Key_Assumptions_&_Inputs'!$J$58*-AF35,0) -> 0 | AG53: =IF(AND(AG31=0,'Key_Assumptions_&_Inputs'!$E$25="Non Tax-Exempt Entity"),'Key_Assumptions_&_Inputs'!$J$58*-AG35,0) -> 0 | AH53: =IF(AND(AH31=0,'Key_Assumptions_&_Inputs'!$E$25="Non Tax-Exempt Entity"),'Key_Assumptions_&_Inputs'!$J$58*-AH35,0) -> 0 | AI53: =IF(AND(AI31=0,'Key_Assumptions_&_Inputs'!$E$25="Non Tax-Exempt Entity"),'Key_Assumptions_&_Inputs'!$J$58*-AI35,0) -> 0 | AJ53: =SUM(E53:AI53) -> 0 | AK53: =E53+NPV(UtilityDiscountRt,F53:AI53) -> 0
B54: Federal MACRS Cash Equivalent | D54: $ | E54: =IF(AND('Key_Assumptions_&_Inputs'!$E$25="Non Tax-Exempt Entity",E31=1),(-$E$35-($E$53/2))*0.2*'Key_Assumptions_&_Inputs'!$J$66,0) +IF(AND('Key_Assumptions_&_Inputs'!$E$25="Non Tax-Exempt Entity",E31=2),(-$E$35-($E$53/2))*0.32*'Key_Assumptions_&_Inputs'!$J$66,0) +IF(AND('Key_Assumptions_&_Inputs'!$E$25="Non Tax-Exempt Entity",E31=3),(-$E$35-($E$53/2))*0.192*'Key_Assumptions_&_Inputs'!$J$66,0) +IF(AND('Key_Assumptions_&_Inputs'!$E$25="Non Tax-Exempt Entity",E31=4),(-$E$35-($E$53/2))*0.1152*'Key_Assumptions_&_Inputs'!$J$66,0) +IF(AND('Key_Assumptions_&_Inputs'!$E$25="Non Tax-Exempt Entity",E31=5),(-$E$35-($E$53/2))*0.1152*'Key_Assumptions_&_Inputs'!$J$66,0) +IF(AND('Key_Assumptions_&_Inputs'!$E$25="Non Tax-Exempt Entity",E31=2),(-$E$35-($E$53/2))*0.0576*'Key_Assumptions_&_Inputs'!$J$66,0) -> 0 | F54: =IF(AND('Key_Assumptions_&_Inputs'!$E$25="Non Tax-Exempt Entity",F31=1),(-$E$35-($E$53/2))*0.2*'Key_Assumptions_&_Inputs'!$J$66,0) +IF(AND('Key_Assumptions_&_Inputs'!$E$25="Non Tax-Exempt Entity",F31=2),(-$E$35-($E$53/2))*0.32*'Key_Assumptions_&_Inputs'!$J$66,0) +IF(AND('Key_Assumptions_&_Inputs'!$E$25="Non Tax-Exempt Entity",F31=3),(-$E$35-($E$53/2))*0.192*'Key_Assumptions_&_Inputs'!$J$66,0) +IF(AND('Key_Assumptions_&_Inputs'!$E$25="Non Tax-Exempt Entity",F31=4),(-$E$35-($E$53/2))*0.1152*'Key_Assumptions_&_Inputs'!$J$66,0) +IF(AND('Key_Assumptions_&_Inputs'!$E$25="Non Tax-Exempt Entity",F31=5),(-$E$35-($E$53/2))*0.1152*'Key_Assumptions_&_Inputs'!$J$66,0) +IF(AND('Key_Assumptions_&_Inputs'!$E$25="Non Tax-Exempt Entity",F31=6),(-$E$35-($E$53/2))*0.0576*'Key_Assumptions_&_Inputs'!$J$66,0) -> 0 | G54: =IF(AND('Key_Assumptions_&_Inputs'!$E$25="Non Tax-Exempt Entity",G31=1),(-$E$35-($E$53/2))*0.2*'Key_Assumptions_&_Inputs'!$J$66,0) +IF(AND('Key_Assumptions_&_Inputs'!$E$25="Non Tax-Exempt Entity",G31=2),(-$E$35-($E$53/2))*0.32*'Key_Assumptions_&_Inputs'!$J$66,0) +IF(AND('Key_Assumptions_&_Inputs'!$E$25="Non Tax-Exempt Entity",G31=3),(-$E$35-($E$53/2))*0.192*'Key_Assumptions_&_Inputs'!$J$66,0) +IF(AND('Key_Assumptions_&_Inputs'!$E$25="Non Tax-Exempt Entity",G31=4),(-$E$35-($E$53/2))*0.1152*'Key_Assumptions_&_Inputs'!$J$66,0) +IF(AND('Key_Assumptions_&_Inputs'!$E$25="Non Tax-Exempt Entity",G31=5),(-$E$35-($E$53/2))*0.1152*'Key_Assumptions_&_Inputs'!$J$66,0) +IF(AND('Key_Assumptions_&_Inputs'!$E$25="Non Tax-Exempt Entity",G31=6),(-$E$35-($E$53/2))*0.0576*'Key_Assumptions_&_Inputs'!$J$66,0) -> 0 | H54: =IF(AND('Key_Assumptions_&_Inputs'!$E$25="Non Tax-Exempt Entity",H31=1),(-$E$35-($E$53/2))*0.2*'Key_Assumptions_&_Inputs'!$J$66,0) +IF(AND('Key_Assumptions_&_Inputs'!$E$25="Non Tax-Exempt Entity",H31=2),(-$E$35-($E$53/2))*0.32*'Key_Assumptions_&_Inputs'!$J$66,0) +IF(AND('Key_Assumptions_&_Inputs'!$E$25="Non Tax-Exempt Entity",H31=3),(-$E$35-($E$53/2))*0.192*'Key_Assumptions_&_Inputs'!$J$66,0) +IF(AND('Key_Assumptions_&_Inputs'!$E$25="Non Tax-Exempt Entity",H31=4),(-$E$35-($E$53/2))*0.1152*'Key_Assumptions_&_Inputs'!$J$66,0) +IF(AND('Key_Assumptions_&_Inputs'!$E$25="Non Tax-Exempt Entity",H31=5),(-$E$35-($E$53/2))*0.1152*'Key_Assumptions_&_Inputs'!$J$66,0) +IF(AND('Key_Assumptions_&_Inputs'!$E$25="Non Tax-Exempt Entity",H31=6),(-$E$35-($E$53/2))*0.0576*'Key_Assumptions_&_Inputs'!$J$66,0) -> 0 | I54: =IF(AND('Key_Assumptions_&_Inputs'!$E$25="Non Tax-Exempt Entity",I31=1),(-$E$35-($E$53/2))*0.2*'Key_Assumptions_&_Inputs'!$J$66,0) +IF(AND('Key_Assumptions_&_Inputs'!$E$25="Non Tax-Exempt Entity",I31=2),(-$E$35-($E$53/2))*0.32*'Key_Assumptions_&_Inputs'!$J$66,0) +IF(AND('Key_Assumptions_&_Inputs'!$E$25="Non Tax-Exempt Entity",I31=3),(-$E$35-($E$53/2))*0.192*'Key_Assumptions_&_Inputs'!$J$66,0) +IF(AND('Key_Assumptions_&_Inputs'!$E$25="Non Tax-Exempt Entity",I31=4),(-$E$35-($E$53/2))*0.1152*'Key_Assumptions_&_Inputs'!$J$66,0) +IF(AND('Key_Assumptions_&_Inputs'!$E$25="Non Tax-Exempt Entity",I31=5),(-$E$35-($E$53/2))*0.1152*'Key_Assumptions_&_Inputs'!$J$66,0) +IF(AND('Key_Assumptions_&_Inputs'!$E$25="Non Tax-Exempt Entity",I31=6),(-$E$35-($E$53/2))*0.0576*'Key_Assumptions_&_Inputs'!$J$66,0) -> 0 | J54: =IF(AND('Key_Assumptions_&_Inputs'!$E$25="Non Tax-Exempt Entity",J31=1),(-$E$35-($E$53/2))*0.2*'Key_Assumptions_&_Inputs'!$J$66,0) +IF(AND('Key_Assumptions_&_Inputs'!$E$25="Non Tax-Exempt Entity",J31=2),(-$E$35-($E$53/2))*0.32*'Key_Assumptions_&_Inputs'!$J$66,0) +IF(AND('Key_Assumptions_&_Inputs'!$E$25="Non Tax-Exempt Entity",J31=3),(-$E$35-($E$53/2))*0.192*'Key_Assumptions_&_Inputs'!$J$66,0) +IF(AND('Key_Assumptions_&_Inputs'!$E$25="Non Tax-Exempt Entity",J31=4),(-$E$35-($E$53/2))*0.1152*'Key_Assumptions_&_Inputs'!$J$66,0) +IF(AND('Key_Assumptions_&_Inputs'!$E$25="Non Tax-Exempt Entity",J31=5),(-$E$35-($E$53/2))*0.1152*'Key_Assumptions_&_Inputs'!$J$66,0) +IF(AND('Key_Assumptions_&_Inputs'!$E$25="Non Tax-Exempt Entity",J31=6),(-$E$35-($E$53/2))*0.0576*'Key_Assumptions_&_Inputs'!$J$66,0) -> 0 | K54: =IF(AND('Key_Assumptions_&_Inputs'!$E$25="Non Tax-Exempt Entity",K31=1),(-$E$35-($E$53/2))*0.2*'Key_Assumptions_&_Inputs'!$J$66,0) +IF(AND('Key_Assumptions_&_Inputs'!$E$25="Non Tax-Exempt Entity",K31=2),(-$E$35-($E$53/2))*0.32*'Key_Assumptions_&_Inputs'!$J$66,0) +IF(AND('Key_Assumptions_&_Inputs'!$E$25="Non Tax-Exempt Entity",K31=3),(-$E$35-($E$53/2))*0.192*'Key_Assumptions_&_Inputs'!$J$66,0) +IF(AND('Key_Assumptions_&_Inputs'!$E$25="Non Tax-Exempt Entity",K31=4),(-$E$35-($E$53/2))*0.1152*'Key_Assumptions_&_Inputs'!$J$66,0) +IF(AND('Key_Assumptions_&_Inputs'!$E$25="Non Tax-Exempt Entity",K31=5),(-$E$35-($E$53/2))*0.1152*'Key_Assumptions_&_Inputs'!$J$66,0) +IF(AND('Key_Assumptions_&_Inputs'!$E$25="Non Tax-Exempt Entity",K31=6),(-$E$35-($E$53/2))*0.0576*'Key_Assumptions_&_Inputs'!$J$66,0) -> 0 | L54: =IF(AND('Key_Assumptions_&_Inputs'!$E$25="Non Tax-Exempt Entity",L31=1),(-$E$35-($E$53/2))*0.2*'Key_Assumptions_&_Inputs'!$J$66,0) +IF(AND('Key_Assumptions_&_Inputs'!$E$25="Non Tax-Exempt Entity",L31=2),(-$E$35-($E$53/2))*0.32*'Key_Assumptions_&_Inputs'!$J$66,0) +IF(AND('Key_Assumptions_&_Inputs'!$E$25="Non Tax-Exempt Entity",L31=3),(-$E$35-($E$53/2))*0.192*'Key_Assumptions_&_Inputs'!$J$66,0) +IF(AND('Key_Assumptions_&_Inputs'!$E$25="Non Tax-Exempt Entity",L31=4),(-$E$35-($E$53/2))*0.1152*'Key_Assumptions_&_Inputs'!$J$66,0) +IF(AND('Key_Assumptions_&_Inputs'!$E$25="Non Tax-Exempt Entity",L31=5),(-$E$35-($E$53/2))*0.1152*'Key_Assumptions_&_Inputs'!$J$66,0) +IF(AND('Key_Assumptions_&_Inputs'!$E$25="Non Tax-Exempt Entity",L31=6),(-$E$35-($E$53/2))*0.0576*'Key_Assumptions_&_Inputs'!$J$66,0) -> 0 | M54: =IF(AND('Key_Assumptions_&_Inputs'!$E$25="Non Tax-Exempt Entity",M31=1),(-$E$35-($E$53/2))*0.2*'Key_Assumptions_&_Inputs'!$J$66,0) +IF(AND('Key_Assumptions_&_Inputs'!$E$25="Non Tax-Exempt Entity",M31=2),(-$E$35-($E$53/2))*0.32*'Key_Assumptions_&_Inputs'!$J$66,0) +IF(AND('Key_Assumptions_&_Inputs'!$E$25="Non Tax-Exempt Entity",M31=3),(-$E$35-($E$53/2))*0.192*'Key_Assumptions_&_Inputs'!$J$66,0) +IF(AND('Key_Assumptions_&_Inputs'!$E$25="Non Tax-Exempt Entity",M31=4),(-$E$35-($E$53/2))*0.1152*'Key_Assumptions_&_Inputs'!$J$66,0) +IF(AND('Key_Assumptions_&_Inputs'!$E$25="Non Tax-Exempt Entity",M31=5),(-$E$35-($E$53/2))*0.1152*'Key_Assumptions_&_Inputs'!$J$66,0) +IF(AND('Key_Assumptions_&_Inputs'!$E$25="Non Tax-Exempt Entity",M31=6),(-$E$35-($E$53/2))*0.0576*'Key_Assumptions_&_Inputs'!$J$66,0) -> 0 | N54: =IF(AND('Key_Assumptions_&_Inputs'!$E$25="Non Tax-Exempt Entity",N31=1),(-$E$35-($E$53/2))*0.2*'Key_Assumptions_&_Inputs'!$J$66,0) +IF(AND('Key_Assumptions_&_Inputs'!$E$25="Non Tax-Exempt Entity",N31=2),(-$E$35-($E$53/2))*0.32*'Key_Assumptions_&_Inputs'!$J$66,0) +IF(AND('Key_Assumptions_&_Inputs'!$E$25="Non Tax-Exempt Entity",N31=3),(-$E$35-($E$53/2))*0.192*'Key_Assumptions_&_Inputs'!$J$66,0) +IF(AND('Key_Assumptions_&_Inputs'!$E$25="Non Tax-Exempt Entity",N31=4),(-$E$35-($E$53/2))*0.1152*'Key_Assumptions_&_Inputs'!$J$66,0) +IF(AND('Key_Assumptions_&_Inputs'!$E$25="Non Tax-Exempt Entity",N31=5),(-$E$35-($E$53/2))*0.1152*'Key_Assumptions_&_Inputs'!$J$66,0) +IF(AND('Key_Assumptions_&_Inputs'!$E$25="Non Tax-Exempt Entity",N31=6),(-$E$35-($E$53/2))*0.0576*'Key_Assumptions_&_Inputs'!$J$66,0) -> 0 | O54: =IF(AND('Key_Assumptions_&_Inputs'!$E$25="Non Tax-Exempt Entity",O31=1),(-$E$35-($E$53/2))*0.2*'Key_Assumptions_&_Inputs'!$J$66,0) +IF(AND('Key_Assumptions_&_Inputs'!$E$25="Non Tax-Exempt Entity",O31=2),(-$E$35-($E$53/2))*0.32*'Key_Assumptions_&_Inputs'!$J$66,0) +IF(AND('Key_Assumptions_&_Inputs'!$E$25="Non Tax-Exempt Entity",O31=3),(-$E$35-($E$53/2))*0.192*'Key_Assumptions_&_Inputs'!$J$66,0) +IF(AND('Key_Assumptions_&_Inputs'!$E$25="Non Tax-Exempt Entity",O31=4),(-$E$35-($E$53/2))*0.1152*'Key_Assumptions_&_Inputs'!$J$66,0) +IF(AND('Key_Assumptions_&_Inputs'!$E$25="Non Tax-Exempt Entity",O31=5),(-$E$35-($E$53/2))*0.1152*'Key_Assumptions_&_Inputs'!$J$66,0) +IF(AND('Key_Assumptions_&_Inputs'!$E$25="Non Tax-Exempt Entity",O31=6),(-$E$35-($E$53/2))*0.0576*'Key_Assumptions_&_Inputs'!$J$66,0) -> 0 | P54: =IF(AND('Key_Assumptions_&_Inputs'!$E$25="Non Tax-Exempt Entity",P31=1),(-$E$35-($E$53/2))*0.2*'Key_Assumptions_&_Inputs'!$J$66,0) +IF(AND('Key_Assumptions_&_Inputs'!$E$25="Non Tax-Exempt Entity",P31=2),(-$E$35-($E$53/2))*0.32*'Key_Assumptions_&_Inputs'!$J$66,0) +IF(AND('Key_Assumptions_&_Inputs'!$E$25="Non Tax-Exempt Entity",P31=3),(-$E$35-($E$53/2))*0.192*'Key_Assumptions_&_Inputs'!$J$66,0) +IF(AND('Key_Assumptions_&_Inputs'!$E$25="Non Tax-Exempt Entity",P31=4),(-$E$35-($E$53/2))*0.1152*'Key_Assumptions_&_Inputs'!$J$66,0) +IF(AND('Key_Assumptions_&_Inputs'!$E$25="Non Tax-Exempt Entity",P31=5),(-$E$35-($E$53/2))*0.1152*'Key_Assumptions_&_Inputs'!$J$66,0) +IF(AND('Key_Assumptions_&_Inputs'!$E$25="Non Tax-Exempt Entity",P31=6),(-$E$35-($E$53/2))*0.0576*'Key_Assumptions_&_Inputs'!$J$66,0) -> 0 | Q54: =IF(AND('Key_Assumptions_&_Inputs'!$E$25="Non Tax-Exempt Entity",Q31=1),(-$E$35-($E$53/2))*0.2*'Key_Assumptions_&_Inputs'!$J$66,0) +IF(AND('Key_Assumptions_&_Inputs'!$E$25="Non Tax-Exempt Entity",Q31=2),(-$E$35-($E$53/2))*0.32*'Key_Assumptions_&_Inputs'!$J$66,0) +IF(AND('Key_Assumptions_&_Inputs'!$E$25="Non Tax-Exempt Entity",Q31=3),(-$E$35-($E$53/2))*0.192*'Key_Assumptions_&_Inputs'!$J$66,0) +IF(AND('Key_Assumptions_&_Inputs'!$E$25="Non Tax-Exempt Entity",Q31=4),(-$E$35-($E$53/2))*0.1152*'Key_Assumptions_&_Inputs'!$J$66,0) +IF(AND('Key_Assumptions_&_Inputs'!$E$25="Non Tax-Exempt Entity",Q31=5),(-$E$35-($E$53/2))*0.1152*'Key_Assumptions_&_Inputs'!$J$66,0) +IF(AND('Key_Assumptions_&_Inputs'!$E$25="Non Tax-Exempt Entity",Q31=6),(-$E$35-($E$53/2))*0.0576*'Key_Assumptions_&_Inputs'!$J$66,0) -> 0 | R54: =IF(AND('Key_Assumptions_&_Inputs'!$E$25="Non Tax-Exempt Entity",R31=1),(-$E$35-($E$53/2))*0.2*'Key_Assumptions_&_Inputs'!$J$66,0) +IF(AND('Key_Assumptions_&_Inputs'!$E$25="Non Tax-Exempt Entity",R31=2),(-$E$35-($E$53/2))*0.32*'Key_Assumptions_&_Inputs'!$J$66,0) +IF(AND('Key_Assumptions_&_Inputs'!$E$25="Non Tax-Exempt Entity",R31=3),(-$E$35-($E$53/2))*0.192*'Key_Assumptions_&_Inputs'!$J$66,0) +IF(AND('Key_Assumptions_&_Inputs'!$E$25="Non Tax-Exempt Entity",R31=4),(-$E$35-($E$53/2))*0.1152*'Key_Assumptions_&_Inputs'!$J$66,0) +IF(AND('Key_Assumptions_&_Inputs'!$E$25="Non Tax-Exempt Entity",R31=5),(-$E$35-($E$53/2))*0.1152*'Key_Assumptions_&_Inputs'!$J$66,0) +IF(AND('Key_Assumptions_&_Inputs'!$E$25="Non Tax-Exempt Entity",R31=6),(-$E$35-($E$53/2))*0.0576*'Key_Assumptions_&_Inputs'!$J$66,0) -> 0 | S54: =IF(AND('Key_Assumptions_&_Inputs'!$E$25="Non Tax-Exempt Entity",S31=1),(-$E$35-($E$53/2))*0.2*'Key_Assumptions_&_Inputs'!$J$66,0) +IF(AND('Key_Assumptions_&_Inputs'!$E$25="Non Tax-Exempt Entity",S31=2),(-$E$35-($E$53/2))*0.32*'Key_Assumptions_&_Inputs'!$J$66,0) +IF(AND('Key_Assumptions_&_Inputs'!$E$25="Non Tax-Exempt Entity",S31=3),(-$E$35-($E$53/2))*0.192*'Key_Assumptions_&_Inputs'!$J$66,0) +IF(AND('Key_Assumptions_&_Inputs'!$E$25="Non Tax-Exempt Entity",S31=4),(-$E$35-($E$53/2))*0.1152*'Key_Assumptions_&_Inputs'!$J$66,0) +IF(AND('Key_Assumptions_&_Inputs'!$E$25="Non Tax-Exempt Entity",S31=5),(-$E$35-($E$53/2))*0.1152*'Key_Assumptions_&_Inputs'!$J$66,0) +IF(AND('Key_Assumptions_&_Inputs'!$E$25="Non Tax-Exempt Entity",S31=6),(-$E$35-($E$53/2))*0.0576*'Key_Assumptions_&_Inputs'!$J$66,0) -> 0 | T54: =IF(AND('Key_Assumptions_&_Inputs'!$E$25="Non Tax-Exempt Entity",T31=1),(-$E$35-($E$53/2))*0.2*'Key_Assumptions_&_Inputs'!$J$66,0) +IF(AND('Key_Assumptions_&_Inputs'!$E$25="Non Tax-Exempt Entity",T31=2),(-$E$35-($E$53/2))*0.32*'Key_Assumptions_&_Inputs'!$J$66,0) +IF(AND('Key_Assumptions_&_Inputs'!$E$25="Non Tax-Exempt Entity",T31=3),(-$E$35-($E$53/2))*0.192*'Key_Assumptions_&_Inputs'!$J$66,0) +IF(AND('Key_Assumptions_&_Inputs'!$E$25="Non Tax-Exempt Entity",T31=4),(-$E$35-($E$53/2))*0.1152*'Key_Assumptions_&_Inputs'!$J$66,0) +IF(AND('Key_Assumptions_&_Inputs'!$E$25="Non Tax-Exempt Entity",T31=5),(-$E$35-($E$53/2))*0.1152*'Key_Assumptions_&_Inputs'!$J$66,0) +IF(AND('Key_Assumptions_&_Inputs'!$E$25="Non Tax-Exempt Entity",T31=6),(-$E$35-($E$53/2))*0.0576*'Key_Assumptions_&_Inputs'!$J$66,0) -> 0 | U54: =IF(AND('Key_Assumptions_&_Inputs'!$E$25="Non Tax-Exempt Entity",U31=1),(-$E$35-($E$53/2))*0.2*'Key_Assumptions_&_Inputs'!$J$66,0) +IF(AND('Key_Assumptions_&_Inputs'!$E$25="Non Tax-Exempt Entity",U31=2),(-$E$35-($E$53/2))*0.32*'Key_Assumptions_&_Inputs'!$J$66,0) +IF(AND('Key_Assumptions_&_Inputs'!$E$25="Non Tax-Exempt Entity",U31=3),(-$E$35-($E$53/2))*0.192*'Key_Assumptions_&_Inputs'!$J$66,0) +IF(AND('Key_Assumptions_&_Inputs'!$E$25="Non Tax-Exempt Entity",U31=4),(-$E$35-($E$53/2))*0.1152*'Key_Assumptions_&_Inputs'!$J$66,0) +IF(AND('Key_Assumptions_&_Inputs'!$E$25="Non Tax-Exempt Entity",U31=5),(-$E$35-($E$53/2))*0.1152*'Key_Assumptions_&_Inputs'!$J$66,0) +IF(AND('Key_Assumptions_&_Inputs'!$E$25="Non Tax-Exempt Entity",U31=6),(-$E$35-($E$53/2))*0.0576*'Key_Assumptions_&_Inputs'!$J$66,0) -> 0 | V54: =IF(AND('Key_Assumptions_&_Inputs'!$E$25="Non Tax-Exempt Entity",V31=1),(-$E$35-($E$53/2))*0.2*'Key_Assumptions_&_Inputs'!$J$66,0) +IF(AND('Key_Assumptions_&_Inputs'!$E$25="Non Tax-Exempt Entity",V31=2),(-$E$35-($E$53/2))*0.32*'Key_Assumptions_&_Inputs'!$J$66,0) +IF(AND('Key_Assumptions_&_Inputs'!$E$25="Non Tax-Exempt Entity",V31=3),(-$E$35-($E$53/2))*0.192*'Key_Assumptions_&_Inputs'!$J$66,0) +IF(AND('Key_Assumptions_&_Inputs'!$E$25="Non Tax-Exempt Entity",V31=4),(-$E$35-($E$53/2))*0.1152*'Key_Assumptions_&_Inputs'!$J$66,0) +IF(AND('Key_Assumptions_&_Inputs'!$E$25="Non Tax-Exempt Entity",V31=5),(-$E$35-($E$53/2))*0.1152*'Key_Assumptions_&_Inputs'!$J$66,0) +IF(AND('Key_Assumptions_&_Inputs'!$E$25="Non Tax-Exempt Entity",V31=6),(-$E$35-($E$53/2))*0.0576*'Key_Assumptions_&_Inputs'!$J$66,0) -> 0 | W54: =IF(AND('Key_Assumptions_&_Inputs'!$E$25="Non Tax-Exempt Entity",W31=1),(-$E$35-($E$53/2))*0.2*'Key_Assumptions_&_Inputs'!$J$66,0) +IF(AND('Key_Assumptions_&_Inputs'!$E$25="Non Tax-Exempt Entity",W31=2),(-$E$35-($E$53/2))*0.32*'Key_Assumptions_&_Inputs'!$J$66,0) +IF(AND('Key_Assumptions_&_Inputs'!$E$25="Non Tax-Exempt Entity",W31=3),(-$E$35-($E$53/2))*0.192*'Key_Assumptions_&_Inputs'!$J$66,0) +IF(AND('Key_Assumptions_&_Inputs'!$E$25="Non Tax-Exempt Entity",W31=4),(-$E$35-($E$53/2))*0.1152*'Key_Assumptions_&_Inputs'!$J$66,0) +IF(AND('Key_Assumptions_&_Inputs'!$E$25="Non Tax-Exempt Entity",W31=5),(-$E$35-($E$53/2))*0.1152*'Key_Assumptions_&_Inputs'!$J$66,0) +IF(AND('Key_Assumptions_&_Inputs'!$E$25="Non Tax-Exempt Entity",W31=6),(-$E$35-($E$53/2))*0.0576*'Key_Assumptions_&_Inputs'!$J$66,0) -> 0 | X54: =IF(AND('Key_Assumptions_&_Inputs'!$E$25="Non Tax-Exempt Entity",X31=1),(-$E$35-($E$53/2))*0.2*'Key_Assumptions_&_Inputs'!$J$66,0) +IF(AND('Key_Assumptions_&_Inputs'!$E$25="Non Tax-Exempt Entity",X31=2),(-$E$35-($E$53/2))*0.32*'Key_Assumptions_&_Inputs'!$J$66,0) +IF(AND('Key_Assumptions_&_Inputs'!$E$25="Non Tax-Exempt Entity",X31=3),(-$E$35-($E$53/2))*0.192*'Key_Assumptions_&_Inputs'!$J$66,0) +IF(AND('Key_Assumptions_&_Inputs'!$E$25="Non Tax-Exempt Entity",X31=4),(-$E$35-($E$53/2))*0.1152*'Key_Assumptions_&_Inputs'!$J$66,0) +IF(AND('Key_Assumptions_&_Inputs'!$E$25="Non Tax-Exempt Entity",X31=5),(-$E$35-($E$53/2))*0.1152*'Key_Assumptions_&_Inputs'!$J$66,0) +IF(AND('Key_Assumptions_&_Inputs'!$E$25="Non Tax-Exempt Entity",X31=6),(-$E$35-($E$53/2))*0.0576*'Key_Assumptions_&_Inputs'!$J$66,0) -> 0 | Y54: =IF(AND('Key_Assumptions_&_Inputs'!$E$25="Non Tax-Exempt Entity",Y31=1),(-$E$35-($E$53/2))*0.2*'Key_Assumptions_&_Inputs'!$J$66,0) +IF(AND('Key_Assumptions_&_Inputs'!$E$25="Non Tax-Exempt Entity",Y31=2),(-$E$35-($E$53/2))*0.32*'Key_Assumptions_&_Inputs'!$J$66,0) +IF(AND('Key_Assumptions_&_Inputs'!$E$25="Non Tax-Exempt Entity",Y31=3),(-$E$35-($E$53/2))*0.192*'Key_Assumptions_&_Inputs'!$J$66,0) +IF(AND('Key_Assumptions_&_Inputs'!$E$25="Non Tax-Exempt Entity",Y31=4),(-$E$35-($E$53/2))*0.1152*'Key_Assumptions_&_Inputs'!$J$66,0) +IF(AND('Key_Assumptions_&_Inputs'!$E$25="Non Tax-Exempt Entity",Y31=5),(-$E$35-($E$53/2))*0.1152*'Key_Assumptions_&_Inputs'!$J$66,0) +IF(AND('Key_Assumptions_&_Inputs'!$E$25="Non Tax-Exempt Entity",Y31=6),(-$E$35-($E$53/2))*0.0576*'Key_Assumptions_&_Inputs'!$J$66,0) -> 0 | Z54: =IF(AND('Key_Assumptions_&_Inputs'!$E$25="Non Tax-Exempt Entity",Z31=1),(-$E$35-($E$53/2))*0.2*'Key_Assumptions_&_Inputs'!$J$66,0) +IF(AND('Key_Assumptions_&_Inputs'!$E$25="Non Tax-Exempt Entity",Z31=2),(-$E$35-($E$53/2))*0.32*'Key_Assumptions_&_Inputs'!$J$66,0) +IF(AND('Key_Assumptions_&_Inputs'!$E$25="Non Tax-Exempt Entity",Z31=3),(-$E$35-($E$53/2))*0.192*'Key_Assumptions_&_Inputs'!$J$66,0) +IF(AND('Key_Assumptions_&_Inputs'!$E$25="Non Tax-Exempt Entity",Z31=4),(-$E$35-($E$53/2))*0.1152*'Key_Assumptions_&_Inputs'!$J$66,0) +IF(AND('Key_Assumptions_&_Inputs'!$E$25="Non Tax-Exempt Entity",Z31=5),(-$E$35-($E$53/2))*0.1152*'Key_Assumptions_&_Inputs'!$J$66,0) +IF(AND('Key_Assumptions_&_Inputs'!$E$25="Non Tax-Exempt Entity",Z31=6),(-$E$35-($E$53/2))*0.0576*'Key_Assumptions_&_Inputs'!$J$66,0) -> 0 | AA54: =IF(AND('Key_Assumptions_&_Inputs'!$E$25="Non Tax-Exempt Entity",AA31=1),(-$E$35-($E$53/2))*0.2*'Key_Assumptions_&_Inputs'!$J$66,0) +IF(AND('Key_Assumptions_&_Inputs'!$E$25="Non Tax-Exempt Entity",AA31=2),(-$E$35-($E$53/2))*0.32*'Key_Assumptions_&_Inputs'!$J$66,0) +IF(AND('Key_Assumptions_&_Inputs'!$E$25="Non Tax-Exempt Entity",AA31=3),(-$E$35-($E$53/2))*0.192*'Key_Assumptions_&_Inputs'!$J$66,0) +IF(AND('Key_Assumptions_&_Inputs'!$E$25="Non Tax-Exempt Entity",AA31=4),(-$E$35-($E$53/2))*0.1152*'Key_Assumptions_&_Inputs'!$J$66,0) +IF(AND('Key_Assumptions_&_Inputs'!$E$25="Non Tax-Exempt Entity",AA31=5),(-$E$35-($E$53/2))*0.1152*'Key_Assumptions_&_Inputs'!$J$66,0) +IF(AND('Key_Assumptions_&_Inputs'!$E$25="Non Tax-Exempt Entity",AA31=6),(-$E$35-($E$53/2))*0.0576*'Key_Assumptions_&_Inputs'!$J$66,0) -> 0 | AB54: =IF(AND('Key_Assumptions_&_Inputs'!$E$25="Non Tax-Exempt Entity",AB31=1),(-$E$35-($E$53/2))*0.2*'Key_Assumptions_&_Inputs'!$J$66,0) +IF(AND('Key_Assumptions_&_Inputs'!$E$25="Non Tax-Exempt Entity",AB31=2),(-$E$35-($E$53/2))*0.32*'Key_Assumptions_&_Inputs'!$J$66,0) +IF(AND('Key_Assumptions_&_Inputs'!$E$25="Non Tax-Exempt Entity",AB31=3),(-$E$35-($E$53/2))*0.192*'Key_Assumptions_&_Inputs'!$J$66,0) +IF(AND('Key_Assumptions_&_Inputs'!$E$25="Non Tax-Exempt Entity",AB31=4),(-$E$35-($E$53/2))*0.1152*'Key_Assumptions_&_Inputs'!$J$66,0) +IF(AND('Key_Assumptions_&_Inputs'!$E$25="Non Tax-Exempt Entity",AB31=5),(-$E$35-($E$53/2))*0.1152*'Key_Assumptions_&_Inputs'!$J$66,0) +IF(AND('Key_Assumptions_&_Inputs'!$E$25="Non Tax-Exempt Entity",AB31=6),(-$E$35-($E$53/2))*0.0576*'Key_Assumptions_&_Inputs'!$J$66,0) -> 0 | AC54: =IF(AND('Key_Assumptions_&_Inputs'!$E$25="Non Tax-Exempt Entity",AC31=1),(-$E$35-($E$53/2))*0.2*'Key_Assumptions_&_Inputs'!$J$66,0) +IF(AND('Key_Assumptions_&_Inputs'!$E$25="Non Tax-Exempt Entity",AC31=2),(-$E$35-($E$53/2))*0.32*'Key_Assumptions_&_Inputs'!$J$66,0) +IF(AND('Key_Assumptions_&_Inputs'!$E$25="Non Tax-Exempt Entity",AC31=3),(-$E$35-($E$53/2))*0.192*'Key_Assumptions_&_Inputs'!$J$66,0) +IF(AND('Key_Assumptions_&_Inputs'!$E$25="Non Tax-Exempt Entity",AC31=4),(-$E$35-($E$53/2))*0.1152*'Key_Assumptions_&_Inputs'!$J$66,0) +IF(AND('Key_Assumptions_&_Inputs'!$E$25="Non Tax-Exempt Entity",AC31=5),(-$E$35-($E$53/2))*0.1152*'Key_Assumptions_&_Inputs'!$J$66,0) +IF(AND('Key_Assumptions_&_Inputs'!$E$25="Non Tax-Exempt Entity",AC31=6),(-$E$35-($E$53/2))*0.0576*'Key_Assumptions_&_Inputs'!$J$66,0) -> 0 | AD54: =IF(AND('Key_Assumptions_&_Inputs'!$E$25="Non Tax-Exempt Entity",AD31=1),(-$E$35-($E$53/2))*0.2*'Key_Assumptions_&_Inputs'!$J$66,0) +IF(AND('Key_Assumptions_&_Inputs'!$E$25="Non Tax-Exempt Entity",AD31=2),(-$E$35-($E$53/2))*0.32*'Key_Assumptions_&_Inputs'!$J$66,0) +IF(AND('Key_Assumptions_&_Inputs'!$E$25="Non Tax-Exempt Entity",AD31=3),(-$E$35-($E$53/2))*0.192*'Key_Assumptions_&_Inputs'!$J$66,0) +IF(AND('Key_Assumptions_&_Inputs'!$E$25="Non Tax-Exempt Entity",AD31=4),(-$E$35-($E$53/2))*0.1152*'Key_Assumptions_&_Inputs'!$J$66,0) +IF(AND('Key_Assumptions_&_Inputs'!$E$25="Non Tax-Exempt Entity",AD31=5),(-$E$35-($E$53/2))*0.1152*'Key_Assumptions_&_Inputs'!$J$66,0) +IF(AND('Key_Assumptions_&_Inputs'!$E$25="Non Tax-Exempt Entity",AD31=6),(-$E$35-($E$53/2))*0.0576*'Key_Assumptions_&_Inputs'!$J$66,0) -> 0 | AE54: =IF(AND('Key_Assumptions_&_Inputs'!$E$25="Non Tax-Exempt Entity",AE31=1),(-$E$35-($E$53/2))*0.2*'Key_Assumptions_&_Inputs'!$J$66,0) +IF(AND('Key_Assumptions_&_Inputs'!$E$25="Non Tax-Exempt Entity",AE31=2),(-$E$35-($E$53/2))*0.32*'Key_Assumptions_&_Inputs'!$J$66,0) +IF(AND('Key_Assumptions_&_Inputs'!$E$25="Non Tax-Exempt Entity",AE31=3),(-$E$35-($E$53/2))*0.192*'Key_Assumptions_&_Inputs'!$J$66,0) +IF(AND('Key_Assumptions_&_Inputs'!$E$25="Non Tax-Exempt Entity",AE31=4),(-$E$35-($E$53/2))*0.1152*'Key_Assumptions_&_Inputs'!$J$66,0) +IF(AND('Key_Assumptions_&_Inputs'!$E$25="Non Tax-Exempt Entity",AE31=5),(-$E$35-($E$53/2))*0.1152*'Key_Assumptions_&_Inputs'!$J$66,0) +IF(AND('Key_Assumptions_&_Inputs'!$E$25="Non Tax-Exempt Entity",AE31=6),(-$E$35-($E$53/2))*0.0576*'Key_Assumptions_&_Inputs'!$J$66,0) -> 0 | AF54: =IF(AND('Key_Assumptions_&_Inputs'!$E$25="Non Tax-Exempt Entity",AF31=1),(-$E$35-($E$53/2))*0.2*'Key_Assumptions_&_Inputs'!$J$66,0) +IF(AND('Key_Assumptions_&_Inputs'!$E$25="Non Tax-Exempt Entity",AF31=2),(-$E$35-($E$53/2))*0.32*'Key_Assumptions_&_Inputs'!$J$66,0) +IF(AND('Key_Assumptions_&_Inputs'!$E$25="Non Tax-Exempt Entity",AF31=3),(-$E$35-($E$53/2))*0.192*'Key_Assumptions_&_Inputs'!$J$66,0) +IF(AND('Key_Assumptions_&_Inputs'!$E$25="Non Tax-Exempt Entity",AF31=4),(-$E$35-($E$53/2))*0.1152*'Key_Assumptions_&_Inputs'!$J$66,0) +IF(AND('Key_Assumptions_&_Inputs'!$E$25="Non Tax-Exempt Entity",AF31=5),(-$E$35-($E$53/2))*0.1152*'Key_Assumptions_&_Inputs'!$J$66,0) +IF(AND('Key_Assumptions_&_Inputs'!$E$25="Non Tax-Exempt Entity",AF31=6),(-$E$35-($E$53/2))*0.0576*'Key_Assumptions_&_Inputs'!$J$66,0) -> 0 | AG54: =IF(AND('Key_Assumptions_&_Inputs'!$E$25="Non Tax-Exempt Entity",AG31=1),(-$E$35-($E$53/2))*0.2*'Key_Assumptions_&_Inputs'!$J$66,0) +IF(AND('Key_Assumptions_&_Inputs'!$E$25="Non Tax-Exempt Entity",AG31=2),(-$E$35-($E$53/2))*0.32*'Key_Assumptions_&_Inputs'!$J$66,0) +IF(AND('Key_Assumptions_&_Inputs'!$E$25="Non Tax-Exempt Entity",AG31=3),(-$E$35-($E$53/2))*0.192*'Key_Assumptions_&_Inputs'!$J$66,0) +IF(AND('Key_Assumptions_&_Inputs'!$E$25="Non Tax-Exempt Entity",AG31=4),(-$E$35-($E$53/2))*0.1152*'Key_Assumptions_&_Inputs'!$J$66,0) +IF(AND('Key_Assumptions_&_Inputs'!$E$25="Non Tax-Exempt Entity",AG31=5),(-$E$35-($E$53/2))*0.1152*'Key_Assumptions_&_Inputs'!$J$66,0) +IF(AND('Key_Assumptions_&_Inputs'!$E$25="Non Tax-Exempt Entity",AG31=6),(-$E$35-($E$53/2))*0.0576*'Key_Assumptions_&_Inputs'!$J$66,0) -> 0 | AH54: =IF(AND('Key_Assumptions_&_Inputs'!$E$25="Non Tax-Exempt Entity",AH31=1),(-$E$35-($E$53/2))*0.2*'Key_Assumptions_&_Inputs'!$J$66,0) +IF(AND('Key_Assumptions_&_Inputs'!$E$25="Non Tax-Exempt Entity",AH31=2),(-$E$35-($E$53/2))*0.32*'Key_Assumptions_&_Inputs'!$J$66,0) +IF(AND('Key_Assumptions_&_Inputs'!$E$25="Non Tax-Exempt Entity",AH31=3),(-$E$35-($E$53/2))*0.192*'Key_Assumptions_&_Inputs'!$J$66,0) +IF(AND('Key_Assumptions_&_Inputs'!$E$25="Non Tax-Exempt Entity",AH31=4),(-$E$35-($E$53/2))*0.1152*'Key_Assumptions_&_Inputs'!$J$66,0) +IF(AND('Key_Assumptions_&_Inputs'!$E$25="Non Tax-Exempt Entity",AH31=5),(-$E$35-($E$53/2))*0.1152*'Key_Assumptions_&_Inputs'!$J$66,0) +IF(AND('Key_Assumptions_&_Inputs'!$E$25="Non Tax-Exempt Entity",AH31=6),(-$E$35-($E$53/2))*0.0576*'Key_Assumptions_&_Inputs'!$J$66,0) -> 0 | AI54: =IF(AND('Key_Assumptions_&_Inputs'!$E$25="Non Tax-Exempt Entity",AI31=1),(-$E$35-($E$53/2))*0.2*'Key_Assumptions_&_Inputs'!$J$66,0) +IF(AND('Key_Assumptions_&_Inputs'!$E$25="Non Tax-Exempt Entity",AI31=2),(-$E$35-($E$53/2))*0.32*'Key_Assumptions_&_Inputs'!$J$66,0) +IF(AND('Key_Assumptions_&_Inputs'!$E$25="Non Tax-Exempt Entity",AI31=3),(-$E$35-($E$53/2))*0.192*'Key_Assumptions_&_Inputs'!$J$66,0) +IF(AND('Key_Assumptions_&_Inputs'!$E$25="Non Tax-Exempt Entity",AI31=4),(-$E$35-($E$53/2))*0.1152*'Key_Assumptions_&_Inputs'!$J$66,0) +IF(AND('Key_Assumptions_&_Inputs'!$E$25="Non Tax-Exempt Entity",AI31=5),(-$E$35-($E$53/2))*0.1152*'Key_Assumptions_&_Inputs'!$J$66,0) +IF(AND('Key_Assumptions_&_Inputs'!$E$25="Non Tax-Exempt Entity",AI31=6),(-$E$35-($E$53/2))*0.0576*'Key_Assumptions_&_Inputs'!$J$66,0) -> 0 | AJ54: 0 | AK54: =E54+NPV(UtilityDiscountRt,F54:AI54) -> 0
B55: State/Local Capacity Incentive | D55: $ | E55: =IF(E31=0,'Key_Assumptions_&_Inputs'!$J$61+'Key_Assumptions_&_Inputs'!$J$60*SystemSizeDC*1000,0) -> 0 | F55: =IF(F31=0,'Key_Assumptions_&_Inputs'!$J$61+'Key_Assumptions_&_Inputs'!$J$60*SystemSizeDC*1000,0) -> 0 | G55: =IF(G31=0,'Key_Assumptions_&_Inputs'!$J$61+'Key_Assumptions_&_Inputs'!$J$60*SystemSizeDC*1000,0) -> 0 | H55: =IF(H31=0,'Key_Assumptions_&_Inputs'!$J$61+'Key_Assumptions_&_Inputs'!$J$60*SystemSizeDC*1000,0) -> 0 | I55: =IF(I31=0,'Key_Assumptions_&_Inputs'!$J$61+'Key_Assumptions_&_Inputs'!$J$60*SystemSizeDC*1000,0) -> 0 | J55: =IF(J31=0,'Key_Assumptions_&_Inputs'!$J$61+'Key_Assumptions_&_Inputs'!$J$60*SystemSizeDC*1000,0) -> 0 | K55: =IF(K31=0,'Key_Assumptions_&_Inputs'!$J$61+'Key_Assumptions_&_Inputs'!$J$60*SystemSizeDC*1000,0) -> 0 | L55: =IF(L31=0,'Key_Assumptions_&_Inputs'!$J$61+'Key_Assumptions_&_Inputs'!$J$60*SystemSizeDC*1000,0) -> 0 | M55: =IF(M31=0,'Key_Assumptions_&_Inputs'!$J$61+'Key_Assumptions_&_Inputs'!$J$60*SystemSizeDC*1000,0) -> 0 | N55: =IF(N31=0,'Key_Assumptions_&_Inputs'!$J$61+'Key_Assumptions_&_Inputs'!$J$60*SystemSizeDC*1000,0) -> 0 | O55: =IF(O31=0,'Key_Assumptions_&_Inputs'!$J$61+'Key_Assumptions_&_Inputs'!$J$60*SystemSizeDC*1000,0) -> 0 | P55: =IF(P31=0,'Key_Assumptions_&_Inputs'!$J$61+'Key_Assumptions_&_Inputs'!$J$60*SystemSizeDC*1000,0) -> 0 | Q55: =IF(Q31=0,'Key_Assumptions_&_Inputs'!$J$61+'Key_Assumptions_&_Inputs'!$J$60*SystemSizeDC*1000,0) -> 0 | R55: =IF(R31=0,'Key_Assumptions_&_Inputs'!$J$61+'Key_Assumptions_&_Inputs'!$J$60*SystemSizeDC*1000,0) -> 0 | S55: =IF(S31=0,'Key_Assumptions_&_Inputs'!$J$61+'Key_Assumptions_&_Inputs'!$J$60*SystemSizeDC*1000,0) -> 0 | T55: =IF(T31=0,'Key_Assumptions_&_Inputs'!$J$61+'Key_Assumptions_&_Inputs'!$J$60*SystemSizeDC*1000,0) -> 0 | U55: =IF(U31=0,'Key_Assumptions_&_Inputs'!$J$61+'Key_Assumptions_&_Inputs'!$J$60*SystemSizeDC*1000,0) -> 0 | V55: =IF(V31=0,'Key_Assumptions_&_Inputs'!$J$61+'Key_Assumptions_&_Inputs'!$J$60*SystemSizeDC*1000,0) -> 0 | W55: =IF(W31=0,'Key_Assumptions_&_Inputs'!$J$61+'Key_Assumptions_&_Inputs'!$J$60*SystemSizeDC*1000,0) -> 0 | X55: =IF(X31=0,'Key_Assumptions_&_Inputs'!$J$61+'Key_Assumptions_&_Inputs'!$J$60*SystemSizeDC*1000,0) -> 0 | Y55: =IF(Y31=0,'Key_Assumptions_&_Inputs'!$J$61+'Key_Assumptions_&_Inputs'!$J$60*SystemSizeDC*1000,0) -> 0 | Z55: =IF(Z31=0,'Key_Assumptions_&_Inputs'!$J$61+'Key_Assumptions_&_Inputs'!$J$60*SystemSizeDC*1000,0) -> 0 | AA55: =IF(AA31=0,'Key_Assumptions_&_Inputs'!$J$61+'Key_Assumptions_&_Inputs'!$J$60*SystemSizeDC*1000,0) -> 0 | AB55: =IF(AB31=0,'Key_Assumptions_&_Inputs'!$J$61+'Key_Assumptions_&_Inputs'!$J$60*SystemSizeDC*1000,0) -> 0 | AC55: =IF(AC31=0,'Key_Assumptions_&_Inputs'!$J$61+'Key_Assumptions_&_Inputs'!$J$60*SystemSizeDC*1000,0) -> 0 | AD55: =IF(AD31=0,'Key_Assumptions_&_Inputs'!$J$61+'Key_Assumptions_&_Inputs'!$J$60*SystemSizeDC*1000,0) -> 0 | AE55: =IF(AE31=0,'Key_Assumptions_&_Inputs'!$J$61+'Key_Assumptions_&_Inputs'!$J$60*SystemSizeDC*1000,0) -> 0 | AF55: =IF(AF31=0,'Key_Assumptions_&_Inputs'!$J$61+'Key_Assumptions_&_Inputs'!$J$60*SystemSizeDC*1000,0) -> 0 | AG55: =IF(AG31=0,'Key_Assumptions_&_Inputs'!$J$61+'Key_Assumptions_&_Inputs'!$J$60*SystemSizeDC*1000,0) -> 0 | AH55: =IF(AH31=0,'Key_Assumptions_&_Inputs'!$J$61+'Key_Assumptions_&_Inputs'!$J$60*SystemSizeDC*1000,0) -> 0 | AI55: =IF(AI31=0,'Key_Assumptions_&_Inputs'!$J$61+'Key_Assumptions_&_Inputs'!$J$60*SystemSizeDC*1000,0) -> 0 | AJ55: 0 | AK55: =E55+NPV(UtilityDiscountRt,F55:AI55) -> 0
B56: State/Local Generation Incentives | D56: $ | E56: =IF(E31=0,0,'Key_Assumptions_&_Inputs'!$J$59*E15) -> 0 | F56: =IF(F31=0,0,'Key_Assumptions_&_Inputs'!$J$59*E15) -> 0 | G56: =IF(G31=0,0,'Key_Assumptions_&_Inputs'!$J$59*F15) -> 0 | H56: =IF(H31=0,0,'Key_Assumptions_&_Inputs'!$J$59*G15) -> 0 | I56: =IF(I31=0,0,'Key_Assumptions_&_Inputs'!$J$59*H15) -> 0 | J56: =IF(J31=0,0,'Key_Assumptions_&_Inputs'!$J$59*I15) -> 0 | K56: =IF(K31=0,0,'Key_Assumptions_&_Inputs'!$J$59*J15) -> 0 | L56: =IF(L31=0,0,'Key_Assumptions_&_Inputs'!$J$59*K15) -> 0 | M56: =IF(M31=0,0,'Key_Assumptions_&_Inputs'!$J$59*L15) -> 0 | N56: =IF(N31=0,0,'Key_Assumptions_&_Inputs'!$J$59*M15) -> 0 | O56: =IF(O31=0,0,'Key_Assumptions_&_Inputs'!$J$59*N15) -> 0 | P56: =IF(P31=0,0,'Key_Assumptions_&_Inputs'!$J$59*O15) -> 0 | Q56: =IF(Q31=0,0,'Key_Assumptions_&_Inputs'!$J$59*P15) -> 0 | R56: =IF(R31=0,0,'Key_Assumptions_&_Inputs'!$J$59*Q15) -> 0 | S56: =IF(S31=0,0,'Key_Assumptions_&_Inputs'!$J$59*R15) -> 0 | T56: =IF(T31=0,0,'Key_Assumptions_&_Inputs'!$J$59*S15) -> 0 | U56: =IF(U31=0,0,'Key_Assumptions_&_Inputs'!$J$59*T15) -> 0 | V56: =IF(V31=0,0,'Key_Assumptions_&_Inputs'!$J$59*U15) -> 0 | W56: =IF(W31=0,0,'Key_Assumptions_&_Inputs'!$J$59*V15) -> 0 | X56: =IF(X31=0,0,'Key_Assumptions_&_Inputs'!$J$59*W15) -> 0 | Y56: =IF(Y31=0,0,'Key_Assumptions_&_Inputs'!$J$59*X15) -> 0 | Z56: =IF(Z31=0,0,'Key_Assumptions_&_Inputs'!$J$59*Y15) -> 0 | AA56: =IF(AA31=0,0,'Key_Assumptions_&_Inputs'!$J$59*Z15) -> 0 | AB56: =IF(AB31=0,0,'Key_Assumptions_&_Inputs'!$J$59*AA15) -> 0 | AC56: =IF(AC31=0,0,'Key_Assumptions_&_Inputs'!$J$59*AB15) -> 0 | AD56: =IF(AD31=0,0,'Key_Assumptions_&_Inputs'!$J$59*AC15) -> 0 | AE56: =IF(AE31=0,0,'Key_Assumptions_&_Inputs'!$J$59*AD15) -> 0 | AF56: =IF(AF31=0,0,'Key_Assumptions_&_Inputs'!$J$59*AE15) -> 0 | AG56: =IF(AG31=0,0,'Key_Assumptions_&_Inputs'!$J$59*AF15) -> 0 | AH56: =IF(AH31=0,0,'Key_Assumptions_&_Inputs'!$J$59*AG15) -> 0 | AI56: =IF(AI31=0,0,'Key_Assumptions_&_Inputs'!$J$59*AH15) -> 0 | AJ56: 0 | AK56: =E56+NPV(UtilityDiscountRt,F56:AI56) -> 0
B57: Total Incentive Payments | D57: $ | E57: =SUM(E53:E56) -> 0 | F57: 0 | G57: 0 | H57: 0 | I57: 0 | J57: 0 | K57: 0 | L57: 0 | M57: 0 | N57: 0 | O57: 0 | P57: 0 | Q57: 0 | R57: 0 | S57: 0 | T57: 0 | U57: 0 | V57: 0 | W57: 0 | X57: 0 | Y57: 0 | Z57: 0 | AA57: 0 | AB57: 0 | AC57: 0 | AD57: 0 | AE57: 0 | AF57: 0 | AG57: 0 | AH57: 0 | AI57: 0 | AJ57: 0 | AK57: =E57+NPV(UtilityDiscountRt,F57:AI57) -> 0
B59: Subscriber Payments
B60: Non-Subsidized Subscriber Payments: Upfront Payment Upfront | D60: $ | E60: 0 | F60: =(IF(F31=0,0,IF('Key_Assumptions_&_Inputs'!$E$16="Upfront Payment",SharePrice*SharePerSub*(E26),0))+IF(AND('Key_Assumptions_&_Inputs'!$E$16="Upfront Payment",F31=1),'Key_Assumptions_&_Inputs'!$E$52*TotalShares*SharePrice,0))*(1+SharePriceEscalator)^(F31-$F$31) -> 0 | G60: =(IF(G31=0,0,IF('Key_Assumptions_&_Inputs'!$E$16="Upfront Payment",SharePrice*SharePerSub*(F23-F24),0))+IF(AND('Key_Assumptions_&_Inputs'!$E$16="Upfront Payment",G31=1),'Key_Assumptions_&_Inputs'!$E$52*TotalShares*SharePrice,0))*(1+SharePriceEscalator)^(G31-$F$31) -> 0 | H60: =(IF(H31=0,0,IF('Key_Assumptions_&_Inputs'!$E$16="Upfront Payment",SharePrice*SharePerSub*(G23-G24),0))+IF(AND('Key_Assumptions_&_Inputs'!$E$16="Upfront Payment",H31=1),'Key_Assumptions_&_Inputs'!$E$52*TotalShares*SharePrice,0))*(1+SharePriceEscalator)^(H31-$F$31) -> 0 | I60: =(IF(I31=0,0,IF('Key_Assumptions_&_Inputs'!$E$16="Upfront Payment",SharePrice*SharePerSub*(H23-H24),0))+IF(AND('Key_Assumptions_&_Inputs'!$E$16="Upfront Payment",I31=1),'Key_Assumptions_&_Inputs'!$E$52*TotalShares*SharePrice,0))*(1+SharePriceEscalator)^(I31-$F$31) -> 0 | J60: =(IF(J31=0,0,IF('Key_Assumptions_&_Inputs'!$E$16="Upfront Payment",SharePrice*SharePerSub*(I23-I24),0))+IF(AND('Key_Assumptions_&_Inputs'!$E$16="Upfront Payment",J31=1),'Key_Assumptions_&_Inputs'!$E$52*TotalShares*SharePrice,0))*(1+SharePriceEscalator)^(J31-$F$31) -> 0 | K60: =(IF(K31=0,0,IF('Key_Assumptions_&_Inputs'!$E$16="Upfront Payment",SharePrice*SharePerSub*(J23-J24),0))+IF(AND('Key_Assumptions_&_Inputs'!$E$16="Upfront Payment",K31=1),'Key_Assumptions_&_Inputs'!$E$52*TotalShares*SharePrice,0))*(1+SharePriceEscalator)^(K31-$F$31) -> 0 | L60: =(IF(L31=0,0,IF('Key_Assumptions_&_Inputs'!$E$16="Upfront Payment",SharePrice*SharePerSub*(K23-K24),0))+IF(AND('Key_Assumptions_&_Inputs'!$E$16="Upfront Payment",L31=1),'Key_Assumptions_&_Inputs'!$E$52*TotalShares*SharePrice,0))*(1+SharePriceEscalator)^(L31-$F$31) -> 0 | M60: =(IF(M31=0,0,IF('Key_Assumptions_&_Inputs'!$E$16="Upfront Payment",SharePrice*SharePerSub*(L23-L24),0))+IF(AND('Key_Assumptions_&_Inputs'!$E$16="Upfront Payment",M31=1),'Key_Assumptions_&_Inputs'!$E$52*TotalShares*SharePrice,0))*(1+SharePriceEscalator)^(M31-$F$31) -> 0 | N60: =(IF(N31=0,0,IF('Key_Assumptions_&_Inputs'!$E$16="Upfront Payment",SharePrice*SharePerSub*(M23-M24),0))+IF(AND('Key_Assumptions_&_Inputs'!$E$16="Upfront Payment",N31=1),'Key_Assumptions_&_Inputs'!$E$52*TotalShares*SharePrice,0))*(1+SharePriceEscalator)^(N31-$F$31) -> 0 | O60: =(IF(O31=0,0,IF('Key_Assumptions_&_Inputs'!$E$16="Upfront Payment",SharePrice*SharePerSub*(N23-N24),0))+IF(AND('Key_Assumptions_&_Inputs'!$E$16="Upfront Payment",O31=1),'Key_Assumptions_&_Inputs'!$E$52*TotalShares*SharePrice,0))*(1+SharePriceEscalator)^(O31-$F$31) -> 0 | P60: =(IF(P31=0,0,IF('Key_Assumptions_&_Inputs'!$E$16="Upfront Payment",SharePrice*SharePerSub*(O23-O24),0))+IF(AND('Key_Assumptions_&_Inputs'!$E$16="Upfront Payment",P31=1),'Key_Assumptions_&_Inputs'!$E$52*TotalShares*SharePrice,0))*(1+SharePriceEscalator)^(P31-$F$31) -> 0 | Q60: =(IF(Q31=0,0,IF('Key_Assumptions_&_Inputs'!$E$16="Upfront Payment",SharePrice*SharePerSub*(P23-P24),0))+IF(AND('Key_Assumptions_&_Inputs'!$E$16="Upfront Payment",Q31=1),'Key_Assumptions_&_Inputs'!$E$52*TotalShares*SharePrice,0))*(1+SharePriceEscalator)^(Q31-$F$31) -> 0 | R60: =(IF(R31=0,0,IF('Key_Assumptions_&_Inputs'!$E$16="Upfront Payment",SharePrice*SharePerSub*(Q23-Q24),0))+IF(AND('Key_Assumptions_&_Inputs'!$E$16="Upfront Payment",R31=1),'Key_Assumptions_&_Inputs'!$E$52*TotalShares*SharePrice,0))*(1+SharePriceEscalator)^(R31-$F$31) -> 0 | S60: =(IF(S31=0,0,IF('Key_Assumptions_&_Inputs'!$E$16="Upfront Payment",SharePrice*SharePerSub*(R23-R24),0))+IF(AND('Key_Assumptions_&_Inputs'!$E$16="Upfront Payment",S31=1),'Key_Assumptions_&_Inputs'!$E$52*TotalShares*SharePrice,0))*(1+SharePriceEscalator)^(S31-$F$31) -> 0 | T60: =(IF(T31=0,0,IF('Key_Assumptions_&_Inputs'!$E$16="Upfront Payment",SharePrice*SharePerSub*(S23-S24),0))+IF(AND('Key_Assumptions_&_Inputs'!$E$16="Upfront Payment",T31=1),'Key_Assumptions_&_Inputs'!$E$52*TotalShares*SharePrice,0))*(1+SharePriceEscalator)^(T31-$F$31) -> 0 | U60: =(IF(U31=0,0,IF('Key_Assumptions_&_Inputs'!$E$16="Upfront Payment",SharePrice*SharePerSub*(T23-T24),0))+IF(AND('Key_Assumptions_&_Inputs'!$E$16="Upfront Payment",U31=1),'Key_Assumptions_&_Inputs'!$E$52*TotalShares*SharePrice,0))*(1+SharePriceEscalator)^(U31-$F$31) -> 0 | V60: =(IF(V31=0,0,IF('Key_Assumptions_&_Inputs'!$E$16="Upfront Payment",SharePrice*SharePerSub*(U23-U24),0))+IF(AND('Key_Assumptions_&_Inputs'!$E$16="Upfront Payment",V31=1),'Key_Assumptions_&_Inputs'!$E$52*TotalShares*SharePrice,0))*(1+SharePriceEscalator)^(V31-$F$31) -> 0 | W60: =(IF(W31=0,0,IF('Key_Assumptions_&_Inputs'!$E$16="Upfront Payment",SharePrice*SharePerSub*(V23-V24),0))+IF(AND('Key_Assumptions_&_Inputs'!$E$16="Upfront Payment",W31=1),'Key_Assumptions_&_Inputs'!$E$52*TotalShares*SharePrice,0))*(1+SharePriceEscalator)^(W31-$F$31) -> 0 | X60: =(IF(X31=0,0,IF('Key_Assumptions_&_Inputs'!$E$16="Upfront Payment",SharePrice*SharePerSub*(W23-W24),0))+IF(AND('Key_Assumptions_&_Inputs'!$E$16="Upfront Payment",X31=1),'Key_Assumptions_&_Inputs'!$E$52*TotalShares*SharePrice,0))*(1+SharePriceEscalator)^(X31-$F$31) -> 0 | Y60: =(IF(Y31=0,0,IF('Key_Assumptions_&_Inputs'!$E$16="Upfront Payment",SharePrice*SharePerSub*(X23-X24),0))+IF(AND('Key_Assumptions_&_Inputs'!$E$16="Upfront Payment",Y31=1),'Key_Assumptions_&_Inputs'!$E$52*TotalShares*SharePrice,0))*(1+SharePriceEscalator)^(Y31-$F$31) -> 0 | Z60: =(IF(Z31=0,0,IF('Key_Assumptions_&_Inputs'!$E$16="Upfront Payment",SharePrice*SharePerSub*(Y23-Y24),0))+IF(AND('Key_Assumptions_&_Inputs'!$E$16="Upfront Payment",Z31=1),'Key_Assumptions_&_Inputs'!$E$52*TotalShares*SharePrice,0))*(1+SharePriceEscalator)^(Z31-$F$31) -> 0 | AA60: =(IF(AA31=0,0,IF('Key_Assumptions_&_Inputs'!$E$16="Upfront Payment",SharePrice*SharePerSub*(Z23-Z24),0))+IF(AND('Key_Assumptions_&_Inputs'!$E$16="Upfront Payment",AA31=1),'Key_Assumptions_&_Inputs'!$E$52*TotalShares*SharePrice,0))*(1+SharePriceEscalator)^(AA31-$F$31) -> 0 | AB60: =(IF(AB31=0,0,IF('Key_Assumptions_&_Inputs'!$E$16="Upfront Payment",SharePrice*SharePerSub*(AA23-AA24),0))+IF(AND('Key_Assumptions_&_Inputs'!$E$16="Upfront Payment",AB31=1),'Key_Assumptions_&_Inputs'!$E$52*TotalShares*SharePrice,0))*(1+SharePriceEscalator)^(AB31-$F$31) -> 0 | AC60: =(IF(AC31=0,0,IF('Key_Assumptions_&_Inputs'!$E$16="Upfront Payment",SharePrice*SharePerSub*(AB23-AB24),0))+IF(AND('Key_Assumptions_&_Inputs'!$E$16="Upfront Payment",AC31=1),'Key_Assumptions_&_Inputs'!$E$52*TotalShares*SharePrice,0))*(1+SharePriceEscalator)^(AC31-$F$31) -> 0 | AD60: =(IF(AD31=0,0,IF('Key_Assumptions_&_Inputs'!$E$16="Upfront Payment",SharePrice*SharePerSub*(AC23-AC24),0))+IF(AND('Key_Assumptions_&_Inputs'!$E$16="Upfront Payment",AD31=1),'Key_Assumptions_&_Inputs'!$E$52*TotalShares*SharePrice,0))*(1+SharePriceEscalator)^(AD31-$F$31) -> 0 | AE60: =(IF(AE31=0,0,IF('Key_Assumptions_&_Inputs'!$E$16="Upfront Payment",SharePrice*SharePerSub*(AD23-AD24),0))+IF(AND('Key_Assumptions_&_Inputs'!$E$16="Upfront Payment",AE31=1),'Key_Assumptions_&_Inputs'!$E$52*TotalShares*SharePrice,0))*(1+SharePriceEscalator)^(AE31-$F$31) -> 0 | AF60: =(IF(AF31=0,0,IF('Key_Assumptions_&_Inputs'!$E$16="Upfront Payment",SharePrice*SharePerSub*(AE23-AE24),0))+IF(AND('Key_Assumptions_&_Inputs'!$E$16="Upfront Payment",AF31=1),'Key_Assumptions_&_Inputs'!$E$52*TotalShares*SharePrice,0))*(1+SharePriceEscalator)^(AF31-$F$31) -> 0 | AG60: =(IF(AG31=0,0,IF('Key_Assumptions_&_Inputs'!$E$16="Upfront Payment",SharePrice*SharePerSub*(AF23-AF24),0))+IF(AND('Key_Assumptions_&_Inputs'!$E$16="Upfront Payment",AG31=1),'Key_Assumptions_&_Inputs'!$E$52*TotalShares*SharePrice,0))*(1+SharePriceEscalator)^(AG31-$F$31) -> 0 | AH60: =(IF(AH31=0,0,IF('Key_Assumptions_&_Inputs'!$E$16="Upfront Payment",SharePrice*SharePerSub*(AG23-AG24),0))+IF(AND('Key_Assumptions_&_Inputs'!$E$16="Upfront Payment",AH31=1),'Key_Assumptions_&_Inputs'!$E$52*TotalShares*SharePrice,0))*(1+SharePriceEscalator)^(AH31-$F$31) -> 0 | AI60: =(IF(AI31=0,0,IF('Key_Assumptions_&_Inputs'!$E$16="Upfront Payment",SharePrice*SharePerSub*(AH23-AH24),0))+IF(AND('Key_Assumptions_&_Inputs'!$E$16="Upfront Payment",AI31=1),'Key_Assumptions_&_Inputs'!$E$52*TotalShares*SharePrice,0))*(1+SharePriceEscalator)^(AI31-$F$31) -> 0 | AJ60: =SUM(E60:AI60) -> 0 | AK60: =E60+NPV(UtilityDiscountRt,F60:AI60) -> 0
B61: Non-Subsidized Subscriber Payments: Share Leasing Ongoing | D61: $ | E61: =IF('Key_Assumptions_&_Inputs'!$E$16="Upfront Payment",0,IF(E31=0,0,IF('Key_Assumptions_&_Inputs'!$E$16="Share Leasing",(D25*SharePerSub*SharePrice*12+'Key_Assumptions_&_Inputs'!$E$52*TotalShares*SharePrice*12),0)*(1+SharePriceEscalator)^(E31-1))) -> 0 | F61: =IF(F31<=SubscriptionLife,IF('Key_Assumptions_&_Inputs'!$E$16="Upfront Payment",0,IF(F31=0,0,IF('Key_Assumptions_&_Inputs'!$E$16="Share Leasing",(E26*SharePerSub*SharePrice*12+'Key_Assumptions_&_Inputs'!$E$52*TotalShares*SharePrice*12),0)*(1+SharePriceEscalator)^(F31-1))),0) -> 288000 | G61: =IF(G31<=SubscriptionLife,IF('Key_Assumptions_&_Inputs'!$E$16="Upfront Payment",0,IF(G31=0,0,IF('Key_Assumptions_&_Inputs'!$E$16="Share Leasing",(F26*SharePerSub*SharePrice*12+'Key_Assumptions_&_Inputs'!$E$52*TotalShares*SharePrice*12),0)*(1+SharePriceEscalator)^(G31-1))),0) -> 288000 | H61: =IF(H31<=SubscriptionLife,IF('Key_Assumptions_&_Inputs'!$E$16="Upfront Payment",0,IF(H31=0,0,IF('Key_Assumptions_&_Inputs'!$E$16="Share Leasing",(G26*SharePerSub*SharePrice*12+'Key_Assumptions_&_Inputs'!$E$52*TotalShares*SharePrice*12),0)*(1+SharePriceEscalator)^(H31-1))),0) -> 288000 | I61: =IF(I31<=SubscriptionLife,IF('Key_Assumptions_&_Inputs'!$E$16="Upfront Payment",0,IF(I31=0,0,IF('Key_Assumptions_&_Inputs'!$E$16="Share Leasing",(H26*SharePerSub*SharePrice*12+'Key_Assumptions_&_Inputs'!$E$52*TotalShares*SharePrice*12),0)*(1+SharePriceEscalator)^(I31-1))),0) -> 288000 | J61: =IF(J31<=SubscriptionLife,IF('Key_Assumptions_&_Inputs'!$E$16="Upfront Payment",0,IF(J31=0,0,IF('Key_Assumptions_&_Inputs'!$E$16="Share Leasing",(I26*SharePerSub*SharePrice*12+'Key_Assumptions_&_Inputs'!$E$52*TotalShares*SharePrice*12),0)*(1+SharePriceEscalator)^(J31-1))),0) -> 288000 | K61: =IF(K31<=SubscriptionLife,IF('Key_Assumptions_&_Inputs'!$E$16="Upfront Payment",0,IF(K31=0,0,IF('Key_Assumptions_&_Inputs'!$E$16="Share Leasing",(J26*SharePerSub*SharePrice*12+'Key_Assumptions_&_Inputs'!$E$52*TotalShares*SharePrice*12),0)*(1+SharePriceEscalator)^(K31-1))),0) -> 288000 | L61: =IF(L31<=SubscriptionLife,IF('Key_Assumptions_&_Inputs'!$E$16="Upfront Payment",0,IF(L31=0,0,IF('Key_Assumptions_&_Inputs'!$E$16="Share Leasing",(K26*SharePerSub*SharePrice*12+'Key_Assumptions_&_Inputs'!$E$52*TotalShares*SharePrice*12),0)*(1+SharePriceEscalator)^(L31-1))),0) -> 288000 | M61: =IF(M31<=SubscriptionLife,IF('Key_Assumptions_&_Inputs'!$E$16="Upfront Payment",0,IF(M31=0,0,IF('Key_Assumptions_&_Inputs'!$E$16="Share Leasing",(L26*SharePerSub*SharePrice*12+'Key_Assumptions_&_Inputs'!$E$52*TotalShares*SharePrice*12),0)*(1+SharePriceEscalator)^(M31-1))),0) -> 288000 | N61: =IF(N31<=SubscriptionLife,IF('Key_Assumptions_&_Inputs'!$E$16="Upfront Payment",0,IF(N31=0,0,IF('Key_Assumptions_&_Inputs'!$E$16="Share Leasing",(M26*SharePerSub*SharePrice*12+'Key_Assumptions_&_Inputs'!$E$52*TotalShares*SharePrice*12),0)*(1+SharePriceEscalator)^(N31-1))),0) -> 288000 | O61: =IF(O31<=SubscriptionLife,IF('Key_Assumptions_&_Inputs'!$E$16="Upfront Payment",0,IF(O31=0,0,IF('Key_Assumptions_&_Inputs'!$E$16="Share Leasing",(N26*SharePerSub*SharePrice*12+'Key_Assumptions_&_Inputs'!$E$52*TotalShares*SharePrice*12),0)*(1+SharePriceEscalator)^(O31-1))),0) -> 288000 | P61: =IF(P31<=SubscriptionLife,IF('Key_Assumptions_&_Inputs'!$E$16="Upfront Payment",0,IF(P31=0,0,IF('Key_Assumptions_&_Inputs'!$E$16="Share Leasing",(O26*SharePerSub*SharePrice*12+'Key_Assumptions_&_Inputs'!$E$52*TotalShares*SharePrice*12),0)*(1+SharePriceEscalator)^(P31-1))),0) -> 288000 | Q61: =IF(Q31<=SubscriptionLife,IF('Key_Assumptions_&_Inputs'!$E$16="Upfront Payment",0,IF(Q31=0,0,IF('Key_Assumptions_&_Inputs'!$E$16="Share Leasing",(P26*SharePerSub*SharePrice*12+'Key_Assumptions_&_Inputs'!$E$52*TotalShares*SharePrice*12),0)*(1+SharePriceEscalator)^(Q31-1))),0) -> 288000 | R61: =IF(R31<=SubscriptionLife,IF('Key_Assumptions_&_Inputs'!$E$16="Upfront Payment",0,IF(R31=0,0,IF('Key_Assumptions_&_Inputs'!$E$16="Share Leasing",(Q26*SharePerSub*SharePrice*12+'Key_Assumptions_&_Inputs'!$E$52*TotalShares*SharePrice*12),0)*(1+SharePriceEscalator)^(R31-1))),0) -> 288000 | S61: =IF(S31<=SubscriptionLife,IF('Key_Assumptions_&_Inputs'!$E$16="Upfront Payment",0,IF(S31=0,0,IF('Key_Assumptions_&_Inputs'!$E$16="Share Leasing",(R26*SharePerSub*SharePrice*12+'Key_Assumptions_&_Inputs'!$E$52*TotalShares*SharePrice*12),0)*(1+SharePriceEscalator)^(S31-1))),0) -> 288000 | T61: =IF(T31<=SubscriptionLife,IF('Key_Assumptions_&_Inputs'!$E$16="Upfront Payment",0,IF(T31=0,0,IF('Key_Assumptions_&_Inputs'!$E$16="Share Leasing",(S26*SharePerSub*SharePrice*12+'Key_Assumptions_&_Inputs'!$E$52*TotalShares*SharePrice*12),0)*(1+SharePriceEscalator)^(T31-1))),0) -> 288000 | U61: =IF(U31<=SubscriptionLife,IF('Key_Assumptions_&_Inputs'!$E$16="Upfront Payment",0,IF(U31=0,0,IF('Key_Assumptions_&_Inputs'!$E$16="Share Leasing",(T26*SharePerSub*SharePrice*12+'Key_Assumptions_&_Inputs'!$E$52*TotalShares*SharePrice*12),0)*(1+SharePriceEscalator)^(U31-1))),0) -> 288000 | V61: =IF(V31<=SubscriptionLife,IF('Key_Assumptions_&_Inputs'!$E$16="Upfront Payment",0,IF(V31=0,0,IF('Key_Assumptions_&_Inputs'!$E$16="Share Leasing",(U26*SharePerSub*SharePrice*12+'Key_Assumptions_&_Inputs'!$E$52*TotalShares*SharePrice*12),0)*(1+SharePriceEscalator)^(V31-1))),0) -> 288000 | W61: =IF(W31<=SubscriptionLife,IF('Key_Assumptions_&_Inputs'!$E$16="Upfront Payment",0,IF(W31=0,0,IF('Key_Assumptions_&_Inputs'!$E$16="Share Leasing",(V26*SharePerSub*SharePrice*12+'Key_Assumptions_&_Inputs'!$E$52*TotalShares*SharePrice*12),0)*(1+SharePriceEscalator)^(W31-1))),0) -> 288000 | X61: =IF(X31<=SubscriptionLife,IF('Key_Assumptions_&_Inputs'!$E$16="Upfront Payment",0,IF(X31=0,0,IF('Key_Assumptions_&_Inputs'!$E$16="Share Leasing",(W26*SharePerSub*SharePrice*12+'Key_Assumptions_&_Inputs'!$E$52*TotalShares*SharePrice*12),0)*(1+SharePriceEscalator)^(X31-1))),0) -> 288000 | Y61: =IF(Y31<=SubscriptionLife,IF('Key_Assumptions_&_Inputs'!$E$16="Upfront Payment",0,IF(Y31=0,0,IF('Key_Assumptions_&_Inputs'!$E$16="Share Leasing",(X26*SharePerSub*SharePrice*12+'Key_Assumptions_&_Inputs'!$E$52*TotalShares*SharePrice*12),0)*(1+SharePriceEscalator)^(Y31-1))),0) -> 288000 | Z61: =IF(Z31<=SubscriptionLife,IF('Key_Assumptions_&_Inputs'!$E$16="Upfront Payment",0,IF(Z31=0,0,IF('Key_Assumptions_&_Inputs'!$E$16="Share Leasing",(Y26*SharePerSub*SharePrice*12+'Key_Assumptions_&_Inputs'!$E$52*TotalShares*SharePrice*12),0)*(1+SharePriceEscalator)^(Z31-1))),0) -> 0 | AA61: =IF(AA31<=SubscriptionLife,IF('Key_Assumptions_&_Inputs'!$E$16="Upfront Payment",0,IF(AA31=0,0,IF('Key_Assumptions_&_Inputs'!$E$16="Share Leasing",(Z26*SharePerSub*SharePrice*12+'Key_Assumptions_&_Inputs'!$E$52*TotalShares*SharePrice*12),0)*(1+SharePriceEscalator)^(AA31-1))),0) -> 0 | AB61: =IF(AB31<=SubscriptionLife,IF('Key_Assumptions_&_Inputs'!$E$16="Upfront Payment",0,IF(AB31=0,0,IF('Key_Assumptions_&_Inputs'!$E$16="Share Leasing",(AA26*SharePerSub*SharePrice*12+'Key_Assumptions_&_Inputs'!$E$52*TotalShares*SharePrice*12),0)*(1+SharePriceEscalator)^(AB31-1))),0) -> 0 | AC61: =IF(AC31<=SubscriptionLife,IF('Key_Assumptions_&_Inputs'!$E$16="Upfront Payment",0,IF(AC31=0,0,IF('Key_Assumptions_&_Inputs'!$E$16="Share Leasing",(AB26*SharePerSub*SharePrice*12+'Key_Assumptions_&_Inputs'!$E$52*TotalShares*SharePrice*12),0)*(1+SharePriceEscalator)^(AC31-1))),0) -> 0 | AD61: =IF(AD31<=SubscriptionLife,IF('Key_Assumptions_&_Inputs'!$E$16="Upfront Payment",0,IF(AD31=0,0,IF('Key_Assumptions_&_Inputs'!$E$16="Share Leasing",(AC26*SharePerSub*SharePrice*12+'Key_Assumptions_&_Inputs'!$E$52*TotalShares*SharePrice*12),0)*(1+SharePriceEscalator)^(AD31-1))),0) -> 0 | AE61: =IF(AE31<=SubscriptionLife,IF('Key_Assumptions_&_Inputs'!$E$16="Upfront Payment",0,IF(AE31=0,0,IF('Key_Assumptions_&_Inputs'!$E$16="Share Leasing",(AD26*SharePerSub*SharePrice*12+'Key_Assumptions_&_Inputs'!$E$52*TotalShares*SharePrice*12),0)*(1+SharePriceEscalator)^(AE31-1))),0) -> 0 | AF61: =IF(AF31<=SubscriptionLife,IF('Key_Assumptions_&_Inputs'!$E$16="Upfront Payment",0,IF(AF31=0,0,IF('Key_Assumptions_&_Inputs'!$E$16="Share Leasing",(AE26*SharePerSub*SharePrice*12+'Key_Assumptions_&_Inputs'!$E$52*TotalShares*SharePrice*12),0)*(1+SharePriceEscalator)^(AF31-1))),0) -> 0 | AG61: =IF(AG31<=SubscriptionLife,IF('Key_Assumptions_&_Inputs'!$E$16="Upfront Payment",0,IF(AG31=0,0,IF('Key_Assumptions_&_Inputs'!$E$16="Share Leasing",(AF26*SharePerSub*SharePrice*12+'Key_Assumptions_&_Inputs'!$E$52*TotalShares*SharePrice*12),0)*(1+SharePriceEscalator)^(AG31-1))),0) -> 0 | AH61: =IF(AH31<=SubscriptionLife,IF('Key_Assumptions_&_Inputs'!$E$16="Upfront Payment",0,IF(AH31=0,0,IF('Key_Assumptions_&_Inputs'!$E$16="Share Leasing",(AG26*SharePerSub*SharePrice*12+'Key_Assumptions_&_Inputs'!$E$52*TotalShares*SharePrice*12),0)*(1+SharePriceEscalator)^(AH31-1))),0) -> 0 | AI61: =IF(AI31<=SubscriptionLife,IF('Key_Assumptions_&_Inputs'!$E$16="Upfront Payment",0,IF(AI31=0,0,IF('Key_Assumptions_&_Inputs'!$E$16="Share Leasing",(AH26*SharePerSub*SharePrice*12+'Key_Assumptions_&_Inputs'!$E$52*TotalShares*SharePrice*12),0)*(1+SharePriceEscalator)^(AI31-1))),0) -> 0 | AJ61: 5760000 | AK61: =E61+NPV(UtilityDiscountRt,F61:AI61) -> 3490779.561
B62: Total Subscriber Payments | D62: $ | E62: =SUM(E60:E61) -> 0 | F62: 288000 | G62: 288000 | H62: 288000 | I62: 288000 | J62: 288000 | K62: 288000 | L62: 288000 | M62: 288000 | N62: 288000 | O62: 288000 | P62: 288000 | Q62: 288000 | R62: 288000 | S62: 288000 | T62: 288000 | U62: 288000 | V62: 288000 | W62: 288000 | X62: 288000 | Y62: 288000 | Z62: 0 | AA62: 0 | AB62: 0 | AC62: 0 | AD62: 0 | AE62: 0 | AF62: 0 | AG62: 0 | AH62: 0 | AI62: 0 | AJ62: =SUM(E62:AD62) -> 5760000 | AK62: =E62+NPV(UtilityDiscountRt,F62:AI62) -> 3490779.561
B64: Production Benefits
B65: Unsubscribed Energy Payments | D65: $ | E65: 0 | F65: =IF(F31>ProjectLife,0,IF(F31<=SubscriptionLife,((1-'Admin_&_Transaction_Costs'!E83)-PercentPV_LI)*E15*RetailEnergyCost*(1+RetailEnergyCostEscalation)^(F31-1),E15*RetailEnergyCost*(1-PercentPV_LI)*(1+RetailEnergyCostEscalation)^(F31-1))) -> 0 | G65: =IF(G31>ProjectLife,0,IF(G31<=SubscriptionLife,((1-'Admin_&_Transaction_Costs'!F83)-PercentPV_LI)*F15*RetailEnergyCost*(1+RetailEnergyCostEscalation)^(G31-1),F15*RetailEnergyCost*(1-PercentPV_LI)*(1+RetailEnergyCostEscalation)^(G31-1))) -> 0 | H65: =IF(H31>ProjectLife,0,IF(H31<=SubscriptionLife,((1-'Admin_&_Transaction_Costs'!G83)-PercentPV_LI)*G15*RetailEnergyCost*(1+RetailEnergyCostEscalation)^(H31-1),G15*RetailEnergyCost*(1-PercentPV_LI)*(1+RetailEnergyCostEscalation)^(H31-1))) -> 0 | I65: =IF(I31>ProjectLife,0,IF(I31<=SubscriptionLife,((1-'Admin_&_Transaction_Costs'!H83)-PercentPV_LI)*H15*RetailEnergyCost*(1+RetailEnergyCostEscalation)^(I31-1),H15*RetailEnergyCost*(1-PercentPV_LI)*(1+RetailEnergyCostEscalation)^(I31-1))) -> 0 | J65: =IF(J31>ProjectLife,0,IF(J31<=SubscriptionLife,((1-'Admin_&_Transaction_Costs'!I83)-PercentPV_LI)*I15*RetailEnergyCost*(1+RetailEnergyCostEscalation)^(J31-1),I15*RetailEnergyCost*(1-PercentPV_LI)*(1+RetailEnergyCostEscalation)^(J31-1))) -> 0 | K65: =IF(K31>ProjectLife,0,IF(K31<=SubscriptionLife,((1-'Admin_&_Transaction_Costs'!J83)-PercentPV_LI)*J15*RetailEnergyCost*(1+RetailEnergyCostEscalation)^(K31-1),J15*RetailEnergyCost*(1-PercentPV_LI)*(1+RetailEnergyCostEscalation)^(K31-1))) -> 0 | L65: =IF(L31>ProjectLife,0,IF(L31<=SubscriptionLife,((1-'Admin_&_Transaction_Costs'!K83)-PercentPV_LI)*K15*RetailEnergyCost*(1+RetailEnergyCostEscalation)^(L31-1),K15*RetailEnergyCost*(1-PercentPV_LI)*(1+RetailEnergyCostEscalation)^(L31-1))) -> 0 | M65: =IF(M31>ProjectLife,0,IF(M31<=SubscriptionLife,((1-'Admin_&_Transaction_Costs'!L83)-PercentPV_LI)*L15*RetailEnergyCost*(1+RetailEnergyCostEscalation)^(M31-1),L15*RetailEnergyCost*(1-PercentPV_LI)*(1+RetailEnergyCostEscalation)^(M31-1))) -> 0 | N65: =IF(N31>ProjectLife,0,IF(N31<=SubscriptionLife,((1-'Admin_&_Transaction_Costs'!M83)-PercentPV_LI)*M15*RetailEnergyCost*(1+RetailEnergyCostEscalation)^(N31-1),M15*RetailEnergyCost*(1-PercentPV_LI)*(1+RetailEnergyCostEscalation)^(N31-1))) -> 0 | O65: =IF(O31>ProjectLife,0,IF(O31<=SubscriptionLife,((1-'Admin_&_Transaction_Costs'!N83)-PercentPV_LI)*N15*RetailEnergyCost*(1+RetailEnergyCostEscalation)^(O31-1),N15*RetailEnergyCost*(1-PercentPV_LI)*(1+RetailEnergyCostEscalation)^(O31-1))) -> 0 | P65: =IF(P31>ProjectLife,0,IF(P31<=SubscriptionLife,((1-'Admin_&_Transaction_Costs'!O83)-PercentPV_LI)*O15*RetailEnergyCost*(1+RetailEnergyCostEscalation)^(P31-1),O15*RetailEnergyCost*(1-PercentPV_LI)*(1+RetailEnergyCostEscalation)^(P31-1))) -> 0 | Q65: =IF(Q31>ProjectLife,0,IF(Q31<=SubscriptionLife,((1-'Admin_&_Transaction_Costs'!P83)-PercentPV_LI)*P15*RetailEnergyCost*(1+RetailEnergyCostEscalation)^(Q31-1),P15*RetailEnergyCost*(1-PercentPV_LI)*(1+RetailEnergyCostEscalation)^(Q31-1))) -> 0 | R65: =IF(R31>ProjectLife,0,IF(R31<=SubscriptionLife,((1-'Admin_&_Transaction_Costs'!Q83)-PercentPV_LI)*Q15*RetailEnergyCost*(1+RetailEnergyCostEscalation)^(R31-1),Q15*RetailEnergyCost*(1-PercentPV_LI)*(1+RetailEnergyCostEscalation)^(R31-1))) -> 0 | S65: =IF(S31>ProjectLife,0,IF(S31<=SubscriptionLife,((1-'Admin_&_Transaction_Costs'!R83)-PercentPV_LI)*R15*RetailEnergyCost*(1+RetailEnergyCostEscalation)^(S31-1),R15*RetailEnergyCost*(1-PercentPV_LI)*(1+RetailEnergyCostEscalation)^(S31-1))) -> 0 | T65: =IF(T31>ProjectLife,0,IF(T31<=SubscriptionLife,((1-'Admin_&_Transaction_Costs'!S83)-PercentPV_LI)*S15*RetailEnergyCost*(1+RetailEnergyCostEscalation)^(T31-1),S15*RetailEnergyCost*(1-PercentPV_LI)*(1+RetailEnergyCostEscalation)^(T31-1))) -> 0 | U65: =IF(U31>ProjectLife,0,IF(U31<=SubscriptionLife,((1-'Admin_&_Transaction_Costs'!T83)-PercentPV_LI)*T15*RetailEnergyCost*(1+RetailEnergyCostEscalation)^(U31-1),T15*RetailEnergyCost*(1-PercentPV_LI)*(1+RetailEnergyCostEscalation)^(U31-1))) -> 0 | V65: =IF(V31>ProjectLife,0,IF(V31<=SubscriptionLife,((1-'Admin_&_Transaction_Costs'!U83)-PercentPV_LI)*U15*RetailEnergyCost*(1+RetailEnergyCostEscalation)^(V31-1),U15*RetailEnergyCost*(1-PercentPV_LI)*(1+RetailEnergyCostEscalation)^(V31-1))) -> 0 | W65: =IF(W31>ProjectLife,0,IF(W31<=SubscriptionLife,((1-'Admin_&_Transaction_Costs'!V83)-PercentPV_LI)*V15*RetailEnergyCost*(1+RetailEnergyCostEscalation)^(W31-1),V15*RetailEnergyCost*(1-PercentPV_LI)*(1+RetailEnergyCostEscalation)^(W31-1))) -> 0 | X65: =IF(X31>ProjectLife,0,IF(X31<=SubscriptionLife,((1-'Admin_&_Transaction_Costs'!W83)-PercentPV_LI)*W15*RetailEnergyCost*(1+RetailEnergyCostEscalation)^(X31-1),W15*RetailEnergyCost*(1-PercentPV_LI)*(1+RetailEnergyCostEscalation)^(X31-1))) -> 0 | Y65: =IF(Y31>ProjectLife,0,IF(Y31<=SubscriptionLife,((1-'Admin_&_Transaction_Costs'!X83)-PercentPV_LI)*X15*RetailEnergyCost*(1+RetailEnergyCostEscalation)^(Y31-1),X15*RetailEnergyCost*(1-PercentPV_LI)*(1+RetailEnergyCostEscalation)^(Y31-1))) -> 0 | Z65: =IF(Z31>ProjectLife,0,IF(Z31<=SubscriptionLife,((1-'Admin_&_Transaction_Costs'!Y83)-PercentPV_LI)*Y15*RetailEnergyCost*(1+RetailEnergyCostEscalation)^(Z31-1),Y15*RetailEnergyCost*(1-PercentPV_LI)*(1+RetailEnergyCostEscalation)^(Z31-1))) -> 439683.6167 | AA65: =IF(AA31>ProjectLife,0,IF(AA31<=SubscriptionLife,((1-'Admin_&_Transaction_Costs'!Z83)-PercentPV_LI)*Z15*RetailEnergyCost*(1+RetailEnergyCostEscalation)^(AA31-1),Z15*RetailEnergyCost*(1-PercentPV_LI)*(1+RetailEnergyCostEscalation)^(AA31-1))) -> 446234.9026 | AB65: =IF(AB31>ProjectLife,0,IF(AB31<=SubscriptionLife,((1-'Admin_&_Transaction_Costs'!AA83)-PercentPV_LI)*AA15*RetailEnergyCost*(1+RetailEnergyCostEscalation)^(AB31-1),AA15*RetailEnergyCost*(1-PercentPV_LI)*(1+RetailEnergyCostEscalation)^(AB31-1))) -> 452883.8026 | AC65: =IF(AC31>ProjectLife,0,IF(AC31<=SubscriptionLife,((1-'Admin_&_Transaction_Costs'!AB83)-PercentPV_LI)*AB15*RetailEnergyCost*(1+RetailEnergyCostEscalation)^(AC31-1),AB15*RetailEnergyCost*(1-PercentPV_LI)*(1+RetailEnergyCostEscalation)^(AC31-1))) -> 459631.7713 | AD65: =IF(AD31>ProjectLife,0,IF(AD31<=SubscriptionLife,((1-'Admin_&_Transaction_Costs'!AC83)-PercentPV_LI)*AC15*RetailEnergyCost*(1+RetailEnergyCostEscalation)^(AD31-1),AC15*RetailEnergyCost*(1-PercentPV_LI)*(1+RetailEnergyCostEscalation)^(AD31-1))) -> 466480.2847 | AE65: =IF(AE31>ProjectLife,0,IF(AE31<=SubscriptionLife,((1-'Admin_&_Transaction_Costs'!AD83)-PercentPV_LI)*AD15*RetailEnergyCost*(1+RetailEnergyCostEscalation)^(AE31-1),AD15*RetailEnergyCost*(1-PercentPV_LI)*(1+RetailEnergyCostEscalation)^(AE31-1))) -> 473430.8409 | AF65: =IF(AF31>ProjectLife,0,IF(AF31<=SubscriptionLife,((1-'Admin_&_Transaction_Costs'!AE83)-PercentPV_LI)*AE15*RetailEnergyCost*(1+RetailEnergyCostEscalation)^(AF31-1),AE15*RetailEnergyCost*(1-PercentPV_LI)*(1+RetailEnergyCostEscalation)^(AF31-1))) -> 480484.9604 | AG65: =IF(AG31>ProjectLife,0,IF(AG31<=SubscriptionLife,((1-'Admin_&_Transaction_Costs'!AF83)-PercentPV_LI)*AF15*RetailEnergyCost*(1+RetailEnergyCostEscalation)^(AG31-1),AF15*RetailEnergyCost*(1-PercentPV_LI)*(1+RetailEnergyCostEscalation)^(AG31-1))) -> 487644.1863 | AH65: =IF(AH31>ProjectLife,0,IF(AH31<=SubscriptionLife,((1-'Admin_&_Transaction_Costs'!AG83)-PercentPV_LI)*AG15*RetailEnergyCost*(1+RetailEnergyCostEscalation)^(AH31-1),AG15*RetailEnergyCost*(1-PercentPV_LI)*(1+RetailEnergyCostEscalation)^(AH31-1))) -> 494910.0847 | AI65: =IF(AI31>ProjectLife,0,IF(AI31<=SubscriptionLife,((1-'Admin_&_Transaction_Costs'!AH83)-PercentPV_LI)*AH15*RetailEnergyCost*(1+RetailEnergyCostEscalation)^(AI31-1),AH15*RetailEnergyCost*(1-PercentPV_LI)*(1+RetailEnergyCostEscalation)^(AI31-1))) -> 502284.245 | AJ65: =SUM(E65:AI65) -> 4703668.695 | AK65: =E65+NPV(UtilityDiscountRt,F65:AI65) -> 1257287.957
B66: Avoided wholesale energy purchases | D66: $ | E66: 0 | F66: =IF(F31<=ProjectLife,WholsaleEnergyCost*E15*(1+WholesaleCostEscalation)^(F31-1),0) -> 133812 | G66: 135805.7988 | H66: 137829.3052 | I66: 139882.9618 | J66: 141967.218 | K66: 144082.5295 | L66: 146229.3592 | M66: 148408.1767 | N66: 150619.4585 | O66: 152863.6884 | P66: 155141.3574 | Q66: 157452.9636 | R66: 159799.0128 | S66: 162180.0181 | T66: 164596.5003 | U66: 167048.9882 | V66: 169538.0181 | W66: 172064.1346 | X66: 174627.8902 | Y66: 177229.8458 | Z66: 179870.5705 | AA66: 182550.642 | AB66: 185270.6465 | AC66: 188031.1792 | AD66: 190832.8437 | AE66: 193676.2531 | AF66: 196562.0293 | AG66: 199490.8035 | AH66: 202463.2165 | AI66: 205479.9184 | AJ66: 5015407.328 | AK66: =E66+NPV(UtilityDiscountRt,F66:AI66) -> 2341022.351
B67: SRECs | D67: $ | E67: 0 | F67: =IF(F31<='Key_Assumptions_&_Inputs'!$J$65,'Key_Assumptions_&_Inputs'!$J$63*E15*'Key_Assumptions_&_Inputs'!$J$64/'Key_Assumptions_&_Inputs'!$J$65/1000,0) -> 0 | G67: =IF(G31<='Key_Assumptions_&_Inputs'!$J$65,'Key_Assumptions_&_Inputs'!$J$63*F15*'Key_Assumptions_&_Inputs'!$J$64/'Key_Assumptions_&_Inputs'!$J$65/1000,0) -> 0 | H67: =IF(H31<='Key_Assumptions_&_Inputs'!$J$65,'Key_Assumptions_&_Inputs'!$J$63*G15*'Key_Assumptions_&_Inputs'!$J$64/'Key_Assumptions_&_Inputs'!$J$65/1000,0) -> 0 | I67: =IF(I31<='Key_Assumptions_&_Inputs'!$J$65,'Key_Assumptions_&_Inputs'!$J$63*H15*'Key_Assumptions_&_Inputs'!$J$64/'Key_Assumptions_&_Inputs'!$J$65/1000,0) -> 0 | J67: =IF(J31<='Key_Assumptions_&_Inputs'!$J$65,'Key_Assumptions_&_Inputs'!$J$63*I15*'Key_Assumptions_&_Inputs'!$J$64/'Key_Assumptions_&_Inputs'!$J$65/1000,0) -> 0 | K67: =IF(K31<='Key_Assumptions_&_Inputs'!$J$65,'Key_Assumptions_&_Inputs'!$J$63*J15*'Key_Assumptions_&_Inputs'!$J$64/'Key_Assumptions_&_Inputs'!$J$65/1000,0) -> 0 | L67: =IF(L31<='Key_Assumptions_&_Inputs'!$J$65,'Key_Assumptions_&_Inputs'!$J$63*K15*'Key_Assumptions_&_Inputs'!$J$64/'Key_Assumptions_&_Inputs'!$J$65/1000,0) -> 0 | M67: =IF(M31<='Key_Assumptions_&_Inputs'!$J$65,'Key_Assumptions_&_Inputs'!$J$63*L15*'Key_Assumptions_&_Inputs'!$J$64/'Key_Assumptions_&_Inputs'!$J$65/1000,0) -> 0 | N67: =IF(N31<='Key_Assumptions_&_Inputs'!$J$65,'Key_Assumptions_&_Inputs'!$J$63*M15*'Key_Assumptions_&_Inputs'!$J$64/'Key_Assumptions_&_Inputs'!$J$65/1000,0) -> 0 | O67: =IF(O31<='Key_Assumptions_&_Inputs'!$J$65,'Key_Assumptions_&_Inputs'!$J$63*N15*'Key_Assumptions_&_Inputs'!$J$64/'Key_Assumptions_&_Inputs'!$J$65/1000,0) -> 0 | P67: =IF(P31<='Key_Assumptions_&_Inputs'!$J$65,'Key_Assumptions_&_Inputs'!$J$63*O15*'Key_Assumptions_&_Inputs'!$J$64/'Key_Assumptions_&_Inputs'!$J$65/1000,0) -> 0 | Q67: =IF(Q31<='Key_Assumptions_&_Inputs'!$J$65,'Key_Assumptions_&_Inputs'!$J$63*P15*'Key_Assumptions_&_Inputs'!$J$64/'Key_Assumptions_&_Inputs'!$J$65/1000,0) -> 0 | R67: =IF(R31<='Key_Assumptions_&_Inputs'!$J$65,'Key_Assumptions_&_Inputs'!$J$63*Q15*'Key_Assumptions_&_Inputs'!$J$64/'Key_Assumptions_&_Inputs'!$J$65/1000,0) -> 0 | S67: =IF(S31<='Key_Assumptions_&_Inputs'!$J$65,'Key_Assumptions_&_Inputs'!$J$63*R15*'Key_Assumptions_&_Inputs'!$J$64/'Key_Assumptions_&_Inputs'!$J$65/1000,0) -> 0 | T67: =IF(T31<='Key_Assumptions_&_Inputs'!$J$65,'Key_Assumptions_&_Inputs'!$J$63*S15*'Key_Assumptions_&_Inputs'!$J$64/'Key_Assumptions_&_Inputs'!$J$65/1000,0) -> 0 | U67: =IF(U31<='Key_Assumptions_&_Inputs'!$J$65,'Key_Assumptions_&_Inputs'!$J$63*T15*'Key_Assumptions_&_Inputs'!$J$64/'Key_Assumptions_&_Inputs'!$J$65/1000,0) -> 0 | V67: =IF(V31<='Key_Assumptions_&_Inputs'!$J$65,'Key_Assumptions_&_Inputs'!$J$63*U15*'Key_Assumptions_&_Inputs'!$J$64/'Key_Assumptions_&_Inputs'!$J$65/1000,0) -> 0 | W67: =IF(W31<='Key_Assumptions_&_Inputs'!$J$65,'Key_Assumptions_&_Inputs'!$J$63*V15*'Key_Assumptions_&_Inputs'!$J$64/'Key_Assumptions_&_Inputs'!$J$65/1000,0) -> 0 | X67: =IF(X31<='Key_Assumptions_&_Inputs'!$J$65,'Key_Assumptions_&_Inputs'!$J$63*W15*'Key_Assumptions_&_Inputs'!$J$64/'Key_Assumptions_&_Inputs'!$J$65/1000,0) -> 0 | Y67: =IF(Y31<='Key_Assumptions_&_Inputs'!$J$65,'Key_Assumptions_&_Inputs'!$J$63*X15*'Key_Assumptions_&_Inputs'!$J$64/'Key_Assumptions_&_Inputs'!$J$65/1000,0) -> 0 | Z67: =IF(Z31<='Key_Assumptions_&_Inputs'!$J$65,'Key_Assumptions_&_Inputs'!$J$63*Y15*'Key_Assumptions_&_Inputs'!$J$64/'Key_Assumptions_&_Inputs'!$J$65/1000,0) -> 0 | AA67: =IF(AA31<='Key_Assumptions_&_Inputs'!$J$65,'Key_Assumptions_&_Inputs'!$J$63*Z15*'Key_Assumptions_&_Inputs'!$J$64/'Key_Assumptions_&_Inputs'!$J$65/1000,0) -> 0 | AB67: =IF(AB31<='Key_Assumptions_&_Inputs'!$J$65,'Key_Assumptions_&_Inputs'!$J$63*AA15*'Key_Assumptions_&_Inputs'!$J$64/'Key_Assumptions_&_Inputs'!$J$65/1000,0) -> 0 | AC67: =IF(AC31<='Key_Assumptions_&_Inputs'!$J$65,'Key_Assumptions_&_Inputs'!$J$63*AB15*'Key_Assumptions_&_Inputs'!$J$64/'Key_Assumptions_&_Inputs'!$J$65/1000,0) -> 0 | AD67: =IF(AD31<='Key_Assumptions_&_Inputs'!$J$65,'Key_Assumptions_&_Inputs'!$J$63*AC15*'Key_Assumptions_&_Inputs'!$J$64/'Key_Assumptions_&_Inputs'!$J$65/1000,0) -> 0 | AE67: =IF(AE31<='Key_Assumptions_&_Inputs'!$J$65,'Key_Assumptions_&_Inputs'!$J$63*AD15*'Key_Assumptions_&_Inputs'!$J$64/'Key_Assumptions_&_Inputs'!$J$65/1000,0) -> 0 | AF67: =IF(AF31<='Key_Assumptions_&_Inputs'!$J$65,'Key_Assumptions_&_Inputs'!$J$63*AE15*'Key_Assumptions_&_Inputs'!$J$64/'Key_Assumptions_&_Inputs'!$J$65/1000,0) -> 0 | AG67: =IF(AG31<='Key_Assumptions_&_Inputs'!$J$65,'Key_Assumptions_&_Inputs'!$J$63*AF15*'Key_Assumptions_&_Inputs'!$J$64/'Key_Assumptions_&_Inputs'!$J$65/1000,0) -> 0 | AH67: =IF(AH31<='Key_Assumptions_&_Inputs'!$J$65,'Key_Assumptions_&_Inputs'!$J$63*AG15*'Key_Assumptions_&_Inputs'!$J$64/'Key_Assumptions_&_Inputs'!$J$65/1000,0) -> 0 | AI67: =IF(AI31<='Key_Assumptions_&_Inputs'!$J$65,'Key_Assumptions_&_Inputs'!$J$63*AH15*'Key_Assumptions_&_Inputs'!$J$64/'Key_Assumptions_&_Inputs'!$J$65/1000,0) -> 0 | AJ67: 0 | AK67: =E67+NPV(UtilityDiscountRt,F67:AI67) -> 0
B68: Salvage value | D68: $ | E68: =IF(E31<>ProjectLife,0,-'Key_Assumptions_&_Inputs'!$J$67*$E$35) -> 0 | F68: =IF(F31<>ProjectLife,0,-'Key_Assumptions_&_Inputs'!$J$67*$E$35) -> 0 | G68: =IF(G31<>ProjectLife,0,-'Key_Assumptions_&_Inputs'!$J$67*$E$35) -> 0 | H68: =IF(H31<>ProjectLife,0,-'Key_Assumptions_&_Inputs'!$J$67*$E$35) -> 0 | I68: =IF(I31<>ProjectLife,0,-'Key_Assumptions_&_Inputs'!$J$67*$E$35) -> 0 | J68: =IF(J31<>ProjectLife,0,-'Key_Assumptions_&_Inputs'!$J$67*$E$35) -> 0 | K68: =IF(K31<>ProjectLife,0,-'Key_Assumptions_&_Inputs'!$J$67*$E$35) -> 0 | L68: =IF(L31<>ProjectLife,0,-'Key_Assumptions_&_Inputs'!$J$67*$E$35) -> 0 | M68: =IF(M31<>ProjectLife,0,-'Key_Assumptions_&_Inputs'!$J$67*$E$35) -> 0 | N68: =IF(N31<>ProjectLife,0,-'Key_Assumptions_&_Inputs'!$J$67*$E$35) -> 0 | O68: =IF(O31<>ProjectLife,0,-'Key_Assumptions_&_Inputs'!$J$67*$E$35) -> 0 | P68: =IF(P31<>ProjectLife,0,-'Key_Assumptions_&_Inputs'!$J$67*$E$35) -> 0 | Q68: =IF(Q31<>ProjectLife,0,-'Key_Assumptions_&_Inputs'!$J$67*$E$35) -> 0 | R68: =IF(R31<>ProjectLife,0,-'Key_Assumptions_&_Inputs'!$J$67*$E$35) -> 0 | S68: =IF(S31<>ProjectLife,0,-'Key_Assumptions_&_Inputs'!$J$67*$E$35) -> 0 | T68: =IF(T31<>ProjectLife,0,-'Key_Assumptions_&_Inputs'!$J$67*$E$35) -> 0 | U68: =IF(U31<>ProjectLife,0,-'Key_Assumptions_&_Inputs'!$J$67*$E$35) -> 0 | V68: =IF(V31<>ProjectLife,0,-'Key_Assumptions_&_Inputs'!$J$67*$E$35) -> 0 | W68: =IF(W31<>ProjectLife,0,-'Key_Assumptions_&_Inputs'!$J$67*$E$35) -> 0 | X68: =IF(X31<>ProjectLife,0,-'Key_Assumptions_&_Inputs'!$J$67*$E$35) -> 0 | Y68: =IF(Y31<>ProjectLife,0,-'Key_Assumptions_&_Inputs'!$J$67*$E$35) -> 0 | Z68: =IF(Z31<>ProjectLife,0,-'Key_Assumptions_&_Inputs'!$J$67*$E$35) -> 0 | AA68: =IF(AA31<>ProjectLife,0,-'Key_Assumptions_&_Inputs'!$J$67*$E$35) -> 0 | AB68: =IF(AB31<>ProjectLife,0,-'Key_Assumptions_&_Inputs'!$J$67*$E$35) -> 0 | AC68: =IF(AC31<>ProjectLife,0,-'Key_Assumptions_&_Inputs'!$J$67*$E$35) -> 0 | AD68: =IF(AD31<>ProjectLife,0,-'Key_Assumptions_&_Inputs'!$J$67*$E$35) -> 0 | AE68: =IF(AE31<>ProjectLife,0,-'Key_Assumptions_&_Inputs'!$J$67*$E$35) -> 0 | AF68: =IF(AF31<>ProjectLife,0,-'Key_Assumptions_&_Inputs'!$J$67*$E$35) -> 0 | AG68: =IF(AG31<>ProjectLife,0,-'Key_Assumptions_&_Inputs'!$J$67*$E$35) -> 0 | AH68: =IF(AH31<>ProjectLife,0,-'Key_Assumptions_&_Inputs'!$J$67*$E$35) -> 0 | AI68: =IF(AI31<>ProjectLife,0,-'Key_Assumptions_&_Inputs'!$J$67*$E$35) -> 0 | AJ68: 0 | AK68: =E68+NPV(UtilityDiscountRt,F68:AI68) -> 0
B69: Total System Production Benefits | D69: $ | E69: =SUM(E65:E68) -> 0 | F69: 133812 | G69: 135805.7988 | H69: 137829.3052 | I69: 139882.9618 | J69: 141967.218 | K69: 144082.5295 | L69: 146229.3592 | M69: 148408.1767 | N69: 150619.4585 | O69: 152863.6884 | P69: 155141.3574 | Q69: 157452.9636 | R69: 159799.0128 | S69: 162180.0181 | T69: 164596.5003 | U69: 167048.9882 | V69: 169538.0181 | W69: 172064.1346 | X69: 174627.8902 | Y69: 177229.8458 | Z69: 619554.1871 | AA69: 628785.5445 | AB69: 638154.4491 | AC69: 647662.9504 | AD69: 657313.1284 | AE69: 667107.094 | AF69: 677046.9897 | AG69: 687134.9898 | AH69: 697373.3012 | AI69: 707764.1634 | AJ69: =SUM(E69:AD69) -> 6282649.485 | AK69: =E69+NPV(UtilityDiscountRt,F69:AI69) -> 3598310.308
B71: Net Benefits (Costs) | D71: $ | E71: =E36+E41+E50+E57+E69+E62 -> -49450.03 | F71: -214697.8077 | G71: -172546.4042 | H71: -168068.2763 | I71: -164604.1664 | J71: -161183.2775 | K71: -157811.1077 | L71: -154420.719 | M71: -151011.7857 | N71: -147583.9808 | O71: -144136.9759 | P71: -140670.4413 | Q71: -137184.046 | R71: -133677.458 | S71: 141524.4636 | T71: 145072.4376 | U71: 148641.6068 | V71: 152232.307 | W71: 155844.8751 | X71: 159479.6484 | Y71: 163136.9649 | Z71: 598554.1871 | AA71: 607785.5445 | AB71: 617154.4491 | AC71: 626662.9504 | AD71: 636313.1284 | AE71: 646107.094 | AF71: 656046.9897 | AG71: 666134.9898 | AH71: 676373.3012 | AI71: 686764.1634 | AJ71: =SUM(E71:AD71) -> 2055356.086
B72: Cumulative Cashflow | D72: $ | E72: =E71 -> -49450.03 | F72: =IF(F31<=ProjectLife,E72+F71,0) -> -264147.8377 | G72: -436694.2418 | H72: -604762.5182 | I72: -769366.6846 | J72: -930549.9621 | K72: -1088361.07 | L72: -1242781.789 | M72: -1393793.574 | N72: -1541377.555 | O72: -1685514.531 | P72: -1826184.973 | Q72: -1963369.019 | R72: -2097046.476 | S72: -1955522.013 | T72: -1810449.575 | U72: -1661807.969 | V72: -1509575.662 | W72: -1353730.786 | X72: -1194251.138 | Y72: -1031114.173 | Z72: -432559.9859 | AA72: 175225.5586 | AB72: 792380.0077 | AC72: 1419042.958 | AD72: 2055356.086 | AE72: 2701463.18 | AF72: 3357510.17 | AG72: 4023645.16 | AH72: 4700018.461 | AI72: 5386782.625
B73: Payback Calculation | E73: =SUM(F73:Y73) -> 20 | F73: =IF(F72<0,1,IF(AND(F72>0,E72<0),(-E72/(F72-E72)),0)) -> 1 | G73: =IF(F73=0,0,IF(G72<0,1,IF(AND(G72>0,F72<0),(-F72/(G72-F72)),0))) -> 1 | H73: 1 | I73: 1 | J73: 1 | K73: 1 | L73: 1 | M73: 1 | N73: 1 | O73: 1 | P73: 1 | Q73: 1 | R73: 1 | S73: 1 | T73: 1 | U73: 1 | V73: 1 | W73: 1 | X73: 1 | Y73: 1 | Z73: 1 | AA73: 0.7116983776 | AB73: 0 | AC73: 0 | AD73: 0 | AE73: 0 | AF73: 0 | AG73: 0 | AH73: 0 | AI73: 0
C75: Up-front Net Costs | D75: $ | E75: =E71 -> -49450.03
C76: Year 1 Net Benefits | D76: $ | E76: =F71 -> -214697.8077
E78: TOTAL | F78: $/Watt | G78: $/kWh
C79: Project Costs | D79: $ | E79: =SUM(E36:AI36)+SUM(E50:AI50)+SUM(E41:AI41) -> -10092293.4 | F79: =E79/SystemSizeDC/1000 -> -8.410244499
C80: Project Benefits | D80: $ | E80: =SUM(E57:AI57)+SUM(E69:AI69)+SUM(E62:AI62)+SUM(E39:AI39) -> 18023076.02 | F80: =E80/SystemSizeDC/1000 -> 15.01923002
C81: Net Benefits | D81: $ | E81: =E80+E79 -> 7930782.625 | F81: =E81/SystemSizeDC/1000 -> 6.60898552
C82: Project NPV | D82: $ | E82: =E71+NPV(UtilityDiscountRt,F71:AI71) -> 623647.5607 | F82: =E82/SystemSizeDC/1000 -> 0.5197063006 | G82: =E82/(NPV(UtilityDiscountRt,E15:AC15)) -> 0.01610670133
C83: Internal Rate of Return (IRR) | D83: % | E83: =IRR(E71:AI71) -> 0.07370673578 | F83: N/A
C84: Modified Internal Rate of Return (MIRR) | D84: % | E84: =MIRR(E71:AI71,0,'Key_Assumptions_&_Inputs'!E61) -> 0.05427806306 | F84: N/A
C85: B/C Ratio | E85: =-E80/E79 -> 1.785825611
C86: Return on Investment (ROI) | D86: % | E86: =E81/(-E79) -> 0.7858256108 | F86: N/A
C87: Payback Period | D87: years | E87: =E73 -> 20 | F87: N/A
B91: Subscriber Community Solar System Financials - Not Subsidized
D92: Project Year: | E92: 0 | F92: 1 | G92: 2 | H92: 3 | I92: 4 | J92: 5 | K92: 6 | L92: 7 | M92: 8 | N92: 9 | O92: 10 | P92: 11 | Q92: 12 | R92: 13 | S92: 14 | T92: 15 | U92: 16 | V92: 17 | W92: 18 | X92: 19 | Y92: 20 | Z92: 21 | AA92: 22 | AB92: 23 | AC92: 24 | AD92: 25 | AE92: 26 | AF92: 27 | AG92: 28 | AH92: 29 | AI92: 30 | AJ92: Totals
D93: Calendar Year: | E93: =StartYr-1 -> 2021 | F93: =StartYr+F92-1 -> 2022 | G93: 2023 | H93: 2024 | I93: 2025 | J93: 2026 | K93: 2027 | L93: 2028 | M93: 2029 | N93: 2030 | O93: 2031 | P93: 2032 | Q93: 2033 | R93: 2034 | S93: 2035 | T93: 2036 | U93: 2037 | V93: 2038 | W93: 2039 | X93: 2040 | Y93: 2041 | Z93: 2042 | AA93: 2043 | AB93: 2044 | AC93: 2045 | AD93: 2046 | AE93: 2047 | AF93: 2048 | AG93: 2049 | AH93: 2050 | AI93: 2051
B94: Participant Expenditures
B95: Participant Payment (Buy/Lease) | D95: $ | E95: =IF(E92=0,0,-IF('Key_Assumptions_&_Inputs'!$E$16="Share Leasing",SharePrice*12*SharePerSub*(1+SharePriceEscalator)^(E92-1),0))-IF(AND('Key_Assumptions_&_Inputs'!$E$16="Upfront Payment",E92=1),SharePrice*SharePerSub,0) -> 0 | F95: =IF(F92<=SubscriptionLife,IF(F92=0,0,-IF('Key_Assumptions_&_Inputs'!$E$16="Share Leasing",SharePrice*12*SharePerSub*(1+SharePriceEscalator)^(F92-1),0))-IF(AND('Key_Assumptions_&_Inputs'!$E$16="Upfront Payment",F92=1),SharePrice*SharePerSub,0),0) -> -960 | G95: =IF(G92<=SubscriptionLife,-IF('Key_Assumptions_&_Inputs'!$E$16="Share Leasing",SharePrice*12*SharePerSub*(1+SharePriceEscalator)^(G92-1),0),0) -> -960 | H95: =IF(H92<=SubscriptionLife,-IF('Key_Assumptions_&_Inputs'!$E$16="Share Leasing",SharePrice*12*SharePerSub*(1+SharePriceEscalator)^(H92-1),0),0) -> -960 | I95: =IF(I92<=SubscriptionLife,-IF('Key_Assumptions_&_Inputs'!$E$16="Share Leasing",SharePrice*12*SharePerSub*(1+SharePriceEscalator)^(I92-1),0),0) -> -960 | J95: =IF(J92<=SubscriptionLife,-IF('Key_Assumptions_&_Inputs'!$E$16="Share Leasing",SharePrice*12*SharePerSub*(1+SharePriceEscalator)^(J92-1),0),0) -> -960 | K95: =IF(K92<=SubscriptionLife,-IF('Key_Assumptions_&_Inputs'!$E$16="Share Leasing",SharePrice*12*SharePerSub*(1+SharePriceEscalator)^(K92-1),0),0) -> -960 | L95: =IF(L92<=SubscriptionLife,-IF('Key_Assumptions_&_Inputs'!$E$16="Share Leasing",SharePrice*12*SharePerSub*(1+SharePriceEscalator)^(L92-1),0),0) -> -960 | M95: =IF(M92<=SubscriptionLife,-IF('Key_Assumptions_&_Inputs'!$E$16="Share Leasing",SharePrice*12*SharePerSub*(1+SharePriceEscalator)^(M92-1),0),0) -> -960 | N95: =IF(N92<=SubscriptionLife,-IF('Key_Assumptions_&_Inputs'!$E$16="Share Leasing",SharePrice*12*SharePerSub*(1+SharePriceEscalator)^(N92-1),0),0) -> -960 | O95: =IF(O92<=SubscriptionLife,-IF('Key_Assumptions_&_Inputs'!$E$16="Share Leasing",SharePrice*12*SharePerSub*(1+SharePriceEscalator)^(O92-1),0),0) -> -960 | P95: =IF(P92<=SubscriptionLife,-IF('Key_Assumptions_&_Inputs'!$E$16="Share Leasing",SharePrice*12*SharePerSub*(1+SharePriceEscalator)^(P92-1),0),0) -> -960 | Q95: =IF(Q92<=SubscriptionLife,-IF('Key_Assumptions_&_Inputs'!$E$16="Share Leasing",SharePrice*12*SharePerSub*(1+SharePriceEscalator)^(Q92-1),0),0) -> -960 | R95: =IF(R92<=SubscriptionLife,-IF('Key_Assumptions_&_Inputs'!$E$16="Share Leasing",SharePrice*12*SharePerSub*(1+SharePriceEscalator)^(R92-1),0),0) -> -960 | S95: =IF(S92<=SubscriptionLife,-IF('Key_Assumptions_&_Inputs'!$E$16="Share Leasing",SharePrice*12*SharePerSub*(1+SharePriceEscalator)^(S92-1),0),0) -> -960 | T95: =IF(T92<=SubscriptionLife,-IF('Key_Assumptions_&_Inputs'!$E$16="Share Leasing",SharePrice*12*SharePerSub*(1+SharePriceEscalator)^(T92-1),0),0) -> -960 | U95: =IF(U92<=SubscriptionLife,-IF('Key_Assumptions_&_Inputs'!$E$16="Share Leasing",SharePrice*12*SharePerSub*(1+SharePriceEscalator)^(U92-1),0),0) -> -960 | V95: =IF(V92<=SubscriptionLife,-IF('Key_Assumptions_&_Inputs'!$E$16="Share Leasing",SharePrice*12*SharePerSub*(1+SharePriceEscalator)^(V92-1),0),0) -> -960 | W95: =IF(W92<=SubscriptionLife,-IF('Key_Assumptions_&_Inputs'!$E$16="Share Leasing",SharePrice*12*SharePerSub*(1+SharePriceEscalator)^(W92-1),0),0) -> -960 | X95: =IF(X92<=SubscriptionLife,-IF('Key_Assumptions_&_Inputs'!$E$16="Share Leasing",SharePrice*12*SharePerSub*(1+SharePriceEscalator)^(X92-1),0),0) -> -960 | Y95: =IF(Y92<=SubscriptionLife,-IF('Key_Assumptions_&_Inputs'!$E$16="Share Leasing",SharePrice*12*SharePerSub*(1+SharePriceEscalator)^(Y92-1),0),0) -> -960 | Z95: =IF(Z92<=SubscriptionLife,-IF('Key_Assumptions_&_Inputs'!$E$16="Share Leasing",SharePrice*12*SharePerSub*(1+SharePriceEscalator)^(Z92-1),0),0) -> 0 | AA95: =IF(AA92<=SubscriptionLife,-IF('Key_Assumptions_&_Inputs'!$E$16="Share Leasing",SharePrice*12*SharePerSub*(1+SharePriceEscalator)^(AA92-1),0),0) -> 0 | AB95: =IF(AB92<=SubscriptionLife,-IF('Key_Assumptions_&_Inputs'!$E$16="Share Leasing",SharePrice*12*SharePerSub*(1+SharePriceEscalator)^(AB92-1),0),0) -> 0 | AC95: =IF(AC92<=SubscriptionLife,-IF('Key_Assumptions_&_Inputs'!$E$16="Share Leasing",SharePrice*12*SharePerSub*(1+SharePriceEscalator)^(AC92-1),0),0) -> 0 | AD95: =IF(AD92<=SubscriptionLife,-IF('Key_Assumptions_&_Inputs'!$E$16="Share Leasing",SharePrice*12*SharePerSub*(1+SharePriceEscalator)^(AD92-1),0),0) -> 0 | AE95: =IF(AE92<=SubscriptionLife,-IF('Key_Assumptions_&_Inputs'!$E$16="Share Leasing",SharePrice*12*SharePerSub*(1+SharePriceEscalator)^(AE92-1),0),0) -> 0 | AF95: =IF(AF92<=SubscriptionLife,-IF('Key_Assumptions_&_Inputs'!$E$16="Share Leasing",SharePrice*12*SharePerSub*(1+SharePriceEscalator)^(AF92-1),0),0) -> 0 | AG95: =IF(AG92<=SubscriptionLife,-IF('Key_Assumptions_&_Inputs'!$E$16="Share Leasing",SharePrice*12*SharePerSub*(1+SharePriceEscalator)^(AG92-1),0),0) -> 0 | AH95: =IF(AH92<=SubscriptionLife,-IF('Key_Assumptions_&_Inputs'!$E$16="Share Leasing",SharePrice*12*SharePerSub*(1+SharePriceEscalator)^(AH92-1),0),0) -> 0 | AI95: =IF(AI92<=SubscriptionLife,-IF('Key_Assumptions_&_Inputs'!$E$16="Share Leasing",SharePrice*12*SharePerSub*(1+SharePriceEscalator)^(AI92-1),0),0) -> 0 | AJ95: =SUM(E95:AI95) -> -19200
B96: Total Costs | D96: $ | E96: =SUM(E95) -> 0 | F96: -960 | G96: -960 | H96: -960 | I96: -960 | J96: -960 | K96: -960 | L96: -960 | M96: -960 | N96: -960 | O96: -960 | P96: -960 | Q96: -960 | R96: -960 | S96: -960 | T96: -960 | U96: -960 | V96: -960 | W96: -960 | X96: -960 | Y96: -960 | Z96: 0 | AA96: 0 | AB96: 0 | AC96: 0 | AD96: 0 | AE96: 0 | AF96: 0 | AG96: 0 | AH96: 0 | AI96: 0 | AJ96: -19200
B98: Project Financing
B99: Loan Amount | D99: $ | E99: =IF(AND('Key_Assumptions_&_Inputs'!$E$16="Upfront Payment",E92=1),-$F$96*'Key_Assumptions_&_Inputs'!$E$67,0) -> 0 | F99: =IF(AND('Key_Assumptions_&_Inputs'!$E$16="Upfront Payment",F92=1),-$F$96*'Key_Assumptions_&_Inputs'!$E$67,0) -> 0 | G99: =IF(AND('Key_Assumptions_&_Inputs'!$E$16="Upfront Payment",G92=1),-$F$96*'Key_Assumptions_&_Inputs'!$E$67,0) -> 0 | H99: =IF(AND('Key_Assumptions_&_Inputs'!$E$16="Upfront Payment",H92=1),-$F$96*'Key_Assumptions_&_Inputs'!$E$67,0) -> 0 | I99: =IF(AND('Key_Assumptions_&_Inputs'!$E$16="Upfront Payment",I92=1),-$F$96*'Key_Assumptions_&_Inputs'!$E$67,0) -> 0 | J99: =IF(AND('Key_Assumptions_&_Inputs'!$E$16="Upfront Payment",J92=1),-$F$96*'Key_Assumptions_&_Inputs'!$E$67,0) -> 0 | K99: =IF(AND('Key_Assumptions_&_Inputs'!$E$16="Upfront Payment",K92=1),-$F$96*'Key_Assumptions_&_Inputs'!$E$67,0) -> 0 | L99: =IF(AND('Key_Assumptions_&_Inputs'!$E$16="Upfront Payment",L92=1),-$F$96*'Key_Assumptions_&_Inputs'!$E$67,0) -> 0 | M99: =IF(AND('Key_Assumptions_&_Inputs'!$E$16="Upfront Payment",M92=1),-$F$96*'Key_Assumptions_&_Inputs'!$E$67,0) -> 0 | N99: =IF(AND('Key_Assumptions_&_Inputs'!$E$16="Upfront Payment",N92=1),-$F$96*'Key_Assumptions_&_Inputs'!$E$67,0) -> 0 | O99: =IF(AND('Key_Assumptions_&_Inputs'!$E$16="Upfront Payment",O92=1),-$F$96*'Key_Assumptions_&_Inputs'!$E$67,0) -> 0 | P99: =IF(AND('Key_Assumptions_&_Inputs'!$E$16="Upfront Payment",P92=1),-$F$96*'Key_Assumptions_&_Inputs'!$E$67,0) -> 0 | Q99: =IF(AND('Key_Assumptions_&_Inputs'!$E$16="Upfront Payment",Q92=1),-$F$96*'Key_Assumptions_&_Inputs'!$E$67,0) -> 0 | R99: =IF(AND('Key_Assumptions_&_Inputs'!$E$16="Upfront Payment",R92=1),-$F$96*'Key_Assumptions_&_Inputs'!$E$67,0) -> 0 | S99: =IF(AND('Key_Assumptions_&_Inputs'!$E$16="Upfront Payment",S92=1),-$F$96*'Key_Assumptions_&_Inputs'!$E$67,0) -> 0 | T99: =IF(AND('Key_Assumptions_&_Inputs'!$E$16="Upfront Payment",T92=1),-$F$96*'Key_Assumptions_&_Inputs'!$E$67,0) -> 0 | U99: =IF(AND('Key_Assumptions_&_Inputs'!$E$16="Upfront Payment",U92=1),-$F$96*'Key_Assumptions_&_Inputs'!$E$67,0) -> 0 | V99: =IF(AND('Key_Assumptions_&_Inputs'!$E$16="Upfront Payment",V92=1),-$F$96*'Key_Assumptions_&_Inputs'!$E$67,0) -> 0 | W99: =IF(AND('Key_Assumptions_&_Inputs'!$E$16="Upfront Payment",W92=1),-$F$96*'Key_Assumptions_&_Inputs'!$E$67,0) -> 0 | X99: =IF(AND('Key_Assumptions_&_Inputs'!$E$16="Upfront Payment",X92=1),-$F$96*'Key_Assumptions_&_Inputs'!$E$67,0) -> 0 | Y99: =IF(AND('Key_Assumptions_&_Inputs'!$E$16="Upfront Payment",Y92=1),-$F$96*'Key_Assumptions_&_Inputs'!$E$67,0) -> 0 | Z99: =IF(AND('Key_Assumptions_&_Inputs'!$E$16="Upfront Payment",Z92=1),-$F$96*'Key_Assumptions_&_Inputs'!$E$67,0) -> 0 | AA99: =IF(AND('Key_Assumptions_&_Inputs'!$E$16="Upfront Payment",AA92=1),-$F$96*'Key_Assumptions_&_Inputs'!$E$67,0) -> 0 | AB99: =IF(AND('Key_Assumptions_&_Inputs'!$E$16="Upfront Payment",AB92=1),-$F$96*'Key_Assumptions_&_Inputs'!$E$67,0) -> 0 | AC99: =IF(AND('Key_Assumptions_&_Inputs'!$E$16="Upfront Payment",AC92=1),-$F$96*'Key_Assumptions_&_Inputs'!$E$67,0) -> 0 | AD99: =IF(AND('Key_Assumptions_&_Inputs'!$E$16="Upfront Payment",AD92=1),-$F$96*'Key_Assumptions_&_Inputs'!$E$67,0) -> 0 | AE99: =IF(AND('Key_Assumptions_&_Inputs'!$E$16="Upfront Payment",AE92=1),-$F$96*'Key_Assumptions_&_Inputs'!$E$67,0) -> 0 | AF99: =IF(AND('Key_Assumptions_&_Inputs'!$E$16="Upfront Payment",AF92=1),-$F$96*'Key_Assumptions_&_Inputs'!$E$67,0) -> 0 | AG99: =IF(AND('Key_Assumptions_&_Inputs'!$E$16="Upfront Payment",AG92=1),-$F$96*'Key_Assumptions_&_Inputs'!$E$67,0) -> 0 | AH99: =IF(AND('Key_Assumptions_&_Inputs'!$E$16="Upfront Payment",AH92=1),-$F$96*'Key_Assumptions_&_Inputs'!$E$67,0) -> 0 | AI99: =IF(AND('Key_Assumptions_&_Inputs'!$E$16="Upfront Payment",AI92=1),-$F$96*'Key_Assumptions_&_Inputs'!$E$67,0) -> 0 | AJ99: =SUM(E99:AI99) -> 0
B100: Monthly Payments | D100: $ | E100: 0 | F100: =-IF('Key_Assumptions_&_Inputs'!$E$16="Share Leasing",0,IF(F92=0,0,IF(F92=1,0,IF(F92<=('Key_Assumptions_&_Inputs'!$E$69+1),-PMT('Key_Assumptions_&_Inputs'!$E$68/12,'Key_Assumptions_&_Inputs'!$E$69*12,$F$99),0))*12)) -> 0 | G100: =-IF('Key_Assumptions_&_Inputs'!$E$16="Share Leasing",0,IF(G92=0,0,IF(G92=1,0,IF(G92<=('Key_Assumptions_&_Inputs'!$E$69+1),-PMT('Key_Assumptions_&_Inputs'!$E$68/12,'Key_Assumptions_&_Inputs'!$E$69*12,$F$99),0))*12)) -> 0 | H100: =-IF('Key_Assumptions_&_Inputs'!$E$16="Share Leasing",0,IF(H92=0,0,IF(H92=1,0,IF(H92<=('Key_Assumptions_&_Inputs'!$E$69+1),-PMT('Key_Assumptions_&_Inputs'!$E$68/12,'Key_Assumptions_&_Inputs'!$E$69*12,$F$99),0))*12)) -> 0 | I100: =-IF('Key_Assumptions_&_Inputs'!$E$16="Share Leasing",0,IF(I92=0,0,IF(I92=1,0,IF(I92<=('Key_Assumptions_&_Inputs'!$E$69+1),-PMT('Key_Assumptions_&_Inputs'!$E$68/12,'Key_Assumptions_&_Inputs'!$E$69*12,$F$99),0))*12)) -> 0 | J100: =-IF('Key_Assumptions_&_Inputs'!$E$16="Share Leasing",0,IF(J92=0,0,IF(J92=1,0,IF(J92<=('Key_Assumptions_&_Inputs'!$E$69+1),-PMT('Key_Assumptions_&_Inputs'!$E$68/12,'Key_Assumptions_&_Inputs'!$E$69*12,$F$99),0))*12)) -> 0 | K100: =-IF('Key_Assumptions_&_Inputs'!$E$16="Share Leasing",0,IF(K92=0,0,IF(K92=1,0,IF(K92<=('Key_Assumptions_&_Inputs'!$E$69+1),-PMT('Key_Assumptions_&_Inputs'!$E$68/12,'Key_Assumptions_&_Inputs'!$E$69*12,$F$99),0))*12)) -> 0 | L100: =-IF('Key_Assumptions_&_Inputs'!$E$16="Share Leasing",0,IF(L92=0,0,IF(L92=1,0,IF(L92<=('Key_Assumptions_&_Inputs'!$E$69+1),-PMT('Key_Assumptions_&_Inputs'!$E$68/12,'Key_Assumptions_&_Inputs'!$E$69*12,$F$99),0))*12)) -> 0 | M100: =-IF('Key_Assumptions_&_Inputs'!$E$16="Share Leasing",0,IF(M92=0,0,IF(M92=1,0,IF(M92<=('Key_Assumptions_&_Inputs'!$E$69+1),-PMT('Key_Assumptions_&_Inputs'!$E$68/12,'Key_Assumptions_&_Inputs'!$E$69*12,$F$99),0))*12)) -> 0 | N100: =-IF('Key_Assumptions_&_Inputs'!$E$16="Share Leasing",0,IF(N92=0,0,IF(N92=1,0,IF(N92<=('Key_Assumptions_&_Inputs'!$E$69+1),-PMT('Key_Assumptions_&_Inputs'!$E$68/12,'Key_Assumptions_&_Inputs'!$E$69*12,$F$99),0))*12)) -> 0 | O100: =-IF('Key_Assumptions_&_Inputs'!$E$16="Share Leasing",0,IF(O92=0,0,IF(O92=1,0,IF(O92<=('Key_Assumptions_&_Inputs'!$E$69+1),-PMT('Key_Assumptions_&_Inputs'!$E$68/12,'Key_Assumptions_&_Inputs'!$E$69*12,$F$99),0))*12)) -> 0 | P100: =-IF('Key_Assumptions_&_Inputs'!$E$16="Share Leasing",0,IF(P92=0,0,IF(P92=1,0,IF(P92<=('Key_Assumptions_&_Inputs'!$E$69+1),-PMT('Key_Assumptions_&_Inputs'!$E$68/12,'Key_Assumptions_&_Inputs'!$E$69*12,$F$99),0))*12)) -> 0 | Q100: =-IF('Key_Assumptions_&_Inputs'!$E$16="Share Leasing",0,IF(Q92=0,0,IF(Q92=1,0,IF(Q92<=('Key_Assumptions_&_Inputs'!$E$69+1),-PMT('Key_Assumptions_&_Inputs'!$E$68/12,'Key_Assumptions_&_Inputs'!$E$69*12,$F$99),0))*12)) -> 0 | R100: =-IF('Key_Assumptions_&_Inputs'!$E$16="Share Leasing",0,IF(R92=0,0,IF(R92=1,0,IF(R92<=('Key_Assumptions_&_Inputs'!$E$69+1),-PMT('Key_Assumptions_&_Inputs'!$E$68/12,'Key_Assumptions_&_Inputs'!$E$69*12,$F$99),0))*12)) -> 0 | S100: =-IF('Key_Assumptions_&_Inputs'!$E$16="Share Leasing",0,IF(S92=0,0,IF(S92=1,0,IF(S92<=('Key_Assumptions_&_Inputs'!$E$69+1),-PMT('Key_Assumptions_&_Inputs'!$E$68/12,'Key_Assumptions_&_Inputs'!$E$69*12,$F$99),0))*12)) -> 0 | T100: =-IF('Key_Assumptions_&_Inputs'!$E$16="Share Leasing",0,IF(T92=0,0,IF(T92=1,0,IF(T92<=('Key_Assumptions_&_Inputs'!$E$69+1),-PMT('Key_Assumptions_&_Inputs'!$E$68/12,'Key_Assumptions_&_Inputs'!$E$69*12,$F$99),0))*12)) -> 0 | U100: =-IF('Key_Assumptions_&_Inputs'!$E$16="Share Leasing",0,IF(U92=0,0,IF(U92=1,0,IF(U92<=('Key_Assumptions_&_Inputs'!$E$69+1),-PMT('Key_Assumptions_&_Inputs'!$E$68/12,'Key_Assumptions_&_Inputs'!$E$69*12,$F$99),0))*12)) -> 0 | V100: =-IF('Key_Assumptions_&_Inputs'!$E$16="Share Leasing",0,IF(V92=0,0,IF(V92=1,0,IF(V92<=('Key_Assumptions_&_Inputs'!$E$69+1),-PMT('Key_Assumptions_&_Inputs'!$E$68/12,'Key_Assumptions_&_Inputs'!$E$69*12,$F$99),0))*12)) -> 0 | W100: =-IF('Key_Assumptions_&_Inputs'!$E$16="Share Leasing",0,IF(W92=0,0,IF(W92=1,0,IF(W92<=('Key_Assumptions_&_Inputs'!$E$69+1),-PMT('Key_Assumptions_&_Inputs'!$E$68/12,'Key_Assumptions_&_Inputs'!$E$69*12,$F$99),0))*12)) -> 0 | X100: =-IF('Key_Assumptions_&_Inputs'!$E$16="Share Leasing",0,IF(X92=0,0,IF(X92=1,0,IF(X92<=('Key_Assumptions_&_Inputs'!$E$69+1),-PMT('Key_Assumptions_&_Inputs'!$E$68/12,'Key_Assumptions_&_Inputs'!$E$69*12,$F$99),0))*12)) -> 0 | Y100: =-IF('Key_Assumptions_&_Inputs'!$E$16="Share Leasing",0,IF(Y92=0,0,IF(Y92=1,0,IF(Y92<=('Key_Assumptions_&_Inputs'!$E$69+1),-PMT('Key_Assumptions_&_Inputs'!$E$68/12,'Key_Assumptions_&_Inputs'!$E$69*12,$F$99),0))*12)) -> 0 | Z100: =-IF('Key_Assumptions_&_Inputs'!$E$16="Share Leasing",0,IF(Z92=0,0,IF(Z92=1,0,IF(Z92<=('Key_Assumptions_&_Inputs'!$E$69+1),-PMT('Key_Assumptions_&_Inputs'!$E$68/12,'Key_Assumptions_&_Inputs'!$E$69*12,$F$99),0))*12)) -> 0 | AA100: =-IF('Key_Assumptions_&_Inputs'!$E$16="Share Leasing",0,IF(AA92=0,0,IF(AA92=1,0,IF(AA92<=('Key_Assumptions_&_Inputs'!$E$69+1),-PMT('Key_Assumptions_&_Inputs'!$E$68/12,'Key_Assumptions_&_Inputs'!$E$69*12,$F$99),0))*12)) -> 0 | AB100: =-IF('Key_Assumptions_&_Inputs'!$E$16="Share Leasing",0,IF(AB92=0,0,IF(AB92=1,0,IF(AB92<=('Key_Assumptions_&_Inputs'!$E$69+1),-PMT('Key_Assumptions_&_Inputs'!$E$68/12,'Key_Assumptions_&_Inputs'!$E$69*12,$F$99),0))*12)) -> 0 | AC100: =-IF('Key_Assumptions_&_Inputs'!$E$16="Share Leasing",0,IF(AC92=0,0,IF(AC92=1,0,IF(AC92<=('Key_Assumptions_&_Inputs'!$E$69+1),-PMT('Key_Assumptions_&_Inputs'!$E$68/12,'Key_Assumptions_&_Inputs'!$E$69*12,$F$99),0))*12)) -> 0 | AD100: =-IF('Key_Assumptions_&_Inputs'!$E$16="Share Leasing",0,IF(AD92=0,0,IF(AD92=1,0,IF(AD92<=('Key_Assumptions_&_Inputs'!$E$69+1),-PMT('Key_Assumptions_&_Inputs'!$E$68/12,'Key_Assumptions_&_Inputs'!$E$69*12,$F$99),0))*12)) -> 0 | AE100: =-IF('Key_Assumptions_&_Inputs'!$E$16="Share Leasing",0,IF(AE92=0,0,IF(AE92=1,0,IF(AE92<=('Key_Assumptions_&_Inputs'!$E$69+1),-PMT('Key_Assumptions_&_Inputs'!$E$68/12,'Key_Assumptions_&_Inputs'!$E$69*12,$F$99),0))*12)) -> 0 | AF100: =-IF('Key_Assumptions_&_Inputs'!$E$16="Share Leasing",0,IF(AF92=0,0,IF(AF92=1,0,IF(AF92<=('Key_Assumptions_&_Inputs'!$E$69+1),-PMT('Key_Assumptions_&_Inputs'!$E$68/12,'Key_Assumptions_&_Inputs'!$E$69*12,$F$99),0))*12)) -> 0 | AG100: =-IF('Key_Assumptions_&_Inputs'!$E$16="Share Leasing",0,IF(AG92=0,0,IF(AG92=1,0,IF(AG92<=('Key_Assumptions_&_Inputs'!$E$69+1),-PMT('Key_Assumptions_&_Inputs'!$E$68/12,'Key_Assumptions_&_Inputs'!$E$69*12,$F$99),0))*12)) -> 0 | AH100: =-IF('Key_Assumptions_&_Inputs'!$E$16="Share Leasing",0,IF(AH92=0,0,IF(AH92=1,0,IF(AH92<=('Key_Assumptions_&_Inputs'!$E$69+1),-PMT('Key_Assumptions_&_Inputs'!$E$68/12,'Key_Assumptions_&_Inputs'!$E$69*12,$F$99),0))*12)) -> 0 | AI100: =-IF('Key_Assumptions_&_Inputs'!$E$16="Share Leasing",0,IF(AI92=0,0,IF(AI92=1,0,IF(AI92<=('Key_Assumptions_&_Inputs'!$E$69+1),-PMT('Key_Assumptions_&_Inputs'!$E$68/12,'Key_Assumptions_&_Inputs'!$E$69*12,$F$99),0))*12)) -> 0 | AJ100: 0
B101: Total Financing Costs | D101: $ | E101: =SUM(E99:E100) -> 0 | F101: 0 | G101: 0 | H101: 0 | I101: 0 | J101: 0 | K101: 0 | L101: 0 | M101: 0 | N101: 0 | O101: 0 | P101: 0 | Q101: 0 | R101: 0 | S101: 0 | T101: 0 | U101: 0 | V101: 0 | W101: 0 | X101: 0 | Y101: 0 | Z101: 0 | AA101: 0 | AB101: 0 | AC101: 0 | AD101: 0 | AE101: 0 | AF101: 0 | AG101: 0 | AH101: 0 | AI101: 0 | AJ101: 0
B103: Incentive Payments
B104: Bill Credits per Participant | D104: $ | E104: 0 | F104: =IF(F92<=SubscriptionLife,AnnualPowerPerKw*SharePerSub*ShareSizeW/1000*(1-AnnualDerate)^(F92-1)*CreditRate*(1+SubCreditRtEscalation)^(F92-1),0) -> 991.2 | G104: 1005.96888 | H104: 1020.957816 | I104: 1036.170088 | J104: 1051.609022 | K104: 1067.277997 | L104: 1083.180439 | M104: 1099.319827 | N104: 1115.699693 | O104: 1132.323618 | P104: 1149.19524 | Q104: 1166.318249 | R104: 1183.696391 | S104: 1201.333467 | T104: 1219.233336 | U104: 1237.399913 | V104: 1255.837171 | W104: 1274.549145 | X104: 1293.539927 | Y104: 1312.813672 | Z104: 0 | AA104: 0 | AB104: 0 | AC104: 0 | AD104: 0 | AE104: 0 | AF104: 0 | AG104: 0 | AH104: 0 | AI104: 0 | AJ104: =SUM(E104:AI104) -> 22897.62389
B105: Total Incentive Payments | D105: $ | E105: =E104 -> 0 | F105: 991.2 | G105: 1005.96888 | H105: 1020.957816 | I105: 1036.170088 | J105: 1051.609022 | K105: 1067.277997 | L105: 1083.180439 | M105: 1099.319827 | N105: 1115.699693 | O105: 1132.323618 | P105: 1149.19524 | Q105: 1166.318249 | R105: 1183.696391 | S105: 1201.333467 | T105: 1219.233336 | U105: 1237.399913 | V105: 1255.837171 | W105: 1274.549145 | X105: 1293.539927 | Y105: 1312.813672 | Z105: 0 | AA105: 0 | AB105: 0 | AC105: 0 | AD105: 0 | AE105: 0 | AF105: 0 | AG105: 0 | AH105: 0 | AI105: 0 | AJ105: 22897.62389
B107: Net Benefits (Costs) | D107: $ | E107: =E96+E101+E105 -> 0 | F107: 31.2 | G107: 45.96888 | H107: 60.95781631 | I107: 76.17008778 | J107: 91.60902208 | K107: 107.2779965 | L107: 123.1804387 | M107: 139.3198272 | N107: 155.6996926 | O107: 172.323618 | P107: 189.19524 | Q107: 206.318249 | R107: 223.6963909 | S107: 241.3334672 | T107: 259.2333358 | U107: 277.3999125 | V107: 295.8371712 | W107: 314.5491451 | X107: 333.5399273 | Y107: 352.8136723 | Z107: 0 | AA107: 0 | AB107: 0 | AC107: 0 | AD107: 0 | AE107: 0 | AF107: 0 | AG107: 0 | AH107: 0 | AI107: 0 | AJ107: =SUM(E107:AI107) -> 3697.623891
B108: Cumulative Cashflow | D108: $ | E108: =E107 -> 0 | F108: =IF(F92<=SubscriptionLife,E108+F107,0) -> 31.2 | G108: 77.16888 | H108: 138.1266963 | I108: 214.2967841 | J108: 305.9058062 | K108: 413.1838027 | L108: 536.3642413 | M108: 675.6840685 | N108: 831.3837612 | O108: 1003.707379 | P108: 1192.902619 | Q108: 1399.220868 | R108: 1622.917259 | S108: 1864.250726 | T108: 2123.484062 | U108: 2400.883975 | V108: 2696.721146 | W108: 3011.270291 | X108: 3344.810218 | Y108: 3697.623891 | Z108: 0 | AA108: 0 | AB108: 0 | AC108: 0 | AD108: 0 | AE108: 0 | AF108: 0 | AG108: 0 | AH108: 0 | AI108: 0
B109: Payback Calculation | E109: =SUM(F109:Y109) -> 0 | F109: =IF(F108<0,1,IF(AND(F108>0,E108<0),(-E108/(F108-E108)),0)) -> 0 | G109: =IF(F109=0,0,IF(G108<0,1,IF(AND(G108>0,F108<0),(-F108/(G108-F108)),0))) -> 0 | H109: 0 | I109: 0 | J109: 0 | K109: 0 | L109: 0 | M109: 0 | N109: 0 | O109: 0 | P109: 0 | Q109: 0 | R109: 0 | S109: 0 | T109: 0 | U109: 0 | V109: 0 | W109: 0 | X109: 0 | Y109: 0 | Z109: 0 | AA109: 0 | AB109: 0 | AC109: 0 | AD109: 0 | AE109: 0 | AF109: 0 | AG109: 0 | AH109: 0 | AI109: 0
C111: Up-front Net Costs | D111: $ | E111: =F107 -> 31.2
C112: Year 1 Net Benefits | D112: $ | E112: =G108 -> 77.16888
E114: TOTAL | F114: $/Watt
C115: Subscription Life Costs | D115: $ | E115: =SUM(E96:AI96)+SUM(E101:AI101) -> -19200 | F115: =E115/SystemSizeDC/1000 -> -0.016
C116: Subscription Life Benefits | D116: $ | E116: =SUM(E105:AI105) -> 22897.62389 | F116: =E116/SystemSizeDC/1000 -> 0.01908135324
C117: Net Benefits | D117: $ | E117: =E116+E115 -> 3697.623891 | F117: =E117/SystemSizeDC/1000 -> 0.003081353242
C118: NPV | D118: $ | E118: =E107+NPV('Key_Assumptions_&_Inputs'!E60,F107:AI107) -> 1755.157293 | F118: =E118/SystemSizeDC/1000 -> 0.001462631078
C119: Internal Rate of Return (IRR) | D119: % | E119: =IRR(F107:AI107) ->  | F119: N/A
C120: Modified Internal Rate of Return (MIRR) | D120: % | E120: =MIRR(E107:AI107,0,'Key_Assumptions_&_Inputs'!E60) ->  | F120: N/A
C121: Return on Investment (ROI) | D121: % | E121: =E117/(-E115) -> 0.1925845776 | F121: N/A | H121: =PercentSub -> 0
C122: Payback Period | D122: years | E122: =E109 -> 0 | F122: N/A
